{"text_format":"1","workbook":"xlsx","n_sheets":42,"sheets":["modReestrMO","Инструкция","Справочная информация","Лог обновления","Выбор субъекта РФ","Титульный","ГВС инвестиции","ГВС показатели","ГВС показатели (2)","Ссылки на публикации","Комментарии","Проверка","TEHSHEET","CheckCopy","AllSheetsInThisWorkbook","et_union","modInfo","REESTR_ORG","modHyperlink","modChange","modTitleSheetHeaders","modServiceModule","modClassifierValidate","Паспорт","REESTR_FILTERED","REESTR_MO","modfrmReestr","modDblClick","modfrmDateChoose","modfrmSphereChoose","modSheetMain01","modSheetMain03","modSheetMain04","modSheetMain06","modSheetMain07","modSheetMain08","modUpdTemplMain","modRegionSelectSub","modfrmCheckUpdates","modCommonProv","modProvGeneralProc","modThisWorkbook"],"not_rendered":{"charts":0,"images":107,"macros":1,"external_links":0,"defined_names":267,"comments":0,"pivot_tables":0},"unopened":[],"bounds":{"document_bytes":16777216,"sheet_cells":100000,"rows_first":2000,"rows_last":500,"rows_between":2000,"halvings":0,"cell_chars":16384,"cell_head_chars":4096},"cells_cut":0,"cells_raw":0,"read":"whole","date_system":"1900"}

{"sheet":"modReestrMO","index":0,"n_rows":0,"n_cols":0,"rows_kept":0,"cut":false,"hidden":true,"merged":[]}

{"sheet":"Инструкция","index":1,"n_rows":76,"n_cols":6,"rows_kept":76,"cut":false,"hidden":false,"merged":[[12,2,12,4],[16,3,16,4],[27,2,27,4],[7,2,7,4],[1,1,1,4],[3,1,3,4],[5,2,5,4],[6,2,6,4],[2,2,2,3],[8,2,8,4],[22,3,22,4],[15,3,15,4],[17,3,17,4],[26,2,26,4],[21,3,21,4],[23,3,23,4],[18,2,18,4],[19,2,19,3],[20,3,20,4],[9,2,9,4],[10,2,10,4],[11,2,11,4],[25,3,25,4],[13,3,13,4],[14,3,14,4],[28,2,28,4],[34,3,34,4],[40,2,40,4],[29,2,29,4],[30,2,30,4],[31,2,31,4],[32,2,32,4],[39,2,39,4],[38,2,38,4],[37,2,37,4],[33,3,33,4],[41,2,41,4],[42,2,42,4],[63,2,63,4],[45,2,45,4],[46,2,46,4],[43,2,43,4],[44,2,44,4],[47,2,47,4],[55,2,55,4],[56,2,56,4],[82,1,82,4],[64,2,64,4],[65,2,65,4],[66,2,66,4],[67,2,67,4],[68,2,68,4],[76,2,76,4],[70,2,70,4],[69,2,69,4],[60,2,60,4],[61,2,61,4],[62,2,62,4],[57,2,57,4],[58,2,58,4],[59,2,59,4]]}
[]
[null,{"$f":"\"Код шаблона: \" & GetCode()","v":"Код шаблона: JKH.OPEN.INFO.TARIFF.GVS"}]
[null,{"$f":"\"Версия \" & GetVersion()","v":"Версия 5.0.1"}]
[null,"Инструкция"]
[]
[null,null,"1.  Технические требования",null,null,"t"]
[null,null," • на рабочем месте должен быть установлен MS Office 2003, 2007, 2010 с полной версией MS Excel"]
[null,null," • макросы во время работы должны быть включены (!)"]
[null,null," • для корректной работы шаблона требуется выбрать низкий уровень безопасности"]
[null,null,"(В меню MS Excel 2003: Сервис | Макрос | Безопасность | выбрать нижний пункт «Низкая безопасность» | OK)"]
[null,null,"(В меню MS Excel 2007/2010: Параметры Excel | Центр управления безопасностью | Параметры центра управления безопасностью | Параметры макросов | Включить все макросы | ОК)"]
[null,null,"2.  Законодательная основа шаблона",null,null,"u"]
[null,null,"Данный шаблон разработан в соответствии с:"]
[null,null," • ","ПОСТАНОВЛЕНИЕМ от 30 декабря 2009 г. N 1140 «ОБ УТВЕРЖДЕНИИ СТАНДАРТОВ РАСКРЫТИЯ ИНФОРМАЦИИ ОРГАНИЗАЦИЯМИ КОММУНАЛЬНОГО КОМПЛЕКСА И СУБЪЕКТАМИ ЕСТЕСТВЕННЫХ МОНОПОЛИЙ, ОСУЩЕСТВЛЯЮЩИМИ ДЕЯТЕЛЬНОСТЬ В СФЕРЕ ОКАЗАНИЯ УСЛУГ ПО ПЕРЕДАЧЕ ТЕПЛОВОЙ ЭНЕРГИИ»"]
[null,null,null,"Полный текст Постановления №1140 на сайте ФСТ России"]
[null,null,null,{"$f":"\"Подробнее о сфере \"& TSphere_full","v":"Подробнее о сфере горячего водоснабжения"}]
[null,null," • ","ПОСТАНОВЛЕНИЕМ от 13 апреля 2010 г. N 237 «ОБ УТВЕРЖДЕНИИ ПРАВИЛ ОСУЩЕСТВЛЕНИЯ КОНТРОЛЯ ЗА СОБЛЮДЕНИЕМ ОРГАНИЗАЦИЯМИ КОММУНАЛЬНОГО КОМПЛЕКСА СТАНДАРТОВ РАСКРЫТИЯ ИНФОРМАЦИИ»"]
[null,null,null,"Полный текст Постановления №237"]
[null,null,"3.  Условные обозначения",null,null,"u"]
[null,null,"Типы ячеек:"]
[null,null,"●"," - обязательные для заполнения;"]
[null,null,"●"," - предназначенные для заполнения;"]
[null,null,"●"," - с формулами и константами или заполняемые автоматически (например, при выборе организации)."]
[null,null,"●"," - ячейки с выбором значений до двойному клику (щелчку) (например, при выборе даты или данных из "]
[null,null,null,"справочников)."]
[null,null,null,"Пояснение к заполнению на листе."]
[null,null,"4.  Работа с реестрами",null,null,"u"]
[null,null,"Если в предложенном Вам списке необходимая организация (МР/МО) отсутствует, обновите реестр с помощью кнопки «Обновить реестр организаций» («Обновить реестр МО»)."]
[null,null,"В результате синхронизации с базой данных список организаций (МР/МО) будет заменён актуальным (механизм синхронизации требует подключения к сети Интернет и основан на использовании протокола HTTPS (TCP порт 443)). "]
[null,null,"Если после обновления Вам не удалось найти необходимую организацию в списке, обратитесь к ответственному за поддержание реестра Вашего региона. Информация о региональных органах регулирования доступна по ссылке:"]
[null,null,"http://www.fstrf.ru/regions/region/showlist"]
[null,null,"5.  Обновление шаблона",null,null,"u"]
[null,null,"Если Ваш компьютер имеет подключение к Интернет, можно автоматически проверять наличие доступных обновлений. Выберите способ оповещения о наличии обновлений для шаблона:"]
[null,null,"y","проверять доступные обновления (рекомендуется)"]
[null,null,null,"никогда не проверять наличие обновлений (не рекомендуется)"]
[null,null,null,null,"Чтобы проверить наличие обновлений, нажмите кнопку «Обновить текущую версию шаблона»."]
[null,null,null,null,"Чтобы отобразить/скрыть лог обновления и статусные сообщения, нажмите кнопку \"Отобразить/скрыть лист Лог обновления\"."]
[null,null,"6.  Работа с листом «Проверка»",null,null,"u"]
[null,null,"• При сохранении шаблона осуществляется проверка корректности данных, в том числе на наличие значений в ячейках, обязательных для заполнения. "]
[null,null,"• Если какая-то ячейка не удовлетворяет условию проверки, на лист «Проверка» добавляется гиперссылка на данную ячейку и указывается причина ошибки."]
[null,null,"• В колонке «Статус» для каждого сообщения возможны 2 значения: ошибка и предупреждение. "]
[null,null,"• При наличии сообщений со статусом «Ошибка» шаблон будет отклонён системой и не будет загружен в хранилище данных, сообщения со статусом «Предупреждение» носят информационный характер, и такой шаблон будет принят системой."]
[]
[null,null,"• Если Вы работаете в табличном процессоре Microsoft Excel 2007 и выше, Вы можете использовать для работы формат XLSM (Книга Excel с поддержкой макросов)."]
[null,null,"• При сохранении не следует выбирать формат XLSX (Книга Excel), так как в указанном формате макросы, задействованные при работе с шаблоном, БЕЗВОЗВРАТНО УДАЛЯЮТСЯ."]
[null,null,"• После того, как будут устранены все замечания, при сохранении шаблона появится сообщение «Шаблон готов к сохранению без замечаний»."]
[]
[null,null,"7.  Организационно-технические консультации",null,null,"t"]
[null,null,null,"ФИО:",""]
[null,null,null,"Телефон:",""]
[null,null,null,"E-mail:"]
[null,null,null,"Web-сайт:","http://support.eias.ru/"]
[null,null,null,"Комментарий",""]
[null,null,null,"Дистрибутивы:","http://eias.ru/?page=show_distrs"]
[null,null,null,null,"для устранения ошибок (напр., \"Compile error in hidden module\")"]
[null,null,"8.  Методология заполнения",null,null,"t"]
[null,null,"   Перед началом работы с шаблоном, на листе «Выбор субъекта РФ», Вам необходимо выбрать из выпадающего списка нужный регион. После выбора региона в шаблоне отобразятся листы для заполнения."]
[null,null,"   В разделе «Справочная информация» размещены фрагменты Постановления №1140 «СТАНДАРТЫ РАСКРЫТИЯ ИНФОРМАЦИИ ОРГАНИЗАЦИЯМИ КОММУНАЛЬНОГО КОМПЛЕКСА И СУБЪЕКТАМИ ЕСТЕСТВЕННЫХ МОНОПОЛИЙ, ОСУЩЕСТВЛЯЮЩИМИ ДЕЯТЕЛЬНОСТЬ В СФЕРЕ ОКАЗАНИЯ УСЛУГ ПО ПЕРЕДАЧЕ ТЕПЛОВОЙ ЭНЕРГИИ», относящиеся к данному шаблону. В случае вопросов по составу раскрываемой информации, срокам раскрытия и формату раскрытия Вы можете уточнить их в соответствующих документах."]
[null,null,"   На листе «Титульный» нужно заполнить все ячейки голубого цвета."]
[null,null,"   Для создания печатной формы необходимо выполнить щелчок левой кнопки мыши по значку принтера (левый верхний угол под заголовком) на листе «Титульный»."]
[null,null,"   В зависимости от выбранного значения в поле «Публикация» на листе «Титульный» изменяется содержание и количество листов."]
[null,null,{"$f":" IF(TSphere = \"ТБО\", \"   Перечислите все муниципальные районы, в которых организация осуществляет услуги по утилизации (захоронению) твердых бытовых отходов.\", \"   В случае, если тариф не дифференцируется по системам \"&IF(TSphere = \"ТС\",\"теплоснабжения\",\"коммунальной инфраструктуры\")&\", перечислите все муниципальные районы, в которых организация осуществляет услуги \" &TSphere_full&\".\")","v":"   В случае, если тариф не дифференцируется по системам коммунальной инфраструктуры, перечислите все муниципальные районы, в которых организация осуществляет услуги горячего водоснабжения."}]
[null,null,{"$f":" IF(TSphere = \"ТБО\", \"   Перечислите все муниципальные образования, в которых организация осуществляет услуги по утилизации (захоронению) твердых бытовых отходов.\", \"   В случае, если тариф не дифференцируется по системам \"&IF(TSphere = \"ТС\",\"теплоснабжения\",\"коммунальной инфраструктуры\")&\", перечислите все муниципальные образования, в которых организация осуществляет услуги \" &TSphere_full&\".\")","v":"   В случае, если тариф не дифференцируется по системам коммунальной инфраструктуры, перечислите все муниципальные образования, в которых организация осуществляет услуги горячего водоснабжения."}]
[null,null,"   Задайте период регулирования на листе «Титульный» , выбрав начало и окончание очередного периода с помощью календаря /выполните двойной щелчок по соответствующей синей ячейке/."]
[null,null,"   Для выбора того или иного источника публикации выполните двойной щелчок по синей ячейке напротив соответствующего источника. Если Вы снимаете галочку с пункта, то будут скрыты и очищены соответствующие строки на листе «Ссылки на публикации»."]
[null,null,"  На листе «Ссылки на публикации» «Адрес сайта в сети интернет» вводите, не нарушая цвет ячейки /если копируете гиперссылку из браузера, то выполните двойной щелчок левой кнопки мыши по ячейке и только после этого можете вставить скопированный элемент/."]
[null,null,"   При вводе даты на расчетных листах необходимо выполнить двойной щелчок левой кнопки мыши по соответствующей ячейке."]
[null,null,"   Если какой-либо из показателей на расчетных листах для Вашей организации отсутствует, введите в поле, обязательное для заполнение, «0» (для числовых показателей) и «-» (для текстовых). "]
[null,null,"   Внимательно следите за информационными сообщениями на расчетных листах. "]
[null,null,"   Все необходимые комментарии по всем формам Вы можете отразить на листе «Комментарии». "]
[null,null,"9.  Консультации по методологии заполнения",null,null,"u"]
[null,null,null,"ФИО:",""]
[null,null,null,"Телефон:",""]
[null,null,null,"E-mail:","openinfo@eias.ru"]
[null,null,null,"Web-сайт:","http://www.support.eias.ru/"]
[null,null,null,"Комментарий",""]

{"sheet":"Справочная информация","index":2,"n_rows":79,"n_cols":3,"rows_kept":79,"cut":false,"hidden":false,"merged":[[2,1,2,2]]}
[]
[null,{"$f":"code","v":"Код шаблона: JKH.OPEN.INFO.TARIFF.GVS"}]
[null,"Инструкция"]
[]
[]
[null,null,"III. Стандарты раскрытия информации в сфере горячего водоснабжения"]
[]
[null,null,"22. В сфере горячего водоснабжения раскрытию подлежит информация: "]
[null,null,"а) о ценах (тарифах) на регулируемые товары и услуги и надбавках к этим ценам (тарифам); "]
[null,null,"б) об основных показателях финансово-хозяйственной деятельности регулируемых организаций, включая структуру основных производственных затрат (в части регулируемой деятельности); "]
[null,null,"в) об основных потребительских характеристиках регулируемых товаров и услуг регулируемых организаций и их соответствии государственным и иным утвержденным стандартам качества; "]
[null,null,"г) об инвестиционных программах и отчетах об их реализации; "]
[null,null,"д) о наличии (отсутствии) технической возможности доступа к регулируемым товарам и услугам регулируемых организаций, а также о регистрации и ходе реализации заявок на подключение к системе горячего водоснабжения; "]
[null,null,"е) об условиях, на которых осуществляется поставка регулируемых товаров и (или) оказание регулируемых услуг; "]
[null,null,"ж) о порядке выполнения технологических, технических и других мероприятий, связанных с подключением к системе горячего водоснабжения. "]
[null,null,"23. Информация о ценах (тарифах) на регулируемые товары и услуги и надбавках к этим ценам (тарифам) содержит сведения: "]
[null,null,"а) об утвержденных тарифах на горячую воду; "]
[null,null,"б) об утвержденных надбавках к ценам (тарифам) на горячую воду для потребителей; "]
[null,null,"в) об утвержденных надбавках к тарифам регулируемых организаций на горячую воду; "]
[null,null,"г) об утвержденных тарифах на подключение создаваемых (реконструируемых) объектов недвижимости к системе горячего водоснабжения; "]
[null,null,"д) об утвержденных тарифах регулируемых организаций на подключение к системе горячего водоснабжения. "]
[null,null,"24. В отношении каждой из групп сведений, указанных в пункте 23 настоящего документа, указываются наименование регулирующего органа, принявшего решение об утверждении цен (тарифов) и надбавок к ним, реквизиты (дата и номер) такого решения, величина установленного тарифа или надбавки, срок действия тарифа или надбавки, а также источник официального опубликования решения. "]
[null,null,"25. Информация об основных показателях финансово-хозяйственной деятельности регулируемых организаций, включая структуру основных производственных затрат (в части регулируемой деятельности), содержит сведения: "]
[null,null,"а) о виде регулируемой деятельности (поставка горячей воды, оказание услуг в сфере горячего водоснабжения); "]
[null,null,"б) о выручке от регулируемой деятельности (тыс. рублей); "]
[null,null,"в) о себестоимости производимых товаров (оказываемых услуг) по регулируемому виду деятельности (тыс. рублей), включающей: "]
[null,null,"расходы на покупаемую тепловую энергию (мощность), используемую для горячего водоснабжения; "]
[null,null,"расходы на тепловую энергию, производимую с применением собственных источников и используемую для горячего водоснабжения; "]
[null,null,"расходы на покупаемую холодную воду, используемую для горячего водоснабжения; "]
[null,null,"расходы на холодную воду, получаемую с применением собственных источников водозабора (скважин) и используемую для горячего водоснабжения; "]
[null,null,"расходы на покупаемую электрическую энергию (мощность), потребляемую оборудованием, используемым в технологическом процессе, с указанием средневзвешенной стоимости 1 кВт х ч и объеме приобретения электрической энергии; "]
[null,null,"расходы на оплату труда и отчисления на социальные нужды основного производственного персонала; "]
[null,null,"расходы на амортизацию основных производственных средств и аренду имущества, используемого в технологическом процессе; "]
[null,null,"общепроизводственные (цеховые) расходы, в том числе расходы на оплату труда и отчисления на социальные нужды; "]
[null,null,"общехозяйственные (управленческие) расходы, в том числе расходы на оплату труда и отчисления на социальные нужды; "]
[null,null,"расходы на ремонт (капитальный и текущий) основных производственных средств; "]
[null,null,"расходы на услуги производственного характера, выполняемые по договорам с организациями на проведение регламентных работ в рамках технологического процесса; "]
[null,null,"г) о валовой прибыли от продажи товаров и услуг по регулируемому виду деятельности (тыс. рублей); "]
[null,null,"д) о чистой прибыли по регулируемому виду деятельности с указанием размера ее расходования на финансирование мероприятий, предусмотренных инвестиционной программой регулируемой организации по развитию системы горячего водоснабжения (тыс. рублей); "]
[null,null,"е) об изменении стоимости основных фондов, в том числе за счет ввода (вывода) их из эксплуатации (тыс. рублей); "]
[null,null,"ж) о годовой бухгалтерской отчетности, включая бухгалтерский баланс и приложения к нему (раскрывается регулируемыми организациями, выручка от регулируемой деятельности которых превышает 80 процентов совокупной выручки за отчетный год); "]
[null,null,"з) об объеме покупаемой холодной воды, используемой для горячего водоснабжения (тыс. куб. м); "]
[null,null,"и) об объеме холодной воды, получаемой с применением собственных источников водозабора (скважин) и используемой для горячего водоснабжения; "]
[null,null,"к) об объеме покупаемой тепловой энергии (мощности), используемой для горячего водоснабжения (тыс. Гкал (Гкал/ч); "]
[null,null,"л) об объеме тепловой энергии, производимой с применением собственных источников и используемой для горячего водоснабжения (тыс. Гкал); "]
[null,null,"м) об объеме отпущенной потребителям тепловой энергии (тыс. Гкал); "]
[null,null,"н) о потерях воды в сетях (процентов); "]
[null,null,"о) о протяженности водопроводных сетей (в однотрубном исчислении) (км); "]
[null,null,"п) о среднесписочной численности основного производственного персонала (человек); "]
[null,null,"р) об удельном расходе электроэнергии на подачу воды в сеть (тыс. кВт х ч или тыс. куб. м). "]
[null,null,"26. Информация об основных потребительских характеристиках регулируемых товаров и услуг регулируемых организаций и их соответствии государственным и иным утвержденным стандартам качества содержит сведения: "]
[null,null,"а) о количестве аварий на системах горячего водоснабжения (единиц на км); "]
[null,null,"б) о количестве часов (суммарно за календарный год), превышающих допустимую продолжительность перерыва подачи горячей воды, и доле потребителей, затронутых ограничениями подачи горячей воды; "]
[null,null,"в) о количестве часов (суммарно за календарный год) отклонения от нормативной температуры горячей воды в точке разбора; "]
[null,null,"г) о соответствии состава и свойств горячей воды установленным санитарным нормам и правилам. "]
[null,null,"27. Информация об инвестиционных программах и отчетах об их реализации содержит наименование соответствующей программы, а также сведения: "]
[null,null,"а) о цели инвестиционной программы; "]
[null,null,"б) о сроках начала и окончания реализации инвестиционной программы; "]
[null,null,"в) о потребностях в финансовых средствах, необходимых для реализации инвестиционной программы, в том числе с разбивкой по годам, мероприятиям и источникам финансирования инвестиционной программы (тыс. рублей); "]
[null,null,"г) о показателях эффективности реализации инвестиционной программы, а также об изменении технико-экономических показателей регулируемой организации (с разбивкой по мероприятиям); "]
[null,null,"д) об использовании инвестиционных средств за отчетный год с разбивкой по кварталам, мероприятиям и источникам финансирования инвестиционной программы (тыс. рублей). "]
[null,null,"28. В официальных печатных изданиях сведения, указанные в подпунктах \"в\" - \"д\" пункта 27 настоящего документа, публикуются в отношении мероприятий инвестиционной программы, доля расходов на реализацию каждого из которых превышает 5 процентов суммы финансирования инвестиционной программы за отчетный год. "]
[null,null,"29. Информация о наличии (отсутствии) технической возможности доступа к регулируемым товарам и услугам регулируемых организаций, а также о регистрации и ходе реализации заявок на подключение к системе горячего водоснабжения содержит сведения: "]
[null,null,"а) о количестве поданных и зарегистрированных заявок на подключение к системе горячего водоснабжения; "]
[null,null,"б) о количестве исполненных заявок на подключение к системе горячего водоснабжения; "]
[null,null,"в) о количестве заявок на подключение к системе горячего водоснабжения, по которым принято решение об отказе в подключении; "]
[null,null,"г) о резерве мощности системы горячего водоснабжения. При наличии у регулируемой организации раздельных систем горячего водоснабжения информация о резерве мощности таких систем публикуется в отношении каждой системы горячего водоснабжения. "]
[null,null,"30. Информация об условиях, на которых осуществляется поставка регулируемых товаров и (или) оказание регулируемых услуг, содержит сведения об условиях публичных договоров поставок регулируемых товаров, оказания регулируемых услуг, в том числе договоров на подключение к системе горячего водоснабжения. "]
[null,null,"31. Информация о порядке выполнения технологических, технических и других мероприятий, связанных с подключением к системе горячего водоснабжения, содержит: "]
[null,null,"а) форму заявки на подключение к системе горячего водоснабжения; "]
[null,null,"б) перечень и формы документов, представляемых одновременно с заявкой на подключение к системе горячего водоснабжения; "]
[null,null,"в) описание (со ссылкой на нормативные правовые акты) порядка действий заявителя и регулируемой организации при подаче, приеме, обработке заявки на подключение к системе горячего водоснабжения, принятии решения и уведомлении о принятом решении; "]
[null,null,"г) телефоны и адреса службы, ответственной за прием и обработку заявок на подключение к системе горячего водоснабжения. "]
[null,null,"32. Информация, указанная в пунктах 23, 30 и 31 настоящего документа, раскрывается регулируемой организацией не позднее 30 дней со дня принятия соответствующего решения об установлении тарифа (надбавки) на очередной период регулирования. "]
[null,null,"Одновременно с указанной в пункте 23 настоящего документа информацией на сайте в сети Интернет публикуются сведения о финансово-хозяйственной деятельности регулируемой организации, указанные в подпунктах \"а\" - \"д\", \"з\" - \"р\" пункта 25 и подпунктах \"а\" - \"г\" пункта 27 настоящего документа, учтенные органом исполнительной власти субъекта Российской Федерации (органом местного самоуправления) при установлении тарифов и надбавок к тарифам на очередной период регулирования. "]
[null,null,"Информация, указанная в пунктах 25-27 настоящего документа, раскрывается регулируемой организацией не позднее 30 дней со дня сдачи годового бухгалтерского баланса в налоговые органы и должна соответствовать годовой бухгалтерской отчетности за отчетный год. "]
[null,null,"Одновременно с указанной в пункте 25 настоящего документа информацией о расходах на ремонт (капитальный и текущий) основных производственных средств и расходах на услуги производственного характера, выполняемых по договорам с организациями на проведение регламентных работ в рамках технологического процесса, на сайте в сети Интернет публикуется информация об объемах товаров и услуг, их стоимости и способах приобретения у тех организаций, сумма оплаты услуг которых превышает 20 процентов суммы расходов по каждой из указанных статьей расходов. "]
[null,null,"При этом указывается информация о поставке товаров и услуг, стоимость которых превышает 20 процентов суммы поставки товаров и услуг каждой из этих организаций. "]
[null,null,"Информация, указанная в пункте 29 настоящего документа, раскрывается регулируемой организацией ежеквартально."]

{"sheet":"Лог обновления","index":3,"n_rows":8,"n_cols":4,"rows_kept":8,"cut":false,"hidden":true,"merged":[]}
[]
["3/17/2012  12:12:41 AM","Дата/Время","Сообщение","Статус"]
[null,"1/24/2014  11:21:42 AM","Проверка доступных обновлений...","Информация"]
[null,"1/24/2014  11:21:43 AM","Версия шаблона 5.0.1 актуальна, обновление не требуется","Информация"]
[null,"1/24/2014  12:22:17 PM","Проверка доступных обновлений...","Информация"]
[null,"1/24/2014  12:22:18 PM","Версия шаблона 5.0.1 актуальна, обновление не требуется","Информация"]
[null,"1/24/2014  12:34:23 PM","Проверка доступных обновлений...","Информация"]
[null,"1/24/2014  12:34:26 PM","Версия шаблона 5.0.1 актуальна, обновление не требуется","Информация"]

{"sheet":"Выбор субъекта РФ","index":4,"n_rows":2,"n_cols":8,"rows_kept":2,"cut":false,"hidden":true,"merged":[[1,1,2,6]]}
[null,33,8454143,null,null,null,0]
[null,"Московская область",null,null,null,null,null,0]

{"sheet":"Титульный","index":5,"n_rows":65,"n_cols":7,"rows_kept":65,"cut":false,"hidden":false,"merged":[[1,5,1,7],[2,5,2,7],[10,5,10,6],[14,5,14,6],[3,3,3,7],[6,5,6,6],[8,5,8,6],[12,5,12,6],[11,5,11,6],[64,5,64,6],[52,5,52,6],[63,5,63,6],[61,5,61,6],[60,5,60,6],[54,5,54,6],[62,5,62,6],[58,5,58,6],[56,5,56,6],[53,5,53,6],[57,5,57,6],[50,5,50,6],[44,2,46,2],[44,4,45,4],[42,5,42,6],[49,5,49,6],[15,5,15,6],[34,5,34,6],[16,5,16,6],[48,5,48,6],[32,5,32,6],[38,5,38,6],[36,5,36,6],[37,5,37,6],[22,5,22,6],[26,5,26,6],[27,5,27,6],[18,5,18,6],[24,5,24,6],[29,5,29,6]]}
[{"$f":"region_name","v":"Московская область"},null,{"$f":"org&\"_INN:\"&inn&\"_KPP:\"&kpp","v":"МУП \"ЖКХ - Раменки\"_INN:5011020142_KPP:501101001"}]
[{"$f":"IF(org=\"\",\"Не определено\",org)","v":"МУП \"ЖКХ - Раменки\""},{"$f":"IF(inn=\"\",\"Не определено\",inn)","v":"5011020142"},null,null,null,{"$f":"code","v":"Код шаблона: JKH.OPEN.INFO.TARIFF.GVS"}]
[null,null,null,null,null,{"$f":"version","v":"Версия 5.0.1"}]
[{"$f":"IF(fil=\"\",\"Не определено\",fil)","v":"Не определено"},{"$f":"IF(kpp=\"\",\"Не определено\",kpp)","v":"501101001"},null,{"$f":"\"Показатели, подлежащие раскрытию в сфере \"&TSphere_full&\" (План)\"","v":"Показатели, подлежащие раскрытию в сфере горячего водоснабжения (План)"}]
[]
[null,null,null,null,"Создать печатную форму"]
[null,null,null,null,"Субъект РФ","Московская область"]
[]
[null,null,null,null,"Публикация","На официальном сайте организации"]
[]
[null,null,null,null,null,"Источники публикации"]
[null,null,null,null,{"$f":"\"Сайт\"&IF(strPublication=\"На официальном сайте организации\",\" организации \",\" \")&\"в сети Интернет\"","v":"Сайт организации в сети Интернет"},"a"]
[null,null,null,null,"Печатное издание"]
[]
[null,null,null,null,null,"Период регулирования"]
[null,null,null,null,"Начало очередного периода регулирования","01.01.2014"]
[null,null,null,null,"Окончание очередного периода регулирования","31.12.2014"]
[]
["L0","Признак филиала",null,null,"Является ли данное юридическое лицо подразделением (филиалом) другой организации","нет"]
[]
[null,null,null,null,"Дата последнего обновления реестра организаций: 19.02.2013 21:34:20"]
[66]
[null,null,null,null,"Наименование организации","МУП \"ЖКХ - Раменки\""]
[]
[null,null,null,null,"Наименование ПОДРАЗДЕЛЕНИЯ"]
[]
[null,null,null,null,"ИНН","5011020142"]
[null,null,null,null,"КПП","501101001"]
[]
[null,null,null,null,"Вид деятельности","Поставка горячей воды"]
[]
[]
[null,null,null,null,"Режим налогообложения","специальный (упрощенная система налогообложения, система налогообложения для сельскохозяйственных товаропроизводителей)"]
[]
[null,null,null,null,"Организация выполняет инвестиционную программу","нет"]
[]
[null,null,null,null,null,{"$f":"\"Система \"&IF(TSphere=\"ТС\",\"теплоснабжения\",\"коммунальной инфраструктуры\")","v":"Система коммунальной инфраструктуры"}]
[null,null,null,null,"Условный порядковый номер","9"]
[null,null,null,null,"Описание","горячее водоснабжение"]
[]
[null,null,null,null,"Дата последнего обновления реестра МР/МО: 24.01.2014 12:23:11"]
[]
[null,null,null,null,{"$f":"\"Муниципальный район, на территории которого \" & IF(TSphere = \"ТБО\", \"оказывает услуги данная организация\", \"размещена система \"&IF(TSphere = \"ТС\",\"теплоснабжения\",\"коммунальной инфраструктуры\"))","v":"Муниципальный район, на территории которого размещена система коммунальной инфраструктуры"},{"$f":"\"Муниципальное образование, на территории которого \" & IF(TSphere = \"ТБО\", \"оказывает услуги данная организация\", \"размещена система \"&IF(TSphere = \"ТС\",\"теплоснабжения\",\"коммунальной инфраструктуры\"))","v":"Муниципальное образование, на территории которого размещена система коммунальной инфраструктуры"}]
[null,null,null,null,"Наименование МР","Наименование МО","ОКТМО"]
[null,null,null,null,"Егорьевский муниципальный район","сельское поселение Раменское","46612440"]
[null,null,null,null,null,"Добавить МО"]
[null,null,null,null,"Добавить МР"]
[]
[null,null,null,null,null,"Адрес организации"]
[null,null,null,null,"Юридический адрес:","Московская область, Егорьевский район, с. Раменки д. 30"]
[null,null,null,null,"Почтовый адрес:","140315 М.О., Егорьевский район, с. Раменки, д. 30"]
[]
[null,null,null,null,null,"Руководитель"]
[null,null,null,null,"Фамилия, имя, отчество:","Лебедев Евгений Николаевич"]
[null,null,null,null,"(код) номер телефона:","849640 63 157"]
[]
[null,null,null,null,null,"Главный бухгалтер"]
[null,null,null,null,"Фамилия, имя, отчество:","Муравьева Валентина Александровна"]
[null,null,null,null,"(код) номер телефона:","849640 63 173"]
[]
[null,null,null,null,null,"Должностное лицо, ответственное за составление формы"]
[null,null,null,null,"Фамилия, имя, отчество:","Куликова Валентина Сергеевна"]
[null,null,null,null,"Должность:","экономист"]
[null,null,null,null,"(код) номер телефона:","849640 63 173"]
[null,null,null,null,"e-mail:","zkh-ramenki@mail.ru"]

{"sheet":"ГВС инвестиции","index":6,"n_rows":60,"n_cols":9,"rows_kept":60,"cut":false,"hidden":true,"merged":[[1,5,1,6],[23,5,23,6],[24,5,24,6],[3,4,4,4],[3,5,4,5],[15,3,15,10],[19,5,19,6],[16,3,16,10],[19,8,19,9],[29,5,29,6],[31,5,31,6],[20,5,20,6],[26,5,26,6],[21,5,21,6],[22,5,22,6],[25,5,25,6],[28,5,28,6],[34,5,35,5],[32,4,33,4],[32,5,33,5],[44,5,45,5],[46,4,47,4],[46,5,47,5],[42,4,43,4],[42,5,43,5],[34,4,35,4],[38,5,39,5],[54,4,55,4],[54,5,55,5],[52,4,53,4],[40,4,41,4],[40,5,41,5],[50,4,51,4],[50,5,51,5],[48,5,49,5],[48,4,49,4],[52,5,53,5],[44,4,45,4],[36,4,37,4],[36,5,37,5],[38,4,39,4]]}
[]
[]
[]
[null,null,null,null,null,null,"План на отчетный период"]
[null,null,null,null,null,null,"Факт на начало реализации программы**"]
[]
[]
[]
[]
[]
[]
[]
[]
[]
[null,null,null,{"$f":"code","v":"Код шаблона: JKH.OPEN.INFO.TARIFF.GVS"}]
[null,null,null,"Информация об инвестиционных программах и отчетах об их реализации *"]
[null,null,null,{"$f":"IF(org=\"\",\"\",IF(fil=\"\",org,org & \" (\" & fil & \")\")) & IF(OR(godStart=\"\",godEnd=\"\"),\"\",\", \"&YEAR(godStart)& \"-\" & YEAR(godEnd)&\" гг.\")","v":"МУП \"ЖКХ - Раменки\", 2014-2014 гг."}]
[]
[]
[null,"Мероприятие 1",null,null,"№ п/п","Наименование показателя",null,"Значение","Добавить мероприятие"]
[null,4,null,null,1,{"$f":"E21+1","v":2},null,"3"]
[null,null,null,null,1,"Наименование инвестиционной программы (мероприятия)"]
[null,"х",null,null,2,"Цель инвестиционной программы","Цель инвестиционной программы"]
[null,"",null,null,3,"Срок начала реализации инвестиционной программы",null,""]
[null,"",null,null,4,"Срок окончания реализации инвестиционной программы",null,""]
[null,{"$f":"SUM(B27:B28)","v":0},null,null,"5","Потребность в финансовых средствах, необходимых для реализации инвестиционной программы за весь период реализации (тыс.руб.), в том числе по источникам финансирования:"]
[null,null,null,null,"5.1"]
[null,null,null,null,null,"Добавить источники"]
[null,{"$f":"SUM(B30:B31)","v":0},null,null,"6","Потребность в финансовых средствах, необходимых для реализации инвестиционной программы за отчетный период (тыс.руб.), в том числе по источникам финансирования:"]
[null,null,null,null,"6.1"]
[null,null,null,null,null,"Добавить источники"]
[null,"х",null,null,"7","Эффективность реализации инвестиционной программы (включая изменения технико-экономических показателей организации):",null,"х"]
[null,null,null,null,"7.1","Срок окупаемости, лет","План на отчетный период"]
[null,null,null,null,null,null,"Факт на начало реализации программы**"]
[null,null,null,null,"7.2","Перебои в снабжении потребителей (часов на потребителя)","План на отчетный период"]
[null,null,null,null,null,null,"Факт на начало реализации программы**"]
[null,null,null,null,"7.3","Продолжительность (бесперебойность) поставки товаров и услуг (час/день)","План на отчетный период"]
[null,null,null,null,null,null,"Факт на начало реализации программы**"]
[null,null,null,null,"7.4","Уровень потерь и неучтенного потребления (%)","План на отчетный период"]
[null,null,null,null,null,null,"Факт на начало реализации программы**"]
[null,null,null,null,"7.5","Обеспеченность потребления товаров и услуг приборами учета (%)","План на отчетный период"]
[null,null,null,null,null,null,"Факт на начало реализации программы**"]
[null,null,null,null,"7.6","Численность населения, пользующегося услугами данной организации, чел.","План на отчетный период"]
[null,null,null,null,null,null,"Факт на начало реализации программы**"]
[null,null,null,null,"7.7","Удельное водопотребление, куб.м/чел","План на отчетный период"]
[null,null,null,null,null,null,"Факт на начало реализации программы**"]
[null,null,null,null,"7.8","Расход топлива на 1 куб. м, т.у.т./куб.м","План на отчетный период"]
[null,null,null,null,null,null,"Факт на начало реализации программы**"]
[null,null,null,null,"7.9","Расход электороэнергии на поставку 1 куб.м. горячей воды, кВт∙ч/куб.м.","План на отчетный период"]
[null,null,null,null,null,null,"Факт на начало реализации программы**"]
[null,null,null,null,"7.10","Расход тепловой энергии на 1 куб.м., Гкал/куб.м.","План на отчетный период"]
[null,null,null,null,null,null,"Факт на начало реализации программы**"]
[null,null,null,null,"7.11","Количество аварий на 1 км сетей горячего водоснабжения, ед.","План на отчетный период"]
[null,null,null,null,null,null,"Факт на начало реализации программы**"]
[null,null,null,null,"7.12","Производительность труда, куб.м/чел.","План на отчетный период"]
[null,null,null,null,null,null,"Факт на начало реализации программы**"]
[null,null,null,null,null,"Добавить показатель"]
[null,"Удалить мероприятие"]
[null,null,null,null,"*","Раскрывается не позднее 30 дней со дня принятия соответствующего решения об установлении тарифа(надбавки) на очередной период регулирования."]
[null,null,null,null,"**","На последнюю дату отчетного периода, предшествующего периоду начала реализации инвестиционной программы."]

{"sheet":"ГВС показатели","index":7,"n_rows":67,"n_cols":8,"rows_kept":67,"cut":false,"hidden":true,"merged":[[66,5,66,7],[6,4,6,7],[7,4,7,7]]}
[]
[]
[]
[]
[]
[null,null,null,{"$f":"code","v":"Код шаблона: JKH.OPEN.INFO.TARIFF.GVS"}]
[null,null,null,null,"Информация об основных показателях финансово-хозяйственной деятельности регулируемых организаций, включая структуру основных производственных затрат\n(в части регулируемой деятельности) *"]
[null,null,null,null,{"$f":"IF(org=\"\",\"\",IF(fil=\"\",org,org & \" (\" & fil & \")\")) & IF(OR(godStart=\"\",godEnd=\"\"),\"\",\", \"&YEAR(godStart)& \"-\" & YEAR(godEnd)&\" гг.\")","v":"МУП \"ЖКХ - Раменки\", 2014-2014 гг."}]
[]
[]
[null,null,null,null,"№ п/п","Наименование показателя","Единица измерения","Значение"]
[null,null,null,null,"1","2","3","4"]
[null,null,null,null,"1","Вид регулируемой деятельности","x",{"$f":"IF(activity = \"\",\"\",activity)","v":"Поставка горячей воды"}]
[null,null,null,null,"2","Выручка от регулируемой деятельности","тыс.руб."]
[null,null,null,null,"3","Себестоимость производимых товаров (оказываемых услуг) по регулируемому виду деятельности, в том числе:","тыс.руб.",{"$f":"SUM(H16:H18)+SUM(H22:H23)+SUM(H26:H30)+H33+H36+SUM(H44:H45)","v":0}]
[null,null,null,null,"3.1","Расходы на покупаемую тепловую энергию (мощность), используемую для горячего водоснабжения","тыс.руб."]
[null,null,null,null,"3.2","Расходы на тепловую энергию, производимую с применением собственных источников и используемую для горячего водоснабжения","тыс.руб."]
[null,null,null,null,"3.3","Расходы на покупаемую холодную воду, используемую для горячего водоснабжения, в том числе:","тыс.руб.",{"$f":"SUM(H19:H21)","v":0}]
[null,null,null,null,"3.3.1","технического качества","тыс.руб."]
[null,null,null,null,"3.3.2","питьевого качества","тыс.руб."]
[null,null,null,null,"3.3.3","покупка потерь","тыс.руб."]
[null,null,null,null,"3.4","Расходы на холодную воду, получаемую с применением собственных источников водозабора (скважин) и используемую для горячего водоснабжения","тыс.руб."]
[null,null,null,null,"3.5","Расходы на покупаемую электрическую энергию (мощность), потребляемую оборудованием, используемым в технологическом процессе:","тыс.руб."]
[null,null,null,null,"3.5.1","средневзвешенная стоимость 1 кВт*ч","руб."]
[null,null,null,null,"3.5.2","объем приобретенной электрической энергии","тыс.кВт*ч"]
[null,null,null,null,"3.6","Расходы на оплату труда основного производственного персонала","тыс.руб."]
[null,null,null,null,"3.7","Отчисления на социальные нужды основного производственного персонала","тыс.руб."]
[null,null,null,null,"3.8","Расходы на амортизацию основных производственных средств","тыс.руб."]
[null,null,null,null,"3.9","Расходы на аренду имущества, используемого в технологическом процессе","тыс.руб."]
[null,null,null,null,"3.10","Общепроизводственные (цеховые) расходы","тыс.руб."]
[null,null,null,null,"3.10.1","расходы на оплату труда","тыс.руб."]
[null,null,null,null,"3.10.2","отчисления на социальные нужды","тыс.руб."]
[null,null,null,null,"3.11","Общехозяйственные (управленческие) расходы","тыс.руб."]
[null,null,null,null,"3.11.1","расходы на оплату труда","тыс.руб."]
[null,null,null,null,"3.11.2","отчисления на социальные нужды","тыс.руб."]
[null,null,null,null,"3.12","Расходы на ремонт (капитальный и текущий) основных производственных средств, в том числе:","тыс.руб."]
[null,null,null,null,"3.12.1","Справочно: расходы на капитальный ремонт основных производственных средств","тыс.руб."]
[null,null,null,null,"3.12.2","Справочно: расходы на текущий ремонт основных производственных средств","тыс.руб."]
[null,null,null,null,"3.13","Расходы на техническое обслуживание основных производственных средств, в том числе:","тыс.руб."]
[null,null,null,null,"3.13.1","заработная плата ремонтного персонала","тыс.руб."]
[null,null,null,null,"3.13.2","среднемесячная оплата труда рабочего 1 разряда (в случае отсутствия тарифной сетки - средняя оплата труда рабочих)","руб."]
[null,null,null,null,"3.13.3","численность ремонтного персонала на конец отчетного периода","чел."]
[null,null,null,null,"3.13.4","отчисления на соц. нужды от заработной платы ремонтного персонала","тыс.руб."]
[null,null,null,null,"3.14","Расходы на услуги производственного характера, выполняемые по договорам с организациями на проведение регламентных работ в рамках технологического процесса","тыс.руб."]
[null,null,null,null,null,"Добавить запись"]
[null,null,null,null,"4","Валовая прибыль от продажи товаров и услуг по регулируемому виду деятельности (горячее водоснабжение)","тыс.руб."]
[null,null,null,null,"5","Чистая прибыль по регулируемому виду деятельности, в том числе: ","тыс.руб."]
[null,null,null,null,"5.1","чистая прибыль на финансирование мероприятий, предусмотренных инвестиционной программой по развитию системы горячего водоснабжения","тыс.руб."]
[null,null,null,null,"6","Объем покупаемой холодной воды, используемой для горячего водоснабжения, в том числе:","тыс.куб.м",{"$f":"SUM(H50:H51)","v":0}]
[null,null,null,null,"6.1","технического качества","тыс.куб.м"]
[null,null,null,null,"6.2","питьевого качества","тыс.куб.м"]
[null,null,null,null,"7","Объем холодной воды, получаемой с применением собственных источников водозабора (скважин) и используемой для горячего водоснабжения","тыс.куб.м"]
[null,null,null,null,"8","Объем покупаемой тепловой энергии (мощности), используемой для горячего водоснабжения","тыс. Гкал"]
[null,null,null,null,"9","Объем тепловой энергии, производимой с применением собственных источников и используемой для горячего водоснабжения","тыс. Гкал"]
[null,null,null,null,"10","Объем отпущенной потребителям тепловой энергии (по ГВС), в том числе:","тыс. Гкал",{"$f":"SUM(H56:H57)","v":0}]
[null,null,null,null,"10.1","по приборам учета","тыс. Гкал"]
[null,null,null,null,"10.2","по нормативам потребления (расчетным методом)","тыс. Гкал"]
[null,null,null,null,"11","Объем отпущенной потребителям горячей воды, в том числе:","тыс.куб.м"]
[null,null,null,null,"11.1","по приборам учета","тыс.куб.м"]
[null,null,null,null,"11.2","по нормативам потребления (расчетным методом)","тыс.куб.м"]
[null,null,null,null,"12","Потери воды в сетях ГВС","%"]
[null,null,null,null,"13","Коэффициент потерь тепла трубопроводами систем централизованного ГВС","гКал/час"]
[null,null,null,null,"14","Протяженность водопроводных сетей (в однотрубном исчислении)","км"]
[null,null,null,null,"15","Среднесписочная численность основного производственного персонала","чел."]
[null,null,null,null,"16","Удельный расход электроэнергии на подачу воды в сеть(учитывать электроэнергию всех насосных и подкачивающих станций)","кВт*ч/.куб.м"]
[null,null,null,null,"17","Комментарии"]
[null,null,null,null,"*","Раскрывается не позднее 30 дней со дня принятия соответствующего решения об установлении тарифа(надбавки) на очередной период регулирования."]

{"sheet":"ГВС показатели (2)","index":8,"n_rows":28,"n_cols":13,"rows_kept":28,"cut":false,"hidden":true,"merged":[[15,4,18,4],[15,5,18,5],[16,6,17,6],[16,7,17,7],[5,3,5,5],[7,3,7,13],[13,5,13,10],[14,5,14,10],[6,4,6,12],[20,5,20,10],[21,5,21,10],[22,4,25,4],[22,5,25,5],[23,6,24,6],[23,7,24,7]]}
[]
[]
[]
[]
[]
[null,null,null,{"$f":"code","v":"Код шаблона: JKH.OPEN.INFO.TARIFF.GVS"}]
[null,null,null,null,"Информация об объемах товаров и услуг, их стоимости и способах приобретения *"]
[null,null,null,{"$f":"IF(org=\"\",\"\",IF(fil=\"\",org,org & \" (\" & fil & \")\")) & IF(OR(godStart=\"\",godEnd=\"\"),\"\",\", \"&YEAR(godStart)& \"-\" & YEAR(godEnd)&\" гг.\")","v":"МУП \"ЖКХ - Раменки\", 2014-2014 гг."}]
[]
[]
[]
[null,null,null,null,"№ п/п","Наименование поставщика","Способ приобретения","Реквизиты договора","Наименование товара/услуги","Объем приобретенных товаров, услуг","Единица измерения объема","Стоимость, тыс.руб.","Доля расходов, % (от суммы расходов по указанной статье)"]
[null,null,null,null,1,2,3,4,5,6,7,8,9]
[null,null,null,null,1,"Расходы на ремонт (текущий и капитальный) основных производственных средств итого. Из них:",null,null,null,null,null,{"$f":"costs_OPS_4","v":0}]
[null,null,null,null,"1.1","Товары и услуги, приобретенные у организаций, сумма оплаты услуг которых превышает 20% суммы расходов по статье"]
[null,null,null,null,"1.1.1",null,"Итого по поставщику",null,null,null,null,{"$f":"SUM(L17:L19)","v":0},{"$f":"nerr(L16/costs_OPS_4)*100","v":0}]
[]
[null,null,null,null,null,null,null,null,"Добавить запись"]
[null,null,null,null,null,null,"Добавить способ"]
[null,null,null,null,null,"Добавить поставщика"]
[null,null,null,null,2,"Расходы на услуги производственного характера, выполняемые по договорам с организациями на проведение регламентных работ в рамках технологического процесса. Из них:",null,null,null,null,null,{"$f":"costs_PH_4","v":0}]
[null,null,null,null,"2.1","Товары и услуги, приобретенные у организаций, сумма оплаты услуг которых превышает 20% суммы расходов по статье"]
[null,null,null,null,"2.1.1",null,"Итого по поставщику",null,null,null,null,{"$f":"SUM(L24:L26)","v":0},{"$f":"nerr(L23/costs_PH_4)*100","v":0}]
[]
[null,null,null,null,null,null,null,null,"Добавить запись"]
[null,null,null,null,null,null,"Добавить способ"]
[null,null,null,null,null,"Добавить поставщика"]
[null,null,null,null,"*","Раскрывается не позднее 30 дней со дня принятия соответствующего решения об установлении тарифа(надбавки) на очередной период регулирования."]

{"sheet":"Ссылки на публикации","index":9,"n_rows":48,"n_cols":12,"rows_kept":48,"cut":false,"hidden":false,"merged":[[43,6,43,11],[44,6,44,11],[45,6,45,11],[5,3,5,5],[6,3,6,12],[7,3,7,12],[10,4,10,10],[42,6,42,11]]}
[]
[]
[]
[]
[]
[null,null,null,{"$f":"code","v":"Код шаблона: JKH.OPEN.INFO.TARIFF.GVS"}]
[null,null,null,{"$f":"\"Ссылки на публикации \"&IF(strPublication=\"На официальном сайте организации\",\"на официальном сайте организации\",\"в других источниках\")","v":"Ссылки на публикации на официальном сайте организации"}]
[null,null,null,{"$f":"IF(org=\"\",\"\",IF(fil=\"\",org,org & \" (\" & fil & \")\")) & IF(OR(godStart=\"\",godEnd=\"\"),\"\",\", \"&YEAR(godStart)& \"-\" & YEAR(godEnd)&\" гг.\")","v":"МУП \"ЖКХ - Раменки\", 2014-2014 гг."}]
[]
[]
[null,null,null,null,{"$f":"\"Указание на официальное печатное издание и (или) адрес сайта\"&IF(strPublication=\"На официальном сайте организации\",\" организации \",\" \")&\"в сети Интернет, которые используются для размещения раскрываемой информации *\"","v":"Указание на официальное печатное издание и (или) адрес сайта организации в сети Интернет, которые используются для размещения раскрываемой информации *"}]
[null,null,null,null,null,null,null,"True"]
[null,null,null,null,"№ п/п","Содержание","Наименование источника",null,"Дата размещения информации","Номер печатного издания","Дата печатного издания",{"$f":"IF(strPublication=\"На официальном сайте организации\",\"Адрес страницы официального сайта организации в сети интернет, на которой размещена раскрываемая информация\",\"Адрес сайта в сети Интернет\")","v":"Адрес страницы официального сайта организации в сети интернет, на которой размещена раскрываемая информация"}]
[null,null,null,null,1,{"$f":"E14+1","v":2},3,3,{"$f":"H14+1","v":4},{"$f":"I14+1","v":5},{"$f":"J14+1","v":6},{"$f":"K14+1","v":7}]
[]
[]
[]
[null,null,null,null,"1.2","Информация об основных показателях финансово-хозяйственной деятельности регулируемых организаций, включая структуру основных производственных затрат (в части регулируемой деятельности)"]
[null,null,null,null,"1.2.1",{"$f":"\"Сайт\"&IF(strPublication=\"На официальном сайте организации\",\" организации \",\" \")&\"в сети Интернет\"","v":"Сайт организации в сети Интернет"},"zkh-ramenki.narod2.ru",null,"24.01.2014","x","x","тарифы"]
[null,null,null,null,"1.2.2","Печатное издание",null,null,null,null,null,"x"]
[null,null,null,null,"1.3","Информация о расходах на капитальный и текущий ремонт, услуги производственного характера"]
[null,null,null,null,"1.3.1",{"$f":"\"Сайт\"&IF(strPublication=\"На официальном сайте организации\",\" организации \",\" \")&\"в сети Интернет\"","v":"Сайт организации в сети Интернет"},"zkh-ramenki.narod2.ru",null,"24.01.2014","x","x","тарифы"]
[null,null,null,null,"1.3.2","Печатное издание",null,null,null,null,null,"x"]
[null,null,null,null,"1.4",{"$f":"\"Условия публичных договоров  поставок регулируемых товаров, оказания регулируемых услуг, в том числе договоров на подключение к системе \"&TSphere_full","v":"Условия публичных договоров  поставок регулируемых товаров, оказания регулируемых услуг, в том числе договоров на подключение к системе горячего водоснабжения"}]
[null,null,null,null,"1.4.1",{"$f":"\"Сайт\"&IF(strPublication=\"На официальном сайте организации\",\" организации \",\" \")&\"в сети Интернет\"","v":"Сайт организации в сети Интернет"},"zkh-ramenki.narod2.ru",null,"24.01.2014","x","x","тарифы"]
[null,null,null,null,"1.4.2","Печатное издание",null,null,null,null,null,"x"]
[null,null,null,null,"1.5",{"$f":"\"Форма заявки на подключение к системе \"&TSphere_full","v":"Форма заявки на подключение к системе горячего водоснабжения"}]
[null,null,null,null,"1.5.1",{"$f":"\"Сайт\"&IF(strPublication=\"На официальном сайте организации\",\" организации \",\" \")&\"в сети Интернет\"","v":"Сайт организации в сети Интернет"},"zkh-ramenki.narod2.ru",null,"24.01.2014","x","x","тарифы"]
[null,null,null,null,"1.5.2","Печатное издание",null,null,null,null,null,"x"]
[null,null,null,null,"1.6",{"$f":"\"Перечень и формы документов, представляемых одновременно с заявкой на подключение к системе \"&TSphere_full","v":"Перечень и формы документов, представляемых одновременно с заявкой на подключение к системе горячего водоснабжения"}]
[null,null,null,null,"1.6.1",{"$f":"\"Сайт\"&IF(strPublication=\"На официальном сайте организации\",\" организации \",\" \")&\"в сети Интернет\"","v":"Сайт организации в сети Интернет"},"zkh-ramenki.narod2.ru",null,"24.01.2014","x","x","тарифы"]
[null,null,null,null,"1.6.2","Печатное издание",null,null,null,null,null,"x"]
[null,null,null,null,"1.7","Описание (со ссылкой на нормативные акты) порядка действий  заявителя  и регулируемой организации при  подаче, приеме, обработке заявки на подключение к системе"]
[null,null,null,null,null,{"$f":"TSphere_full&\", принятии решения и уведомлении о принятом решении\"","v":"горячего водоснабжения, принятии решения и уведомлении о принятом решении"}]
[null,null,null,null,"1.7.1",{"$f":"\"Сайт\"&IF(strPublication=\"На официальном сайте организации\",\" организации \",\" \")&\"в сети Интернет\"","v":"Сайт организации в сети Интернет"},"zkh-ramenki.narod2.ru",null,"24.01.2014","x","x","тарифы"]
[null,null,null,null,"1.7.2","Печатное издание",null,null,null,null,null,"x"]
[null,null,null,null,"1.8",{"$f":"\"Наименование и контакты службы, ответственной за прием и обработку заявок на подключение к системе \"&TSphere_full","v":"Наименование и контакты службы, ответственной за прием и обработку заявок на подключение к системе горячего водоснабжения"}]
[null,null,null,null,"1.8.1",{"$f":"\"Сайт\"&IF(strPublication=\"На официальном сайте организации\",\" организации \",\" \")&\"в сети Интернет\"","v":"Сайт организации в сети Интернет"},"zkh-ramenki.narod2.ru",null,"24.01.2014","x","x","тарифы"]
[null,null,null,null,"1.8.2","Печатное издание",null,null,null,null,null,"x"]
[null,null,null,null,"1.8"]
[null,null,null,null,null,"Добавить запись"]
[null,null,null,null,"2",{"$f":"\"Справочно: Контакты службы, ответственной за прием и обработку заявок на подключение к системе  \"&TSphere_full","v":"Справочно: Контакты службы, ответственной за прием и обработку заявок на подключение к системе  горячего водоснабжения"}]
[null,null,null,null,"2.1","Адрес"]
[null,null,null,null,"2.2","(код) Номер телефона"]
[null,null,null,null,"2.3","E-mail"]
[null,null,null,null,"2.4","Сайт в сети Интернет"]
[null,null,null,null,"*","Источники публикации сообщаются в течение 5 рабочих дней со дня размещения информации на сайте в сети Интернет."]
[null,null,null,null,null,"Информация раскрывается не позднее 30 дней со дня принятия соответствующего решения об установлении тарифа(надбавки) на очередной период регулирования."]

{"sheet":"Комментарии","index":10,"n_rows":13,"n_cols":6,"rows_kept":13,"cut":false,"hidden":false,"merged":[[6,3,6,5],[7,3,7,5]]}
[]
[]
[]
[]
[]
[null,null,null,{"$f":"code","v":"Код шаблона: JKH.OPEN.INFO.TARIFF.GVS"}]
[null,null,null,"КОММЕНТАРИИ"]
[null,null,null,{"$f":"IF(org=\"\",\"\",IF(fil=\"\",org,org & \" (\" & fil & \")\")) & IF(OR(godStart=\"\",godEnd=\"\"),\"\",\", \"&YEAR(godStart)& \"-\" & YEAR(godEnd)&\" гг.\")","v":"МУП \"ЖКХ - Раменки\", 2014-2014 гг."}]
[]
[null,null,null,null,"№ п/п","Комментарий"]
[null,null,null,null,1,{"$f":"E11+1","v":2}]
[null,null,null,null,1]
[null,null,null,null,null,"Добавить комментарий"]

{"sheet":"Проверка","index":11,"n_rows":22,"n_cols":8,"rows_kept":22,"cut":false,"hidden":false,"merged":[[7,4,7,7]]}
[]
[]
[]
[]
[]
[]
[]
[null,null,null,null,"Результаты проверки"]
[]
[null,null,null,null,"Ссылка 1","Ссылка 2","Описание причины","Обязательность выполнения"]
[null,null,null,null,"Титульный!F13",null,"Не указан источник информации: 'Печатное издание' на листе 'Титульный'!","Предупреждение"]
[null,null,null,null,"Ссылки на публикации!G43",null,"Не указано значение на листе 'Ссылки на публикации'!","Предупреждение"]
[null,null,null,null,"Ссылки на публикации!G44",null,"Не указано значение на листе 'Ссылки на публикации'!","Предупреждение"]
[null,null,null,null,"Ссылки на публикации!G45",null,"Не указано значение на листе 'Ссылки на публикации'!","Предупреждение"]
[null,null,null,null,"Ссылки на публикации!G46",null,"Не указано значение на листе 'Ссылки на публикации'!","Предупреждение"]
[null,null,null,null,"Ссылки на публикации!L19",null,"Не верно указана гиперссылка в поле 'Адрес сайта в сети Интернет' на листе 'Ссылки на публикации'!","Предупреждение"]
[null,null,null,null,"Ссылки на публикации!L22",null,"Не верно указана гиперссылка в поле 'Адрес сайта в сети Интернет' на листе 'Ссылки на публикации'!","Предупреждение"]
[null,null,null,null,"Ссылки на публикации!L25",null,"Не верно указана гиперссылка в поле 'Адрес сайта в сети Интернет' на листе 'Ссылки на публикации'!","Предупреждение"]
[null,null,null,null,"Ссылки на публикации!L28",null,"Не верно указана гиперссылка в поле 'Адрес сайта в сети Интернет' на листе 'Ссылки на публикации'!","Предупреждение"]
[null,null,null,null,"Ссылки на публикации!L31",null,"Не верно указана гиперссылка в поле 'Адрес сайта в сети Интернет' на листе 'Ссылки на публикации'!","Предупреждение"]
[null,null,null,null,"Ссылки на публикации!L35",null,"Не верно указана гиперссылка в поле 'Адрес сайта в сети Интернет' на листе 'Ссылки на публикации'!","Предупреждение"]
[null,null,null,null,"Ссылки на публикации!L38",null,"Не верно указана гиперссылка в поле 'Адрес сайта в сети Интернет' на листе 'Ссылки на публикации'!","Предупреждение"]

{"sheet":"TEHSHEET","index":12,"n_rows":85,"n_cols":96,"rows_kept":85,"cut":false,"hidden":true,"merged":[[0,17,0,18]]}
["Логика","Кварталы","Года","Единица измерения","Месяц-текст","Месяц-число","Номер СКИ\n/SKI_number/","День-число","Регионы","Вид деятельности","Источники финансирования","Единица измерения","Вид тарифа на передачу тепловой энергии /kind_of_tariff_unit/","НДС /kind_of_NDS/","цель инвестиционной программы /objective_of_IPR/","цель инвестиционной программы /kind_of_purchase_method/","наименование источника\n/kind_of_name_source/","Виды топлива\n/kind_of_fuels/",null,"регионы-исключения\n/region_exception/",null,"версия шаблона\n (DocProp_Version)","5.0.1",null,null,null,null,null,null,null,null,null,null,null,null,null,null,null,null,null,null,null,null,null,null,null,null,null,null,null,null,null,null,null,null,null,null,null,null,null,null,null,null,null,null,null,null,null,null,null,null,null,null,null,null,null,null,null,null,null,null,null,null,null,null,null,null,null,null,null,null,null,null,null,null,"5.86"]
["да","I квартал",2006,"тыс.руб.","январь","01","1","01","Алтайский край","Оказание услуг в сфере водоотведения и очистки сточных вод","кредиты банков","тыс.куб м/сутки","руб./Гкал/ч/мес","общий","автоматизация (с уменьшением штата)","торги/аукционы","наименование источника","газ природный по регулируемой цене","тыс. м3","Краснодарский край",null,"код шаблона\n(DocProp_TemplateCode)","JKH.OPEN.INFO.TARIFF.GVS"]
["нет","II квартал",2007,"млн.руб.","февраль","02","2","02","Амурская область","Оказание услуг по перекачке","кредиты иностранных банков","Гкал/час","руб./Гкал","общий с учетом освобождения от уплаты НДС","уменьшение удельных затрат (повышение КПД)","прямые договора без торгов","не раскрывалась","газ природный по нерегулируемой цене","тыс. м3","Кировская область",null,"сфера\n(TSphere)","ГВС"]
[null,"III квартал",2008,null,"март","03","3","03","Архангельская область","Оказание услуг в сфере водоснабжения, водоотведения и очистки сточных вод","заемные ср-ва др. организаций","куб.м/час",null,"специальный (упрощенная система налогообложения, система налогообложения для сельскохозяйственных товаропроизводителей)","уменьшение издержек на производство","прочее",null,"газ сжиженный","кг","Республика Башкортостан",null,"сфера(латиница)\n(TSphere_trans)","GVS"]
[null,"IV квартал",2009,null,"апрель","04","4","04","Астраханская область",null,"федеральный бюджет",null,null,null,"снижение аварийности",null,null,"газовый конденсат","тонны","г.Санкт-Петербург",null,"сфера расширено\n(TSphere_full)","горячего водоснабжения"]
[null,null,2010,null,"май","05","5","05","Белгородская область","Вид деятельности, на которую установлен тариф /kind_of_activity_WARM/","бюджет субъекта РФ",null,null,null,"прочее",null,null,"гшз","тонны","Чувашская республика",null,"признак общего шаблона\n(flag_main_template)","False"]
[null,null,2011,null,"июнь","06","6","06","Брянская область","Комбинированная выработка","бюджет муниципального образования",null,null,null,null,null,null,"мазут","тонны","Пермский край"]
[null,null,2012,null,"июль","07","7","07","Владимирская область","Некомбинированная выработка","ср-ва внебюджетных фондов",null,null,null,null,null,null,"нефть","тонны","Республика Татарстан"]
[null,null,2013,null,"август","08","8","08","Волгоградская область","Нет производства т/э","прибыль, направляемая на инвестиции",null,null,null,null,null,null,"дизельное топливо","тонны","Иркутская область"]
[null,null,2014,null,"сентябрь","09","9","09","Вологодская область","Смешанное производство","амортизация",null,null,null,null,null,null,"уголь бурый","тонны","Алтайский край"]
[null,null,2015,null,"октябрь",10,"10",10,"Воронежская область","Вид деятельности, на которую установлен тариф /kind_of_activity_HVS/","инвестиционная надбавка к тарифу",null,null,null,null,null,null,"уголь каменный","тонны"]
[null,null,null,null,"ноябрь",11,"11",11,"г.Байконур","Водоснабжение (подъем, очистка, транспортировка)","плата за подключение",null,null,null,null,null,null,"торф","тонны"]
[null,null,null,null,"декабрь",12,"12",12,"г. Москва","Подъем","прочие средства",null,null,null,null,null,null,"дрова","м3"]
[null,null,null,null,null,null,"13",13,"г.Санкт-Петербург","Транспортировка",null,null,null,null,null,null,null,"опил","м3"]
[null,null,null,null,null,null,"14",14,"Еврейская автономная область","Вид деятельности, на которую установлен тариф /kind_of_activity_VO/",null,null,null,null,null,null,null,"отходы березовые","м3"]
[null,null,null,null,null,null,"15",15,"Забайкальский край","Транспортировка и очистка сточных вод","XML_ORG_LIST_TAG_NAMES",null,null,null,null,null,null,"отходы осиновые","м3"]
[null,null,null,null,null,null,"16",16,"Ивановская область","Транспортировка сточных вод","NSRF",null,null,null,null,null,null,"печное топливо","тонны"]
[null,null,null,null,null,null,"17",17,"Иркутская область","Очистка сточных вод","MR_NAME",null,null,null,null,null,null,"пилеты","тонны"]
[null,null,null,null,null,null,"18",18,"Кабардино-Балкарская республика",null,"OKTMO_MR_NAME",null,null,null,null,null,null,"смола","тонны"]
[null,null,null,null,null,null,"19",19,"Калининградская область",null,"MO_NAME",null,null,null,null,null,null,"щепа","м3"]
[null,null,null,null,null,null,"20",20,"Калужская область",null,"OKTMO_NAME",null,null,null,null,null,null,"горючий сланец","тонны"]
[null,null,null,null,null,null,null,21,"Камчатский край",null,"ORG_NAME",null,null,null,null,null,null,"керосин","тонны"]
[null,null,null,null,null,null,null,22,"Карачаево-Черкесская республика",null,"INN_NAME",null,null,null,null,null,null,"кислородно-водородная смесь","тыс. м3"]
[null,null,null,null,null,null,null,23,"Кемеровская область",null,"KPP_NAME",null,null,null,null,null,null,"электроэнергия (НН)","тыс.кВт ч"]
[null,null,null,null,null,null,null,24,"Кировская область",null,"VDET_NAME",null,null,null,null,null,null,"электроэнергия (СН1)","тыс.кВт ч"]
[null,null,null,null,null,null,null,25,"Костромская область",null,null,null,null,null,null,null,null,"электроэнергия (СН2)","тыс.кВт ч"]
[null,null,null,null,null,null,null,26,"Краснодарский край",null,"XML_MR_MO_OKTMO_LIST_TAG_NAMES",null,null,null,null,null,null,"электроэнергия (ВН)","тыс.кВт ч"]
[null,null,null,null,null,null,null,27,"Красноярский край",null,"NSRF",null,null,null,null,null,null,"мощность","тыс.кВт"]
[null,null,null,null,null,null,null,28,"Курганская область",null,"MR_NAME",null,null,null,null,null,null,"прочее"]
[null,null,null,null,null,null,null,29,"Курская область",null,"OKTMO_MR_NAME"]
[null,null,null,null,null,null,null,30,"Ленинградская область",null,"MO_NAME"]
[null,null,null,null,null,null,null,31,"Липецкая область",null,"OKTMO_NAME"]
[null,null,null,null,null,null,null,null,"Магаданская область"]
[null,null,null,null,null,null,null,null,"Московская область"]
[null,null,null,null,null,null,null,null,"Мурманская область"]
[null,null,null,null,null,null,null,null,"Ненецкий автономный округ"]
[null,null,null,null,null,null,null,null,"Нижегородская область"]
[null,null,null,null,null,null,null,null,"Новгородская область"]
[null,null,null,null,null,null,null,null,"Новосибирская область"]
[null,null,null,null,null,null,null,null,"Омская область"]
[null,null,null,null,null,null,null,null,"Оренбургская область"]
[null,null,null,null,null,null,null,null,"Орловская область"]
[null,null,null,null,null,null,null,null,"Пензенская область"]
[null,null,null,null,null,null,null,null,"Пермский край"]
[null,null,null,null,null,null,null,null,"Приморский край"]
[null,null,null,null,null,null,null,null,"Псковская область"]
[null,null,null,null,null,null,null,null,"Республика Адыгея"]
[null,null,null,null,null,null,null,null,"Республика Алтай"]
[null,null,null,null,null,null,null,null,"Республика Башкортостан"]
[null,null,null,null,null,null,null,null,"Республика Бурятия"]
[null,null,null,null,null,null,null,null,"Республика Дагестан"]
[null,null,null,null,null,null,null,null,"Республика Ингушетия"]
[null,null,null,null,null,null,null,null,"Республика Калмыкия"]
[null,null,null,null,null,null,null,null,"Республика Карелия"]
[null,null,null,null,null,null,null,null,"Республика Коми"]
[null,null,null,null,null,null,null,null,"Республика Марий Эл"]
[null,null,null,null,null,null,null,null,"Республика Мордовия"]
[null,null,null,null,null,null,null,null,"Республика Саха (Якутия)"]
[null,null,null,null,null,null,null,null,"Республика Северная Осетия-Алания"]
[null,null,null,null,null,null,null,null,"Республика Татарстан"]
[null,null,null,null,null,null,null,null,"Республика Тыва"]
[null,null,null,null,null,null,null,null,"Республика Хакасия"]
[null,null,null,null,null,null,null,null,"Ростовская область"]
[null,null,null,null,null,null,null,null,"Рязанская область"]
[null,null,null,null,null,null,null,null,"Самарская область"]
[null,null,null,null,null,null,null,null,"Саратовская область"]
[null,null,null,null,null,null,null,null,"Сахалинская область"]
[null,null,null,null,null,null,null,null,"Свердловская область"]
[null,null,null,null,null,null,null,null,"Смоленская область"]
[null,null,null,null,null,null,null,null,"Ставропольский край"]
[null,null,null,null,null,null,null,null,"Тамбовская область"]
[null,null,null,null,null,null,null,null,"Тверская область"]
[null,null,null,null,null,null,null,null,"Томская область"]
[null,null,null,null,null,null,null,null,"Тульская область"]
[null,null,null,null,null,null,null,null,"Тюменская область"]
[null,null,null,null,null,null,null,null,"Удмуртская республика"]
[null,null,null,null,null,null,null,null,"Ульяновская область"]
[null,null,null,null,null,null,null,null,"Хабаровский край"]
[null,null,null,null,null,null,null,null,"Ханты-Мансийский автономный округ"]
[null,null,null,null,null,null,null,null,"Челябинская область"]
[null,null,null,null,null,null,null,null,"Чеченская республика"]
[null,null,null,null,null,null,null,null,"Чувашская республика"]
[null,null,null,null,null,null,null,null,"Чукотский автономный округ"]
[null,null,null,null,null,null,null,null,"Ямало-Ненецкий автономный округ"]
[null,null,null,null,null,null,null,null,"Ярославская область"]

{"sheet":"CheckCopy","index":13,"n_rows":10,"n_cols":8,"rows_kept":10,"cut":false,"hidden":true,"merged":[[7,4,7,7]]}
[]
[]
[]
[]
[]
[]
[]
[null,null,null,null,"Результаты проверки"]
[]
[null,null,null,null,"Ссылка 1","Ссылка 2","Описание причины","Обязательность выполнения"]

{"sheet":"AllSheetsInThisWorkbook","index":14,"n_rows":32,"n_cols":2,"rows_kept":32,"cut":false,"hidden":true,"merged":[]}
["Расчетные листы","Скрытые листы"]
["Инструкция","TEHSHEET"]
["Справочная информация","CheckCopy"]
["Лог обновления","AllSheetsInThisWorkbook"]
["Выбор субъекта РФ","et_union"]
["Титульный","modInfo"]
["ГВС инвестиции","REESTR_ORG"]
["ГВС показатели","modHyperlink"]
["ГВС показатели (2)","modChange"]
["Ссылки на публикации","modTitleSheetHeaders"]
["Комментарии","modServiceModule"]
["Проверка","modClassifierValidate"]
[null,"Паспорт"]
[null,"REESTR_FILTERED"]
[null,"REESTR_MO"]
[null,"modfrmReestr"]
[null,"modDblClick"]
[null,"modfrmDateChoose"]
[null,"modfrmSphereChoose"]
[null,"modReestrMO"]
[null,"modSheetMain01"]
[null,"modSheetMain03"]
[null,"modSheetMain04"]
[null,"modSheetMain06"]
[null,"modSheetMain07"]
[null,"modSheetMain08"]
[null,"modUpdTemplMain"]
[null,"modRegionSelectSub"]
[null,"modfrmCheckUpdates"]
[null,"modCommonProv"]
[null,"modProvGeneralProc"]
[null,"modThisWorkbook"]

{"sheet":"et_union","index":15,"n_rows":66,"n_cols":13,"rows_kept":66,"cut":false,"hidden":true,"merged":[[22,7,23,7],[29,4,32,4],[29,5,32,5],[30,6,31,6],[30,7,31,7],[7,4,11,4],[42,4,43,4],[21,4,24,4],[21,5,24,5],[22,6,23,6]]}
[]
["add_INDEX_range"]
[]
[null,null,null,null,null,null,"тыс.руб."]
[]
["add_INDEX_WARM_range"]
[]
[null,null,null,null,"3.2.1",null,"тыс.руб."]
[null,null,null,null,null,"Стоимость","тыс.руб."]
[null,null,null,null,null,"Объем"]
[null,null,null,null,null,"Стоимость 1й единицы объема с учетом доставки (транспортировки)","тыс.руб.",{"$f":"nerr(H8/H10)","v":0}]
[null,null,null,null,null,"Способ приобретения","x"]
[]
["add_INDEX_HVS_object_range"]
[]
[null,null,null,null,null,null,"%"]
[]
["add_INDEX_2_SUPPLIER_range_1"]
["add_INDEX_2_ACQUISITION_range_1"]
["add_INDEX_2_RECORD_range"]
[]
[null,null,null,null,"1.1.1",null,"Итого по поставщику",null,null,null,null,{"$f":"SUM(L23:L25)","v":0},{"$f":"nerr(L22/costs_OPS_4)*100","v":0}]
[]
[null,null,null,null,null,null,null,null,"Добавить запись"]
[null,null,null,null,null,null,"Добавить способ"]
[]
["add_INDEX_2_SUPPLIER_2_range_1"]
["add_INDEX_2_ACQUISITION_2_range_1"]
[]
[null,null,null,null,"2.1.1",null,"Итого по поставщику",null,null,null,null,{"$f":"SUM(L31:L33)","v":0},{"$f":"nerr(L30/costs_PH_4)*100","v":0}]
[]
[null,null,null,null,null,null,null,null,"Добавить запись"]
[null,null,null,null,null,null,"Добавить способ"]
[]
["add_HYPERLINK_range"]
[]
[]
[]
[]
["add_MR_range"]
["add_MO_range"]
[]
[]
[null,null,null,null,null,"Добавить МО"]
[]
[]
["edit_ipr_pub"]
[]
[null,null,null,null,"1.1","Информация об инвестиционных программах и отчетах об их реализации **"]
[null,null,null,null,"1.1.1",{"$f":"\"Сайт\"&IF(strPublication=\"На официальном сайте организации\",\" организации \",\" \")&\"в сети Интернет\"","v":"Сайт организации в сети Интернет"},null,null,null,"x","x"]
[null,null,null,null,"1.1.2","Печатное издание",null,null,null,null,null,"x"]
[]
[]
["edit_ipr_pub_SPb"]
[]
[null,null,null,null,"1.1","Информация об инвестиционных программах и отчетах об их реализации **"]
[null,null,null,null,"1.1.1",{"$f":"\"Сайт\"&IF(strPublication=\"На официальном сайте организации\",\" организации \",\" \")&\"в сети Интернет\"","v":"Сайт организации в сети Интернет"},null,null,null,"x","x"]
[null,null,null,null,"1.1.2","Печатное издание",null,null,null,null,null,"x"]
[null,null,null,null,"1.1.3","Электронная версия печатного издания"]
[]
["edit_ipr_pub_comm"]
["edit_ipr_pub_comm_SPb"]
[]
[null,null,null,null,"**","Информация подлежит публикованию в официальных печатных изданиях (со ссылкой на адрес сайта в сети Интернет)."]
[]
["add_COMMENTS_range"]

{"sheet":"modInfo","index":16,"n_rows":17,"n_cols":2,"rows_kept":17,"cut":false,"hidden":true,"merged":[]}
[null,"Титульный"]
[null,"В зависимости от выбранного значения в поле \"Публикация\" изменяется содержание и количество листов"]
[null,{"$f":" IF(TSphere = \"ТБО\", \"Перечислите все муниципальные районы, в которых организация осуществляет услуги по утилизации (захоронению) твердых бытовых отходов\", \"В случае, если тариф не дифференцируется по системам \"&IF(TSphere = \"ТС\",\"теплоснабжения\",\"коммунальной инфраструктуры\")&\", перечислите все муниципальные районы, в которых организация осуществляет услуги \" &TSphere_full)","v":"В случае, если тариф не дифференцируется по системам коммунальной инфраструктуры, перечислите все муниципальные районы, в которых организация осуществляет услуги горячего водоснабжения"}]
[null,{"$f":" IF(TSphere = \"ТБО\", \"Перечислите все муниципальные образования, в которых организация осуществляет услуги по утилизации (захоронению) твердых бытовых отходов\", \"В случае, если тариф не дифференцируется по системам \"&IF(TSphere = \"ТС\",\"теплоснабжения\",\"коммунальной инфраструктуры\")&\", перечислите все муниципальные образования, в которых организация осуществляет услуги \" &TSphere_full)","v":"В случае, если тариф не дифференцируется по системам коммунальной инфраструктуры, перечислите все муниципальные образования, в которых организация осуществляет услуги горячего водоснабжения"}]
[null,"Признак дифференциации тарифа"]
[null,{"$f":"\"В случае, если тариф не дифференцируется по системам \"&IF(TSphere = \"ТС\",\"теплоснабжения\",\"коммунальной инфраструктуры\")&\", укажите \"\"1\"\".\nВыберите значение из списка, указав очередной условный порядковый номер системы \"&IF(TSphere = \"ТС\",\"теплоснабжения\",\"коммунальной инфраструктуры\")","v":"В случае, если тариф не дифференцируется по системам коммунальной инфраструктуры, укажите \"1\".\nВыберите значение из списка, указав очередной условный порядковый номер системы коммунальной инфраструктуры"}]
[null,"Задайте период регулирования, выбрав начало и окончание очередного периода с помощью календаря /выполните двойной щелчок по соответствующей синей ячейке/.\nИнформация раскрывается регулируемой организацией не позднее 30 дней со дня сдачи годового бухгалтерского баланса в налоговые органы и должна соответствовать годовой бухгалтерской отчетности за отчетный год"]
[null,"Укажите является ли данное юридическое лицо подразделением(филиалом) другой организации"]
[null,"Выполните двойной щелчок по синей ячейке в соответствующей строке, чтобы ввести дату"]
[null,"Нажмите на кнопку \"Выбор организации\", чтобы выбрать организацию или обновить реестр"]
[null,"Нажмите на кнопку \"Обновить реестр МО\", чтобы обновить реестр МР/МО"]
[null,"Для выбора того или иного источника публикации выполните двойной щелчок по синей ячейке напротив соответствующего источника.\nВНИМАНИЕ! Если Вы снимаете галочку с пункта, то будут скрыты и очищены соответствующие строки на листе \"Ссылки на публикации\"!"]
[null,"В зависимости от выбранного значения в поле \"Вид товара\" изменяется содержание и количество листов"]
[null,"Показатели (2)"]
[null,"Указывается информация о поставке товаров и услуг, стоимость которых превышает 20% суммы поставки товаров и услуг по каждой из организаций"]
[null,"Ссылки на публикации"]
[null,"Вводите адрес сайта, не нарушая цвет ячейки /если копируете гиперссылку из браузера, то выполните двойной щелчок по ячейке и только после этого можете вставить скопированный элемент/"]

{"sheet":"REESTR_ORG","index":17,"n_rows":820,"n_cols":8,"rows_kept":820,"cut":false,"hidden":true,"merged":[]}
["№","МР","МО","МО ОКТМО","ОРГАНИЗАЦИЯ","ИНН","КПП","ВИД ДЕЯТЕЛЬНОСТИ"]
[1,"Волоколамский муниципальный район","Волоколамский муниципальный район","46605000","Московская дирекция по тепловодоснабжению - структурное подразделение Центральной дирекции по тепловодоснабжению - филиала ОАО \"РЖД\"","7708503727","770845068","Оказание услуг в сфере горячего водоснабжения"]
[2,"Волоколамский муниципальный район","Волоколамский муниципальный район","46605000","Московская дирекция по тепловодоснабжению СП ЦДТВ –филиал ОАО «РЖД»","7708503727","770845069",""]
[3,"Волоколамский муниципальный район","городское поселение Волоколамск","46605101","Московская дирекция по тепловодоснабжению - структурное подразделение Центральной дирекции по тепловодоснабжению - филиала ОАО \"РЖД\"","7708503727","770845068","Оказание услуг в сфере горячего водоснабжения"]
[4,"Волоколамский муниципальный район","городское поселение Волоколамск","46605101","Московская дирекция по тепловодоснабжению СП ЦДТВ –филиал ОАО «РЖД»","7708503727","770845069",""]
[5,"Волоколамский муниципальный район","городское поселение Волоколамск","46605101","ОАО \"Волоколамское ПТП РЖКХ\"","5004021787","500401001","Поставка горячей воды"]
[6,"Волоколамский муниципальный район","городское поселение Волоколамск","46605101","ООО \"Пансионат \"Ласточка\"","5004017540","500401001","Поставка горячей воды"]
[7,"Волоколамский муниципальный район","городское поселение Волоколамск","46605101","ООО \"Теплосервис\"","5004018174","500401001","Поставка горячей воды"]
[8,"Волоколамский муниципальный район","городское поселение Волоколамск","46605101","ФГОУ СПО \"Волоколамский аграрный техникум \"Холмогорка\"","5004000160","500401001","Поставка горячей воды"]
[9,"Волоколамский муниципальный район","городское поселение Сычево","46605158","МУП \"Сычевское ПТП ЖКХ\"","5004023128","500401001","Поставка горячей воды"]
[10,"Волоколамский муниципальный район","городское поселение Сычево","46605158","Московская дирекция по тепловодоснабжению - структурное подразделение Центральной дирекции по тепловодоснабжению - филиала ОАО \"РЖД\"","7708503727","770845068","Оказание услуг в сфере горячего водоснабжения"]
[11,"Волоколамский муниципальный район","городское поселение Сычево","46605158","Московская дирекция по тепловодоснабжению СП ЦДТВ –филиал ОАО «РЖД»","7708503727","770845069",""]
[12,"Волоколамский муниципальный район","сельское поселение Кашинское","46605422","Московская дирекция по тепловодоснабжению - структурное подразделение Центральной дирекции по тепловодоснабжению - филиала ОАО \"РЖД\"","7708503727","770845068","Оказание услуг в сфере горячего водоснабжения"]
[13,"Волоколамский муниципальный район","сельское поселение Кашинское","46605422","Московская дирекция по тепловодоснабжению СП ЦДТВ –филиал ОАО «РЖД»","7708503727","770845069",""]
[14,"Волоколамский муниципальный район","сельское поселение Кашинское","46605422","ОАО \"Волоколамское ПТП РЖКХ\"","5004021787","500401001","Поставка горячей воды"]
[15,"Волоколамский муниципальный район","сельское поселение Кашинское","46605422","ООО \"Волоколамская тепловая компания\"","5004018752","500401001","Поставка горячей воды"]
[16,"Волоколамский муниципальный район","сельское поселение Осташевское","46605431","МУП \"Осташевское ПТП ЖКХ\"","5004023103","500401001","Поставка горячей воды"]
[17,"Волоколамский муниципальный район","сельское поселение Осташевское","46605431","Московская дирекция по тепловодоснабжению - структурное подразделение Центральной дирекции по тепловодоснабжению - филиала ОАО \"РЖД\"","7708503727","770845068","Оказание услуг в сфере горячего водоснабжения"]
[18,"Волоколамский муниципальный район","сельское поселение Осташевское","46605431","Московская дирекция по тепловодоснабжению СП ЦДТВ –филиал ОАО «РЖД»","7708503727","770845069",""]
[19,"Волоколамский муниципальный район","сельское поселение Осташевское","46605431","ОАО \"Волоколамское ПТП РЖКХ\"","5004021787","500401001","Поставка горячей воды"]
[20,"Волоколамский муниципальный район","сельское поселение Спасское","46605434","Московская дирекция по тепловодоснабжению - структурное подразделение Центральной дирекции по тепловодоснабжению - филиала ОАО \"РЖД\"","7708503727","770845068","Оказание услуг в сфере горячего водоснабжения"]
[21,"Волоколамский муниципальный район","сельское поселение Спасское","46605434","Московская дирекция по тепловодоснабжению СП ЦДТВ –филиал ОАО «РЖД»","7708503727","770845069",""]
[22,"Волоколамский муниципальный район","сельское поселение Теряевское","46605449","Московская дирекция по тепловодоснабжению - структурное подразделение Центральной дирекции по тепловодоснабжению - филиала ОАО \"РЖД\"","7708503727","770845068","Оказание услуг в сфере горячего водоснабжения"]
[23,"Волоколамский муниципальный район","сельское поселение Теряевское","46605449","Московская дирекция по тепловодоснабжению СП ЦДТВ –филиал ОАО «РЖД»","7708503727","770845069",""]
[24,"Волоколамский муниципальный район","сельское поселение Теряевское","46605449","ООО \"Волоколамская тепловая компания\"","5004018752","500401001","Поставка горячей воды"]
[25,"Волоколамский муниципальный район","сельское поселение Чисменское","46605461","Московская дирекция по тепловодоснабжению - структурное подразделение Центральной дирекции по тепловодоснабжению - филиала ОАО \"РЖД\"","7708503727","770845068","Оказание услуг в сфере горячего водоснабжения"]
[26,"Волоколамский муниципальный район","сельское поселение Чисменское","46605461","Московская дирекция по тепловодоснабжению СП ЦДТВ –филиал ОАО «РЖД»","7708503727","770845069",""]
[27,"Волоколамский муниципальный район","сельское поселение Чисменское","46605461","ОАО \"Волоколамское ПТП РЖКХ\"","5004021787","500401001","Поставка горячей воды"]
[28,"Волоколамский муниципальный район","сельское поселение Чисменское","46605461","ФГУ ДЭП-24","5024000633","502401001","Поставка горячей воды"]
[29,"Волоколамский муниципальный район","сельское поселение Ярополецкое","46605467","Московская дирекция по тепловодоснабжению - структурное подразделение Центральной дирекции по тепловодоснабжению - филиала ОАО \"РЖД\"","7708503727","770845068","Оказание услуг в сфере горячего водоснабжения"]
[30,"Волоколамский муниципальный район","сельское поселение Ярополецкое","46605467","Московская дирекция по тепловодоснабжению СП ЦДТВ –филиал ОАО «РЖД»","7708503727","770845069",""]
[31,"Волоколамский муниципальный район","сельское поселение Ярополецкое","46605467","ОАО \"Волоколамское ПТП РЖКХ\"","5004021787","500401001","Поставка горячей воды"]
[32,"Волоколамский муниципальный район","сельское поселение Ярополецкое","46605467","ООО \"Волоколамская тепловая компания\"","5004018752","500401001","Поставка горячей воды"]
[33,"Воскресенский муниципальный район","городское поселение Воскресенск","46606101","ЗАО \"Воскресенские тепловые сети\"","5005043328","500501001","Поставка горячей воды"]
[34,"Воскресенский муниципальный район","городское поселение Воскресенск","46606101","МУП \"Белоозерское ЖКХ\"","5005038631","500501001","Поставка горячей воды"]
[35,"Дмитровский муниципальный район","Дмитровский муниципальный район","46608000","Московская дирекция по тепловодоснабжению - структурное подразделение Центральной дирекции по тепловодоснабжению - филиала ОАО \"РЖД\"","7708503727","770845068","Оказание услуг в сфере горячего водоснабжения"]
[36,"Дмитровский муниципальный район","городское поселение  Дмитров","46608101","\"1166 Военно - строительное управление \" филиал ОАО \"Главное управление обустройства войск\"","7703702341","770301001","Поставка горячей воды"]
[37,"Дмитровский муниципальный район","городское поселение  Дмитров","46608101","ЗАО \"Дмитровский трикотаж\"","5007001620","500701001","Поставка горячей воды"]
[38,"Дмитровский муниципальный район","городское поселение  Дмитров","46608101","Московская дирекция по тепловодоснабжению - структурное подразделение Центральной дирекции по тепловодоснабжению - филиала ОАО \"РЖД\"","7708503727","770845068","Оказание услуг в сфере горячего водоснабжения"]
[39,"Дмитровский муниципальный район","городское поселение  Дмитров","46608101","ООО \"Дмитровтеплосервис\"","5007048177","500701001","Поставка горячей воды"]
[40,"Дмитровский муниципальный район","городское поселение  Дмитров","46608101","ООО \"СЕМПО\"","7714508459","771401001","Поставка горячей воды"]
[41,"Дмитровский муниципальный район","городское поселение Деденево","46608154","МУП \"ЖКХ городского поселения Деденево\"","5007078870","500701001","Поставка горячей воды"]
[42,"Дмитровский муниципальный район","городское поселение Деденево","46608154","Московская дирекция по тепловодоснабжению - структурное подразделение Центральной дирекции по тепловодоснабжению - филиала ОАО \"РЖД\"","7708503727","770845068","Оказание услуг в сфере горячего водоснабжения"]
[43,"Дмитровский муниципальный район","городское поселение Деденево","46608154","ОАО \"ЖКХ г.п.Деденево\"","5007083703","500701001","Оказание услуг в сфере горячего водоснабжения"]
[44,"Дмитровский муниципальный район","городское поселение Деденево","46608154","ПВВТ \"Турист\"","5007008294","500701001","Поставка горячей воды"]
[45,"Дмитровский муниципальный район","городское поселение Икша","46608157","Московская дирекция по тепловодоснабжению - структурное подразделение Центральной дирекции по тепловодоснабжению - филиала ОАО \"РЖД\"","7708503727","770845068","Оказание услуг в сфере горячего водоснабжения"]
[46,"Дмитровский муниципальный район","городское поселение Некрасовский","46608163","Московская дирекция по тепловодоснабжению - структурное подразделение Центральной дирекции по тепловодоснабжению - филиала ОАО \"РЖД\"","7708503727","770845068","Оказание услуг в сфере горячего водоснабжения"]
[47,"Дмитровский муниципальный район","городское поселение Некрасовский","46608163","ООО \"Полимерконтейнер1\"","5007032018","500701001","Поставка горячей воды"]
[48,"Дмитровский муниципальный район","городское поселение Яхрома","46608105","Московская дирекция по тепловодоснабжению - структурное подразделение Центральной дирекции по тепловодоснабжению - филиала ОАО \"РЖД\"","7708503727","770845068","Оказание услуг в сфере горячего водоснабжения"]
[49,"Дмитровский муниципальный район","сельское поселение Большерогачевское","46608407","Московская дирекция по тепловодоснабжению - структурное подразделение Центральной дирекции по тепловодоснабжению - филиала ОАО \"РЖД\"","7708503727","770845068","Оказание услуг в сфере горячего водоснабжения"]
[50,"Дмитровский муниципальный район","сельское поселение Габовское","46608413","Московская дирекция по тепловодоснабжению - структурное подразделение Центральной дирекции по тепловодоснабжению - филиала ОАО \"РЖД\"","7708503727","770845068","Оказание услуг в сфере горячего водоснабжения"]
[51,"Дмитровский муниципальный район","сельское поселение Костинское","46608431","Московская дирекция по тепловодоснабжению - структурное подразделение Центральной дирекции по тепловодоснабжению - филиала ОАО \"РЖД\"","7708503727","770845068","Оказание услуг в сфере горячего водоснабжения"]
[52,"Дмитровский муниципальный район","сельское поселение Куликовское","46608437","Московская дирекция по тепловодоснабжению - структурное подразделение Центральной дирекции по тепловодоснабжению - филиала ОАО \"РЖД\"","7708503727","770845068","Оказание услуг в сфере горячего водоснабжения"]
[53,"Дмитровский муниципальный район","сельское поселение Синьковское","46608461","Московская дирекция по тепловодоснабжению - структурное подразделение Центральной дирекции по тепловодоснабжению - филиала ОАО \"РЖД\"","7708503727","770845068","Оказание услуг в сфере горячего водоснабжения"]
[54,"Дмитровский муниципальный район","сельское поселение Якотское","46608470","Московская дирекция по тепловодоснабжению - структурное подразделение Центральной дирекции по тепловодоснабжению - филиала ОАО \"РЖД\"","7708503727","770845068","Оказание услуг в сфере горячего водоснабжения"]
[55,"Егорьевский муниципальный район","городское поселение Егорьевск","46612101","ЕМУП \"Алникс\"","5011017380","501101001","Поставка горячей воды"]
[56,"Егорьевский муниципальный район","городское поселение Егорьевск","46612101","МУП \"Азимут\"","5011018009","501101001","Поставка горячей воды"]
[57,"Егорьевский муниципальный район","городское поселение Егорьевск","46612101","МУП \"Новь\"","5011018111","501101001","Поставка горячей воды"]
[58,"Егорьевский муниципальный район","городское поселение Егорьевск","46612101","МУП КХ \"Егорьевские инженерные сети\"","5011025214","501101001","Поставка горячей воды"]
[59,"Егорьевский муниципальный район","городское поселение Егорьевск","46612101","ООО \"Жильё-XXI\"","5022091530","502201001","Поставка горячей воды"]
[60,"Егорьевский муниципальный район","городское поселение Егорьевск","46612101","ООО \"ЭНЕРГОЦЕНТР\"","5011026560","501101001","Поставка горячей воды"]
[61,"Егорьевский муниципальный район","сельское поселение Раменское","46612440","ГОУ НПО ПЛ № 96 МО","5011004856","501101001","Поставка горячей воды"]
[62,"Егорьевский муниципальный район","сельское поселение Раменское","46612440","МУП \"ЖКХ - Раменки\"","5011020142","501101001","Поставка горячей воды"]
[63,"Зарайский муниципальный район","городское поселение Зарайск","46616101","МУП \"ЕСКХ Зарайского района\"","5014008866","501401001","Поставка горячей воды"]
[64,"Истринский муниципальный район","Истринский муниципальный район","46618000","Московская дирекция по тепловодоснабжению - структурное подразделение Центральной дирекции по тепловодоснабжению - филиала ОАО \"РЖД\"","7708503727","770845068","Оказание услуг в сфере горячего водоснабжения"]
[65,"Истринский муниципальный район","Истринский муниципальный район","46618000","Московская дирекция по тепловодоснабжению СП ЦДТВ –филиал ОАО «РЖД»","7708503727","770845069",""]
[66,"Истринский муниципальный район","городское поселение Дедовск","46618103","Московская дирекция по тепловодоснабжению - структурное подразделение Центральной дирекции по тепловодоснабжению - филиала ОАО \"РЖД\"","7708503727","770845068","Оказание услуг в сфере горячего водоснабжения"]
[67,"Истринский муниципальный район","городское поселение Дедовск","46618103","Московская дирекция по тепловодоснабжению СП ЦДТВ –филиал ОАО «РЖД»","7708503727","770845069",""]
[68,"Истринский муниципальный район","городское поселение Истра","46618101","ГУП \"Энергетик ВНИЦ\"","5017035956","501701001","Поставка горячей воды"]
[69,"Истринский муниципальный район","городское поселение Истра","46618101","ДНП \"РОУД\"","5017054282","501701001","Оказание услуг в сфере горячего водоснабжения"]
[70,"Истринский муниципальный район","городское поселение Истра","46618101","ЗАО \"ЭНО\"","5017032666","501701001","Поставка горячей воды"]
[71,"Истринский муниципальный район","городское поселение Истра","46618101","МОУ \"Лучинская СОШ\"","5017048867","501701001","Оказание услуг в сфере горячего водоснабжения"]
[72,"Истринский муниципальный район","городское поселение Истра","46618101","Московская дирекция по тепловодоснабжению - структурное подразделение Центральной дирекции по тепловодоснабжению - филиала ОАО \"РЖД\"","7708503727","770845068","Оказание услуг в сфере горячего водоснабжения"]
[73,"Истринский муниципальный район","городское поселение Истра","46618101","Московская дирекция по тепловодоснабжению СП ЦДТВ –филиал ОАО «РЖД»","7708503727","770845069",""]
[74,"Истринский муниципальный район","городское поселение Истра","46618101","НП «ЦАРСКОЕ СЕЛО»","5017088669","501701001","Оказание услуг в сфере горячего водоснабжения"]
[75,"Истринский муниципальный район","городское поселение Истра","46618101","Некоммерческое партнерство «ЛэндиКо»","5044052816","504401001","Оказание услуг в сфере горячего водоснабжения"]
[76,"Истринский муниципальный район","городское поселение Истра","46618101","ОАО \"Истринская теплосеть\"","5017067757","501701001","Поставка горячей воды"]
[77,"Истринский муниципальный район","городское поселение Истра","46618101","ОАО \"Сокол\"","5017014522","509950001","Поставка горячей воды"]
[78,"Истринский муниципальный район","городское поселение Истра","46618101","ОАО УПТК ОАО \"ПСО-13\"","5017000079","501701001","Поставка горячей воды"]
[79,"Истринский муниципальный район","городское поселение Снегири","46618156","Московская дирекция по тепловодоснабжению - структурное подразделение Центральной дирекции по тепловодоснабжению - филиала ОАО \"РЖД\"","7708503727","770845068","Оказание услуг в сфере горячего водоснабжения"]
[80,"Истринский муниципальный район","городское поселение Снегири","46618156","Московская дирекция по тепловодоснабжению СП ЦДТВ –филиал ОАО «РЖД»","7708503727","770845069",""]
[81,"Истринский муниципальный район","городское поселение Снегири","46618156","ООО \"Управляющая организация \"Прогресс ЖКХ\"","5017073493","501701001","Поставка горячей воды"]
[82,"Истринский муниципальный район","сельское поселение Бужаровское","46618402","Московская дирекция по тепловодоснабжению - структурное подразделение Центральной дирекции по тепловодоснабжению - филиала ОАО \"РЖД\"","7708503727","770845068","Оказание услуг в сфере горячего водоснабжения"]
[83,"Истринский муниципальный район","сельское поселение Бужаровское","46618402","Московская дирекция по тепловодоснабжению СП ЦДТВ –филиал ОАО «РЖД»","7708503727","770845069",""]
[84,"Истринский муниципальный район","сельское поселение Букаревское","46618404","Московская дирекция по тепловодоснабжению - структурное подразделение Центральной дирекции по тепловодоснабжению - филиала ОАО \"РЖД\"","7708503727","770845068","Оказание услуг в сфере горячего водоснабжения"]
[85,"Истринский муниципальный район","сельское поселение Букаревское","46618404","Московская дирекция по тепловодоснабжению СП ЦДТВ –филиал ОАО «РЖД»","7708503727","770845069",""]
[86,"Истринский муниципальный район","сельское поселение Ермолинское","46618413","Московская дирекция по тепловодоснабжению - структурное подразделение Центральной дирекции по тепловодоснабжению - филиала ОАО \"РЖД\"","7708503727","770845068","Оказание услуг в сфере горячего водоснабжения"]
[87,"Истринский муниципальный район","сельское поселение Ермолинское","46618413","Московская дирекция по тепловодоснабжению СП ЦДТВ –филиал ОАО «РЖД»","7708503727","770845069",""]
[88,"Истринский муниципальный район","сельское поселение Ермолинское","46618413","Филиал ОАО «РЭУ» «Западный»","7714783092","503243001",""]
[89,"Истринский муниципальный район","сельское поселение Ивановское","46618416","Московская дирекция по тепловодоснабжению - структурное подразделение Центральной дирекции по тепловодоснабжению - филиала ОАО \"РЖД\"","7708503727","770845068","Оказание услуг в сфере горячего водоснабжения"]
[90,"Истринский муниципальный район","сельское поселение Ивановское","46618416","Московская дирекция по тепловодоснабжению СП ЦДТВ –филиал ОАО «РЖД»","7708503727","770845069",""]
[91,"Истринский муниципальный район","сельское поселение Ивановское","46618416","Филиал ОАО «РЭУ» «Западный»","7714783092","503243001",""]
[92,"Истринский муниципальный район","сельское поселение Костровское","46618419","Московская дирекция по тепловодоснабжению - структурное подразделение Центральной дирекции по тепловодоснабжению - филиала ОАО \"РЖД\"","7708503727","770845068","Оказание услуг в сфере горячего водоснабжения"]
[93,"Истринский муниципальный район","сельское поселение Костровское","46618419","Московская дирекция по тепловодоснабжению СП ЦДТВ –филиал ОАО «РЖД»","7708503727","770845069",""]
[94,"Истринский муниципальный район","сельское поселение Костровское","46618419","филиал ОАО \"ГАЗПРОМ\"- \"Пансионат \"Союз\"","7736050003","501702001","Поставка горячей воды"]
[95,"Истринский муниципальный район","сельское поселение Лучинское","46618425","ЗАО \"Санаторий \"Истра\"","5017003947","501701001","Поставка горячей воды"]
[96,"Истринский муниципальный район","сельское поселение Лучинское","46618425","Московская дирекция по тепловодоснабжению - структурное подразделение Центральной дирекции по тепловодоснабжению - филиала ОАО \"РЖД\"","7708503727","770845068","Оказание услуг в сфере горячего водоснабжения"]
[97,"Истринский муниципальный район","сельское поселение Лучинское","46618425","Московская дирекция по тепловодоснабжению СП ЦДТВ –филиал ОАО «РЖД»","7708503727","770845069",""]
[98,"Истринский муниципальный район","сельское поселение Лучинское","46618425","ОАО \"Ново-Иерусалимский кирпичный завод\"","5017014441","501701001","Поставка горячей воды"]
[99,"Истринский муниципальный район","сельское поселение Новопетровское","46618428","Московская дирекция по тепловодоснабжению - структурное подразделение Центральной дирекции по тепловодоснабжению - филиала ОАО \"РЖД\"","7708503727","770845068","Оказание услуг в сфере горячего водоснабжения"]
[100,"Истринский муниципальный район","сельское поселение Новопетровское","46618428","Московская дирекция по тепловодоснабжению СП ЦДТВ –филиал ОАО «РЖД»","7708503727","770845069",""]
[101,"Истринский муниципальный район","сельское поселение Новопетровское","46618428","Филиал ОАО «РЭУ» «Западный»","7714783092","503243001",""]
[102,"Истринский муниципальный район","сельское поселение Обушковское","46618431","Московская дирекция по тепловодоснабжению - структурное подразделение Центральной дирекции по тепловодоснабжению - филиала ОАО \"РЖД\"","7708503727","770845068","Оказание услуг в сфере горячего водоснабжения"]
[103,"Истринский муниципальный район","сельское поселение Обушковское","46618431","Московская дирекция по тепловодоснабжению СП ЦДТВ –филиал ОАО «РЖД»","7708503727","770845069",""]
[104,"Истринский муниципальный район","сельское поселение Онуфриевское","46618434","Московская дирекция по тепловодоснабжению - структурное подразделение Центральной дирекции по тепловодоснабжению - филиала ОАО \"РЖД\"","7708503727","770845068","Оказание услуг в сфере горячего водоснабжения"]
[105,"Истринский муниципальный район","сельское поселение Онуфриевское","46618434","Московская дирекция по тепловодоснабжению СП ЦДТВ –филиал ОАО «РЖД»","7708503727","770845069",""]
[106,"Истринский муниципальный район","сельское поселение Павло-Слободское","46618437","ДНП \"Чистые пруды\"","5017088926","501701001","Оказание услуг в сфере горячего водоснабжения"]
[107,"Истринский муниципальный район","сельское поселение Павло-Слободское","46618437","Московская дирекция по тепловодоснабжению - структурное подразделение Центральной дирекции по тепловодоснабжению - филиала ОАО \"РЖД\"","7708503727","770845068","Оказание услуг в сфере горячего водоснабжения"]
[108,"Истринский муниципальный район","сельское поселение Павло-Слободское","46618437","Московская дирекция по тепловодоснабжению СП ЦДТВ –филиал ОАО «РЖД»","7708503727","770845069",""]
[109,"Истринский муниципальный район","сельское поселение Ядроминское","46618443","Московская дирекция по тепловодоснабжению - структурное подразделение Центральной дирекции по тепловодоснабжению - филиала ОАО \"РЖД\"","7708503727","770845068","Оказание услуг в сфере горячего водоснабжения"]
[110,"Истринский муниципальный район","сельское поселение Ядроминское","46618443","Московская дирекция по тепловодоснабжению СП ЦДТВ –филиал ОАО «РЖД»","7708503727","770845069",""]
[111,"Каширский муниципальный район","Каширский муниципальный район","46620000","МУП «Домнинское»","5019020602","501901001","Поставка горячей воды"]
[112,"Каширский муниципальный район","городское поселение Кашира","46620101","МУП \"ДЕЗ Горхоз\"","5019021684","501901001","Поставка горячей воды"]
[113,"Каширский муниципальный район","городское поселение Кашира","46620101","МУП «Домнинское»","5019020602","501901001","Поставка горячей воды"]
[114,"Каширский муниципальный район","городское поселение Ожерелье","46620104","МУП «Домнинское»","5019020602","501901001","Поставка горячей воды"]
[115,"Каширский муниципальный район","городское поселение Ожерелье","46620104","ООО \"Жилресурс\"","5019019276","501901001","Поставка горячей воды"]
[116,"Каширский муниципальный район","городское поселение Ожерелье","46620104","ООО \"ОКС\"","5019023949","501901001",""]
[117,"Каширский муниципальный район","сельское поселение Базаровское","46620402","МУП \"ДЕЗ Горхоз\"","5019021684","501901001","Поставка горячей воды"]
[118,"Каширский муниципальный район","сельское поселение Базаровское","46620402","МУП «Домнинское»","5019020602","501901001","Поставка горячей воды"]
[119,"Каширский муниципальный район","сельское поселение Домнинское","46620407","МУП «Домнинское»","5019020602","501901001","Поставка горячей воды"]
[120,"Каширский муниципальный район","сельское поселение Знаменское","46620410","МУП «Домнинское»","5019020602","501901001","Поставка горячей воды"]
[121,"Каширский муниципальный район","сельское поселение Знаменское","46620410","ООО \"Люсена\"","5019020000","501901001","Поставка горячей воды"]
[122,"Каширский муниципальный район","сельское поселение Колтовское","46620413","МУП «Домнинское»","5019020602","501901001","Поставка горячей воды"]
[123,"Каширский муниципальный район","сельское поселение Колтовское","46620413","ООО \"Жилресурс\"","5019019276","501901001","Поставка горячей воды"]
[124,"Каширский муниципальный район","сельское поселение Топкановское","46620419","МУП \"Феникс\"","5019022952","501901001","Поставка горячей воды"]
[125,"Каширский муниципальный район","сельское поселение Топкановское","46620419","МУП «Домнинское»","5019020602","501901001","Поставка горячей воды"]
[126,"Каширский муниципальный район","сельское поселение Топкановское","46620419","ООО \"Люсена\"","5019020000","501901001","Поставка горячей воды"]
[127,"Клинский муниципальный район","городское поселение Высоковск","46621103","МУП \"Высоковский Коммунальщик\"","5020044492","502001001","Поставка горячей воды"]
[128,"Клинский муниципальный район","городское поселение Клин","46621101","ООО \"Клинтеплоэнергосервис\"","5020039630","502001001","Поставка горячей воды"]
[129,"Коломенский муниципальный район","Коломенский муниципальный район","46622000","ГАСУСО МО \"Черкизовский психоневрологический интернат\"","5070000719","502201001","Оказание услуг в сфере горячего водоснабжения"]
[130,"Коломенский муниципальный район","городское поселение Пески","46622154","ГАСУСО МО \"Черкизовский психоневрологический интернат\"","5070000719","502201001","Оказание услуг в сфере горячего водоснабжения"]
[131,"Коломенский муниципальный район","городское поселение Пески","46622154","ООО \"МКХ Коломенского района\"","5022560710","502201001","Поставка горячей воды"]
[132,"Коломенский муниципальный район","сельское поселение Акатьевское","46622402","ГАСУСО МО \"Черкизовский психоневрологический интернат\"","5070000719","502201001","Оказание услуг в сфере горячего водоснабжения"]
[133,"Коломенский муниципальный район","сельское поселение Биорковское","46622404","ГАСУСО МО \"Черкизовский психоневрологический интернат\"","5070000719","502201001","Оказание услуг в сфере горячего водоснабжения"]
[134,"Коломенский муниципальный район","сельское поселение Биорковское","46622404","ЗАО ПО «Карасевский керамический завод»","5027130359","502201001","Поставка горячей воды"]
[135,"Коломенский муниципальный район","сельское поселение Заруденское","46622416","ГАСУСО МО \"Черкизовский психоневрологический интернат\"","5070000719","502201001","Оказание услуг в сфере горячего водоснабжения"]
[136,"Коломенский муниципальный район","сельское поселение Непецинское","46622419","ГАСУСО МО \"Черкизовский психоневрологический интернат\"","5070000719","502201001","Оказание услуг в сфере горячего водоснабжения"]
[137,"Коломенский муниципальный район","сельское поселение Пестриковское","46622425","ГАСУСО МО \"Черкизовский психоневрологический интернат\"","5070000719","502201001","Оказание услуг в сфере горячего водоснабжения"]
[138,"Коломенский муниципальный район","сельское поселение Проводниковское","46622431","ГАСУСО МО \"Черкизовский психоневрологический интернат\"","5070000719","502201001","Оказание услуг в сфере горячего водоснабжения"]
[139,"Коломенский муниципальный район","сельское поселение Радужное","46622422","ГАСУСО МО \"Черкизовский психоневрологический интернат\"","5070000719","502201001","Оказание услуг в сфере горячего водоснабжения"]
[140,"Коломенский муниципальный район","сельское поселение Хорошовское","46622434","ГАСУСО МО \"Черкизовский психоневрологический интернат\"","5070000719","502201001","Оказание услуг в сфере горячего водоснабжения"]
[141,"Красногорский муниципальный район","Красногорский муниципальный район","46623000","Московская дирекция по тепловодоснабжению - структурное подразделение Центральной дирекции по тепловодоснабжению - филиала ОАО \"РЖД\"","7708503727","770845068","Оказание услуг в сфере горячего водоснабжения"]
[142,"Красногорский муниципальный район","Красногорский муниципальный район","46623000","Московская дирекция по тепловодоснабжению СП ЦДТВ –филиал ОАО «РЖД»","7708503727","770845069",""]
[143,"Красногорский муниципальный район","городское поселение Красногорск","46623101","ЗАО \"Бецема\"","5024012580","502401001","Поставка горячей воды"]
[144,"Красногорский муниципальный район","городское поселение Красногорск","46623101","Московская дирекция по тепловодоснабжению - структурное подразделение Центральной дирекции по тепловодоснабжению - филиала ОАО \"РЖД\"","7708503727","770845068","Оказание услуг в сфере горячего водоснабжения"]
[145,"Красногорский муниципальный район","городское поселение Красногорск","46623101","Московская дирекция по тепловодоснабжению СП ЦДТВ –филиал ОАО «РЖД»","7708503727","770845069",""]
[146,"Красногорский муниципальный район","городское поселение Красногорск","46623101","ОАО \"Красногорская теплосеть\"","5024047494","502401001","Поставка горячей воды"]
[147,"Красногорский муниципальный район","городское поселение Красногорск","46623101","ОАО \"Красногорский завод им. С.А. Зверева\"","5024022965","502401001","Поставка горячей воды"]
[148,"Красногорский муниципальный район","городское поселение Красногорск","46623101","ООО \"Маркет трейд центр\"","5024043965","502401001","Поставка горячей воды"]
[149,"Красногорский муниципальный район","городское поселение Красногорск","46623101","ООО \"СтройСети\"","5032116938","503201001","Поставка горячей воды"]
[150,"Красногорский муниципальный район","городское поселение Нахабино","46623154","Московская дирекция по тепловодоснабжению - структурное подразделение Центральной дирекции по тепловодоснабжению - филиала ОАО \"РЖД\"","7708503727","770845068","Оказание услуг в сфере горячего водоснабжения"]
[151,"Красногорский муниципальный район","городское поселение Нахабино","46623154","Московская дирекция по тепловодоснабжению СП ЦДТВ –филиал ОАО «РЖД»","7708503727","770845069",""]
[152,"Красногорский муниципальный район","городское поселение Нахабино","46623154","ОАО \"175 Деревообрабатывающий комбинат\"","5024060150","502401001","Поставка горячей воды"]
[153,"Красногорский муниципальный район","городское поселение Нахабино","46623154","ООО \"Акватория\"","5024033942","502401001","Поставка горячей воды"]
[154,"Красногорский муниципальный район","городское поселение Нахабино","46623154","ООО \"Нахабинские инженерные сети\"","5024092779","502401001","Поставка горячей воды"]
[155,"Красногорский муниципальный район","сельское поселение Ильинское","46623404","МГО больница № 62","5024001482","502401001","Поставка горячей воды"]
[156,"Красногорский муниципальный район","сельское поселение Ильинское","46623404","Московская дирекция по тепловодоснабжению - структурное подразделение Центральной дирекции по тепловодоснабжению - филиала ОАО \"РЖД\"","7708503727","770845068","Оказание услуг в сфере горячего водоснабжения"]
[157,"Красногорский муниципальный район","сельское поселение Ильинское","46623404","Московская дирекция по тепловодоснабжению СП ЦДТВ –филиал ОАО «РЖД»","7708503727","770845069",""]
[158,"Красногорский муниципальный район","сельское поселение Отрадненское","46623407","Московская дирекция по тепловодоснабжению - структурное подразделение Центральной дирекции по тепловодоснабжению - филиала ОАО \"РЖД\"","7708503727","770845068","Оказание услуг в сфере горячего водоснабжения"]
[159,"Красногорский муниципальный район","сельское поселение Отрадненское","46623407","Московская дирекция по тепловодоснабжению СП ЦДТВ –филиал ОАО «РЖД»","7708503727","770845069",""]
[160,"Ленинский муниципальный район","Ленинский муниципальный район","46628000","Московская дирекция по тепловодоснабжению - структурное подразделение Центральной дирекции по тепловодоснабжению - филиала ОАО \"РЖД\"","7708503727","770845068","Оказание услуг в сфере горячего водоснабжения"]
[161,"Ленинский муниципальный район","Ленинский муниципальный район","46628000","Московская дирекция по тепловодоснабжению СП ЦДТВ –филиал ОАО «РЖД»","7708503727","770845069",""]
[162,"Ленинский муниципальный район","Ленинский муниципальный район","46628000","ФГУП АПК \"Воскресенский\"","5003034790","500301001","Поставка горячей воды"]
[163,"Ленинский муниципальный район","городское поселение  Видное","46628101","МП \"Видновское ПТО ГХ\"","5003002816","500301001","Поставка горячей воды"]
[164,"Ленинский муниципальный район","городское поселение  Видное","46628101","Московская дирекция по тепловодоснабжению - структурное подразделение Центральной дирекции по тепловодоснабжению - филиала ОАО \"РЖД\"","7708503727","770845068","Оказание услуг в сфере горячего водоснабжения"]
[165,"Ленинский муниципальный район","городское поселение  Видное","46628101","Московская дирекция по тепловодоснабжению СП ЦДТВ –филиал ОАО «РЖД»","7708503727","770845069",""]
[166,"Ленинский муниципальный район","городское поселение  Видное","46628101","ООО «Газпром ВНИИГАЗ»","5003028155","500301001","Поставка горячей воды"]
[167,"Ленинский муниципальный район","городское поселение  Видное","46628101","ФГУ \"РРЦ \"Детство\" Минздравсоцразвития России","5003018904","500301001","Поставка горячей воды"]
[168,"Ленинский муниципальный район","городское поселение  Видное","46628101","ФГУП АПК \"Воскресенский\"","5003034790","500301001","Поставка горячей воды"]
[169,"Ленинский муниципальный район","городское поселение Горки Ленинские","46628155","Московская дирекция по тепловодоснабжению - структурное подразделение Центральной дирекции по тепловодоснабжению - филиала ОАО \"РЖД\"","7708503727","770845068","Оказание услуг в сфере горячего водоснабжения"]
[170,"Ленинский муниципальный район","городское поселение Горки Ленинские","46628155","Московская дирекция по тепловодоснабжению СП ЦДТВ –филиал ОАО «РЖД»","7708503727","770845069",""]
[171,"Ленинский муниципальный район","городское поселение Горки Ленинские","46628155","ФГУП АПК \"Воскресенский\"","5003034790","500301001","Поставка горячей воды"]
[172,"Ленинский муниципальный район","городское поселение Московский","46628105","Московская дирекция по тепловодоснабжению - структурное подразделение Центральной дирекции по тепловодоснабжению - филиала ОАО \"РЖД\"","7708503727","770845068","Оказание услуг в сфере горячего водоснабжения"]
[173,"Ленинский муниципальный район","городское поселение Московский","46628105","Московская дирекция по тепловодоснабжению СП ЦДТВ –филиал ОАО «РЖД»","7708503727","770845069",""]
[174,"Ленинский муниципальный район","городское поселение Московский","46628105","ФГУП АПК \"Воскресенский\"","5003034790","500301001","Поставка горячей воды"]
[175,"Ленинский муниципальный район","городское поселение Московский","46628105","ФГУП ПИПВЭ им. Чумакова","5003005824","500301001","Поставка горячей воды"]
[176,"Ленинский муниципальный район","сельское поселение Булатниковское","46628402","Московская дирекция по тепловодоснабжению - структурное подразделение Центральной дирекции по тепловодоснабжению - филиала ОАО \"РЖД\"","7708503727","770845068","Оказание услуг в сфере горячего водоснабжения"]
[177,"Ленинский муниципальный район","сельское поселение Булатниковское","46628402","Московская дирекция по тепловодоснабжению СП ЦДТВ –филиал ОАО «РЖД»","7708503727","770845069",""]
[178,"Ленинский муниципальный район","сельское поселение Булатниковское","46628402","ФГУП АПК \"Воскресенский\"","5003034790","500301001","Поставка горячей воды"]
[179,"Ленинский муниципальный район","сельское поселение Внуковское","46628404","Московская дирекция по тепловодоснабжению - структурное подразделение Центральной дирекции по тепловодоснабжению - филиала ОАО \"РЖД\"","7708503727","770845068","Оказание услуг в сфере горячего водоснабжения"]
[180,"Ленинский муниципальный район","сельское поселение Внуковское","46628404","Московская дирекция по тепловодоснабжению СП ЦДТВ –филиал ОАО «РЖД»","7708503727","770845069",""]
[181,"Ленинский муниципальный район","сельское поселение Внуковское","46628404","ФГУП АПК \"Воскресенский\"","5003034790","500301001","Поставка горячей воды"]
[182,"Ленинский муниципальный район","сельское поселение Володарское","46628407","Московская дирекция по тепловодоснабжению - структурное подразделение Центральной дирекции по тепловодоснабжению - филиала ОАО \"РЖД\"","7708503727","770845068","Оказание услуг в сфере горячего водоснабжения"]
[183,"Ленинский муниципальный район","сельское поселение Володарское","46628407","Московская дирекция по тепловодоснабжению СП ЦДТВ –филиал ОАО «РЖД»","7708503727","770845069",""]
[184,"Ленинский муниципальный район","сельское поселение Володарское","46628407","ФГУП АПК \"Воскресенский\"","5003034790","500301001","Поставка горячей воды"]
[185,"Ленинский муниципальный район","сельское поселение Воскресенское","46628408","Московская дирекция по тепловодоснабжению - структурное подразделение Центральной дирекции по тепловодоснабжению - филиала ОАО \"РЖД\"","7708503727","770845068","Оказание услуг в сфере горячего водоснабжения"]
[186,"Ленинский муниципальный район","сельское поселение Воскресенское","46628408","Московская дирекция по тепловодоснабжению СП ЦДТВ –филиал ОАО «РЖД»","7708503727","770845069",""]
[187,"Ленинский муниципальный район","сельское поселение Воскресенское","46628408","Психоневрологический интернат №5","5005001215","500301001","Поставка горячей воды"]
[188,"Ленинский муниципальный район","сельское поселение Воскресенское","46628408","ФГУП АПК \"Воскресенский\"","5003034790","500301001","Поставка горячей воды"]
[189,"Ленинский муниципальный район","сельское поселение Десеновское","46628413","Московская дирекция по тепловодоснабжению - структурное подразделение Центральной дирекции по тепловодоснабжению - филиала ОАО \"РЖД\"","7708503727","770845068","Оказание услуг в сфере горячего водоснабжения"]
[190,"Ленинский муниципальный район","сельское поселение Десеновское","46628413","Московская дирекция по тепловодоснабжению СП ЦДТВ –филиал ОАО «РЖД»","7708503727","770845069",""]
[191,"Ленинский муниципальный район","сельское поселение Десеновское","46628413","ФГУП АПК \"Воскресенский\"","5003034790","500301001","Поставка горячей воды"]
[192,"Ленинский муниципальный район","сельское поселение Десеновское","46628413","ФЛ ОК \"Ватутинки\" ФГУП ОПК \"БОР\" УД П РФ","5005000518","500302001","Поставка горячей воды"]
[193,"Ленинский муниципальный район","сельское поселение Молоковское","46628422","Московская дирекция по тепловодоснабжению - структурное подразделение Центральной дирекции по тепловодоснабжению - филиала ОАО \"РЖД\"","7708503727","770845068","Оказание услуг в сфере горячего водоснабжения"]
[194,"Ленинский муниципальный район","сельское поселение Молоковское","46628422","Московская дирекция по тепловодоснабжению СП ЦДТВ –филиал ОАО «РЖД»","7708503727","770845069",""]
[195,"Ленинский муниципальный район","сельское поселение Молоковское","46628422","ФГУП АПК \"Воскресенский\"","5003034790","500301001","Поставка горячей воды"]
[196,"Ленинский муниципальный район","сельское поселение Мосрентген","46628409","Московская дирекция по тепловодоснабжению - структурное подразделение Центральной дирекции по тепловодоснабжению - филиала ОАО \"РЖД\"","7708503727","770845068","Оказание услуг в сфере горячего водоснабжения"]
[197,"Ленинский муниципальный район","сельское поселение Мосрентген","46628409","Московская дирекция по тепловодоснабжению СП ЦДТВ –филиал ОАО «РЖД»","7708503727","770845069",""]
[198,"Ленинский муниципальный район","сельское поселение Мосрентген","46628409","ФГУП АПК \"Воскресенский\"","5003034790","500301001","Поставка горячей воды"]
[199,"Ленинский муниципальный район","сельское поселение Развилковское","46628416","Московская дирекция по тепловодоснабжению - структурное подразделение Центральной дирекции по тепловодоснабжению - филиала ОАО \"РЖД\"","7708503727","770845068","Оказание услуг в сфере горячего водоснабжения"]
[200,"Ленинский муниципальный район","сельское поселение Развилковское","46628416","Московская дирекция по тепловодоснабжению СП ЦДТВ –филиал ОАО «РЖД»","7708503727","770845069",""]
[201,"Ленинский муниципальный район","сельское поселение Развилковское","46628416","ФГУП АПК \"Воскресенский\"","5003034790","500301001","Поставка горячей воды"]
[202,"Ленинский муниципальный район","сельское поселение Совхоз имени Ленина","46628411","ЗАО \"Совхоз имени Ленина\"","5003009032","500301001","Поставка горячей воды"]
[203,"Ленинский муниципальный район","сельское поселение Совхоз имени Ленина","46628411","Московская дирекция по тепловодоснабжению - структурное подразделение Центральной дирекции по тепловодоснабжению - филиала ОАО \"РЖД\"","7708503727","770845068","Оказание услуг в сфере горячего водоснабжения"]
[204,"Ленинский муниципальный район","сельское поселение Совхоз имени Ленина","46628411","Московская дирекция по тепловодоснабжению СП ЦДТВ –филиал ОАО «РЖД»","7708503727","770845069",""]
[205,"Ленинский муниципальный район","сельское поселение Совхоз имени Ленина","46628411","ФГУП АПК \"Воскресенский\"","5003034790","500301001","Поставка горячей воды"]
[206,"Ленинский муниципальный район","сельское поселение Сосенское","46628426","Московская дирекция по тепловодоснабжению - структурное подразделение Центральной дирекции по тепловодоснабжению - филиала ОАО \"РЖД\"","7708503727","770845068","Оказание услуг в сфере горячего водоснабжения"]
[207,"Ленинский муниципальный район","сельское поселение Сосенское","46628426","Московская дирекция по тепловодоснабжению СП ЦДТВ –филиал ОАО «РЖД»","7708503727","770845069",""]
[208,"Ленинский муниципальный район","сельское поселение Сосенское","46628426","ФГУП АПК \"Воскресенский\"","5003034790","500301001","Поставка горячей воды"]
[209,"Ленинский муниципальный район","сельское поселение Филимонковское","46628431","Московская дирекция по тепловодоснабжению - структурное подразделение Центральной дирекции по тепловодоснабжению - филиала ОАО \"РЖД\"","7708503727","770845068","Оказание услуг в сфере горячего водоснабжения"]
[210,"Ленинский муниципальный район","сельское поселение Филимонковское","46628431","Московская дирекция по тепловодоснабжению СП ЦДТВ –филиал ОАО «РЖД»","7708503727","770845069",""]
[211,"Ленинский муниципальный район","сельское поселение Филимонковское","46628431","ОАО Клинический санаторий Главмосстроя \"Валуево\"","7710013582","775101001","Поставка горячей воды"]
[212,"Ленинский муниципальный район","сельское поселение Филимонковское","46628431","ФГУП АПК \"Воскресенский\"","5003034790","500301001","Поставка горячей воды"]
[213,"Лотошинский муниципальный район","Лотошинский муниципальный район","46629000","МП \"Лотошинское ЖКХ\"","5071005886","507101001","Оказание услуг в сфере горячего водоснабжения"]
[214,"Лотошинский муниципальный район","городское поселение Лотошино","46629151","МП \"Лотошинское ЖКХ\"","5071005886","507101001","Оказание услуг в сфере горячего водоснабжения"]
[215,"Лотошинский муниципальный район","сельское поселение Микулинское","46629416","МП \"Жилкомсервис\"","5071004120","507101001","Поставка горячей воды"]
[216,"Лотошинский муниципальный район","сельское поселение Микулинское","46629416","МП \"Лотошинское ЖКХ\"","5071005886","507101001","Оказание услуг в сфере горячего водоснабжения"]
[217,"Лотошинский муниципальный район","сельское поселение Ошейкинское","46629428","МП \"Лотошинское ЖКХ\"","5071005886","507101001","Оказание услуг в сфере горячего водоснабжения"]
[218,"Луховицкий муниципальный район","городское поселение Белоомут","46630153","ОАО\"Белоомутская швейная фабрика\"","5072701131","507201001","Поставка горячей воды"]
[219,"Луховицкий муниципальный район","городское поселение Луховицы","46630101","МАП №2 Автоколонна 1417\" филиал ГУП МО \"Мострансавто","5000000017","507231001","Поставка горячей воды"]
[220,"Луховицкий муниципальный район","городское поселение Луховицы","46630101","ОАО\"Водотеплоканализационное хозяйство\"","5072724210","507201001","Поставка горячей воды"]
[221,"Луховицкий муниципальный район","городское поселение Луховицы","46630101","ООО \"УК \"Комфорт\"","5072725478","507201001","Поставка горячей воды"]
[222,"Люберецкий муниципальный район","Люберецкий муниципальный район","46631000","ОАО \"Мосэнерго\"","7705035012","997450001","Оказание услуг в сфере горячего водоснабжения"]
[223,"Люберецкий муниципальный район","городское поселение Красково","46631165","МУП \"Комбинат ЖКХ и благоустройства\"","5027084381","502701001","Поставка горячей воды"]
[224,"Люберецкий муниципальный район","городское поселение Красково","46631165","ОАО \"Мосэнерго\"","7705035012","997450001","Оказание услуг в сфере горячего водоснабжения"]
[225,"Люберецкий муниципальный район","городское поселение Люберцы","46631101","ОАО \"Люберецкая теплосеть\"","5027130221","502701001","Поставка горячей воды"]
[226,"Люберецкий муниципальный район","городское поселение Люберцы","46631101","ОАО \"Мосэнерго\"","7705035012","997450001","Оказание услуг в сфере горячего водоснабжения"]
[227,"Люберецкий муниципальный район","городское поселение Люберцы","46631101","ОАО\"Камов\"","5027033274","502701001","Поставка горячей воды"]
[228,"Люберецкий муниципальный район","городское поселение Малаховка","46631167","МУЖЭП п. Малаховка","5027052196","502701001","Поставка горячей воды"]
[229,"Люберецкий муниципальный район","городское поселение Малаховка","46631167","ОАО \"Мосэнерго\"","7705035012","997450001","Оказание услуг в сфере горячего водоснабжения"]
[230,"Люберецкий муниципальный район","городское поселение Октябрьский","46631170","МУП \"Октябрьское Жилищное Управление\"","5027090498","502701001","Поставка горячей воды"]
[231,"Люберецкий муниципальный район","городское поселение Октябрьский","46631170","ОАО \"Мосэнерго\"","7705035012","997450001","Оказание услуг в сфере горячего водоснабжения"]
[232,"Люберецкий муниципальный район","городское поселение Октябрьский","46631170","ООО \"РИК\"","5051007910","502701001","Поставка горячей воды"]
[233,"Люберецкий муниципальный район","городское поселение Томилино","46631173","ОАО \"Мосэнерго\"","7705035012","997450001","Оказание услуг в сфере горячего водоснабжения"]
[234,"Люберецкий муниципальный район","городское поселение Томилино","46631173","ООО «Теплоэлектрогенерация»","5027153980","502701001","Поставка горячей воды"]
[235,"Можайский муниципальный район","Можайский муниципальный район","46633000","ОАО \"Водоканал Московской области\"","5056011395","502701001","Поставка горячей воды"]
[236,"Можайский муниципальный район","городское поселение Можайск","46633101","ЗАО \"Можайский\"","5028000377","502801001","Поставка горячей воды"]
[237,"Можайский муниципальный район","городское поселение Можайск","46633101","МУП \"ЖКХ г. Можайска\"","5028018582","502801001","Поставка горячей воды"]
[238,"Можайский муниципальный район","городское поселение Можайск","46633101","ОАО \"Водоканал Московской области\"","5056011395","502701001","Поставка горячей воды"]
[239,"Можайский муниципальный район","городское поселение Уваровка","46633154","ОАО \"Водоканал Московской области\"","5056011395","502701001","Поставка горячей воды"]
[240,"Можайский муниципальный район","сельское поселение Борисовское","46633402","ОАО \"Водоканал Московской области\"","5056011395","502701001","Поставка горячей воды"]
[241,"Можайский муниципальный район","сельское поселение Бородинское","46633404","ОАО \"Водоканал Московской области\"","5056011395","502701001","Поставка горячей воды"]
[242,"Можайский муниципальный район","сельское поселение Горетовское","46633410","ОАО \"Водоканал Московской области\"","5056011395","502701001","Поставка горячей воды"]
[243,"Можайский муниципальный район","сельское поселение Дровнинский","46633416","ОАО \"Водоканал Московской области\"","5056011395","502701001","Поставка горячей воды"]
[244,"Можайский муниципальный район","сельское поселение Замошинское","46633419","ОАО \"Водоканал Московской области\"","5056011395","502701001","Поставка горячей воды"]
[245,"Можайский муниципальный район","сельское поселение Клементьевский","46633422","ОАО \"Водоканал Московской области\"","5056011395","502701001","Поставка горячей воды"]
[246,"Можайский муниципальный район","сельское поселение Порецкое","46633437","ОАО \"Водоканал Московской области\"","5056011395","502701001","Поставка горячей воды"]
[247,"Можайский муниципальный район","сельское поселение Спутник","46633425","ОАО \"Водоканал Московской области\"","5056011395","502701001","Поставка горячей воды"]
[248,"Можайский муниципальный район","сельское поселение Юрловское","46633449","ОАО \"Водоканал Московской области\"","5056011395","502701001","Поставка горячей воды"]
[249,"Мытищинский муниципальный район","Мытищинский муниципальный район","46634000","ОАО \"Мосэнерго\"","7705035012","997450001","Оказание услуг в сфере горячего водоснабжения"]
[250,"Мытищинский муниципальный район","городское поселение Мытищи","46634101","ОАО \"Метровагонмаш\"","5029006702","509950001","Поставка горячей воды"]
[251,"Мытищинский муниципальный район","городское поселение Мытищи","46634101","ОАО \"Мосэнерго\"","7705035012","997450001","Оказание услуг в сфере горячего водоснабжения"]
[252,"Мытищинский муниципальный район","городское поселение Мытищи","46634101","ОАО \"Мытищинская теплосеть\"","5029004624","502901001","Поставка горячей воды"]
[253,"Мытищинский муниципальный район","городское поселение Мытищи","46634101","Пансионат с лечением \"Березовая роща\" Московской железной дороги - филиал ОАО \"РЖД\"","7708503727","997950001","Поставка горячей воды"]
[254,"Мытищинский муниципальный район","городское поселение Пироговский","46634162","ОАО \"Мосэнерго\"","7705035012","997450001","Оказание услуг в сфере горячего водоснабжения"]
[255,"Мытищинский муниципальный район","городское поселение Пироговский","46634162","Пансионат \"Пестово\" МГТУ Банка России","7702235133","502931001","Поставка горячей воды"]
[256,"Мытищинский муниципальный район","сельское поселение Федоскинское","46634422","ОАО \"Мосэнерго\"","7705035012","997450001","Оказание услуг в сфере горячего водоснабжения"]
[257,"Наро-Фоминский муниципальный район","Городское поселение Наро-Фоминск","46638101","ЗАО \"Группа \"Энерготехсервис\"","7719161472","771901001","Поставка горячей воды"]
[258,"Наро-Фоминский муниципальный район","Городское поселение Наро-Фоминск","46638101","МО \"Мострансавто\" Пансионат \"Нара\"","5000000017","503002002","Поставка горячей воды"]
[259,"Наро-Фоминский муниципальный район","Городское поселение Наро-Фоминск","46638101","ОАО \"Наро-Фоминский хладокомбинат\"","5030004410","503001001","Поставка горячей воды"]
[260,"Наро-Фоминский муниципальный район","Городское поселение Наро-Фоминск","46638101","ООО \"Жилкомсервис\"","5030049130","503001001","Поставка горячей воды"]
[261,"Наро-Фоминский муниципальный район","Городское поселение Наро-Фоминск","46638101","ООО \"Наро-Фоминская тепло-энерго компания\"","5030053538","503001001","Поставка горячей воды"]
[262,"Наро-Фоминский муниципальный район","Наро-Фоминский муниципальный район","46638000","ЗАО \"Группа \"Энерготехсервис\"","7719161472","771901001","Поставка горячей воды"]
[263,"Наро-Фоминский муниципальный район","городское поселение Апрелевка","46638102","ЗАО \"Группа \"Энерготехсервис\"","7719161472","771901001","Поставка горячей воды"]
[264,"Наро-Фоминский муниципальный район","городское поселение Верея","46638105","ЗАО \"Группа \"Энерготехсервис\"","7719161472","771901001","Поставка горячей воды"]
[265,"Наро-Фоминский муниципальный район","городское поселение Калининец","46638155","ЗАО \"Группа \"Энерготехсервис\"","7719161472","771901001","Поставка горячей воды"]
[266,"Наро-Фоминский муниципальный район","городское поселение Киевский","46638158","ЗАО \"Группа \"Энерготехсервис\"","7719161472","771901001","Поставка горячей воды"]
[267,"Наро-Фоминский муниципальный район","городское поселение Кокошкино","46638160","ЗАО \"Группа \"Энерготехсервис\"","7719161472","771901001","Поставка горячей воды"]
[268,"Наро-Фоминский муниципальный район","городское поселение Селятино","46638168","ЗАО \"Группа \"Энерготехсервис\"","7719161472","771901001","Поставка горячей воды"]
[269,"Наро-Фоминский муниципальный район","сельское поселение Атепцевское","46638404","ЗАО \"Группа \"Энерготехсервис\"","7719161472","771901001","Поставка горячей воды"]
[270,"Наро-Фоминский муниципальный район","сельское поселение Атепцевское","46638404","ЗАО \"ЗЭИМ \"Элинар\"","5030035264","503001001","Поставка горячей воды"]
[271,"Наро-Фоминский муниципальный район","сельское поселение Веселевское","46638410","ЗАО \"Группа \"Энерготехсервис\"","7719161472","771901001","Поставка горячей воды"]
[272,"Наро-Фоминский муниципальный район","сельское поселение Волченковское","46638407","ЗАО \"Группа \"Энерготехсервис\"","7719161472","771901001","Поставка горячей воды"]
[273,"Наро-Фоминский муниципальный район","сельское поселение Марушкинское","46638422","ЗАО \"Группа \"Энерготехсервис\"","7719161472","771901001","Поставка горячей воды"]
[274,"Наро-Фоминский муниципальный район","сельское поселение Новофедоровское","46638428","ЗАО \"Группа \"Энерготехсервис\"","7719161472","771901001","Поставка горячей воды"]
[275,"Наро-Фоминский муниципальный район","сельское поселение Первомайское","46638431","ЗАО \"Группа \"Энерготехсервис\"","7719161472","771901001","Поставка горячей воды"]
[276,"Наро-Фоминский муниципальный район","сельское поселение Ташировское","46638440","ЗАО \"Группа \"Энерготехсервис\"","7719161472","771901001","Поставка горячей воды"]
[277,"Ногинский муниципальный район","Ногинский муниципальный район","46639000","ЗАО \"Группа \"Энерготехсервис\"","7719161472","771901001","Поставка горячей воды"]
[278,"Ногинский муниципальный район","Ногинский муниципальный район","46639000","ОАО \"НКС\"","5031078359","503101001","Поставка горячей воды"]
[279,"Ногинский муниципальный район","Ногинский муниципальный район","46639000","ООО \"Фаворит-Сервис\"","5031083091","503101001","Поставка горячей воды"]
[280,"Ногинский муниципальный район","городское поселение Ногинск","46639101","ЗАО \"Группа \"Энерготехсервис\"","7719161472","771901001","Поставка горячей воды"]
[281,"Ногинский муниципальный район","городское поселение Ногинск","46639101","ЗАО \"Ногинский завод РТИ\"","5031005664","503101001","Поставка горячей воды"]
[282,"Ногинский муниципальный район","городское поселение Ногинск","46639101","МУП \"Ногинское ПТО ЖКХ\"","5031049446","503101001","Поставка горячей воды"]
[283,"Ногинский муниципальный район","городское поселение Ногинск","46639101","ОАО \"НКС\"","5031078359","503101001","Поставка горячей воды"]
[284,"Ногинский муниципальный район","городское поселение Ногинск","46639101","ООО \" УК \"Новатор плюс\"","5031092184","503101001","Поставка горячей воды"]
[285,"Ногинский муниципальный район","городское поселение Ногинск","46639101","ООО \"Фаворит-Сервис\"","5031083091","503101001","Поставка горячей воды"]
[286,"Ногинский муниципальный район","городское поселение Ногинск","46639101","УК \"Мамонтово-Ямкино\"","5031067893","503101001","Поставка горячей воды"]
[287,"Ногинский муниципальный район","городское поселение Ногинск","46639101","Филиал \"Ногинский\" ОАО \"Славянка\"","7702707386","503143001",""]
[288,"Ногинский муниципальный район","городское поселение Обухово","46639158","ЗАО \"Группа \"Энерготехсервис\"","7719161472","771901001","Поставка горячей воды"]
[289,"Ногинский муниципальный район","городское поселение Обухово","46639158","МУП \"Ногинское ПТО ЖКХ\"","5031049446","503101001","Поставка горячей воды"]
[290,"Ногинский муниципальный район","городское поселение Обухово","46639158","ОАО \"НКС\"","5031078359","503101001","Поставка горячей воды"]
[291,"Ногинский муниципальный район","городское поселение Обухово","46639158","ООО \"Фаворит-Сервис\"","5031083091","503101001","Поставка горячей воды"]
[292,"Ногинский муниципальный район","городское поселение Старая Купавна","46639103","ЗАО \"Группа \"Энерготехсервис\"","7719161472","771901001","Поставка горячей воды"]
[293,"Ногинский муниципальный район","городское поселение Старая Купавна","46639103","ОАО \"НКС\"","5031078359","503101001","Поставка горячей воды"]
[294,"Ногинский муниципальный район","городское поселение Старая Купавна","46639103","ООО \"Купавинские Тепловые Сети\"","5024115112","502401001","Поставка горячей воды"]
[295,"Ногинский муниципальный район","городское поселение Старая Купавна","46639103","ООО \"Фаворит-Сервис\"","5031083091","503101001","Поставка горячей воды"]
[296,"Ногинский муниципальный район","городское поселение Электроугли","46639105","ЗАО \"Группа \"Энерготехсервис\"","7719161472","771901001","Поставка горячей воды"]
[297,"Ногинский муниципальный район","городское поселение Электроугли","46639105","ОАО \"НКС\"","5031078359","503101001","Поставка горячей воды"]
[298,"Ногинский муниципальный район","городское поселение Электроугли","46639105","ООО \"Фаворит-Сервис\"","5031083091","503101001","Поставка горячей воды"]
[299,"Ногинский муниципальный район","городское поселение Электроугли","46639105","ООО \"Энергия Плюс\"","5031052745","503101001","Поставка горячей воды"]
[300,"Ногинский муниципальный район","городское поселение Электроугли","46639105","ФГУП \"РТРС\" \"МРЦ\" Радиоцентр №9","7717127211","503131001","Поставка горячей воды"]
[301,"Ногинский муниципальный район","городское поселение им. Воровского","46639154","ЗАО \"Группа \"Энерготехсервис\"","7719161472","771901001","Поставка горячей воды"]
[302,"Ногинский муниципальный район","городское поселение им. Воровского","46639154","ОАО \"НКС\"","5031078359","503101001","Поставка горячей воды"]
[303,"Ногинский муниципальный район","городское поселение им. Воровского","46639154","ООО \"Фаворит-Сервис\"","5031083091","503101001","Поставка горячей воды"]
[304,"Ногинский муниципальный район","сельское поселение Аксено-Бутырское","46639402","ЗАО \"Группа \"Энерготехсервис\"","7719161472","771901001","Поставка горячей воды"]
[305,"Ногинский муниципальный район","сельское поселение Аксено-Бутырское","46639402","ОАО \"ЛОК \"Дом отдыха Колонтаево\"","5031009115","503101001","Поставка горячей воды"]
[306,"Ногинский муниципальный район","сельское поселение Аксено-Бутырское","46639402","ОАО \"НКС\"","5031078359","503101001","Поставка горячей воды"]
[307,"Ногинский муниципальный район","сельское поселение Аксено-Бутырское","46639402","ООО \"Фаворит-Сервис\"","5031083091","503101001","Поставка горячей воды"]
[308,"Ногинский муниципальный район","сельское поселение Буньковское","46639407","ЗАО \"Группа \"Энерготехсервис\"","7719161472","771901001","Поставка горячей воды"]
[309,"Ногинский муниципальный район","сельское поселение Буньковское","46639407","ОАО \"Буньковский Экспериментальный Завод\"","5031013256","503101001","Поставка горячей воды"]
[310,"Ногинский муниципальный район","сельское поселение Буньковское","46639407","ОАО \"Караваево\"","5031002293","503101001","Поставка горячей воды"]
[311,"Ногинский муниципальный район","сельское поселение Буньковское","46639407","ОАО \"НКС\"","5031078359","503101001","Поставка горячей воды"]
[312,"Ногинский муниципальный район","сельское поселение Буньковское","46639407","ООО \"Восток сервис\"","5031095523","503101001","Поставка горячей воды"]
[313,"Ногинский муниципальный район","сельское поселение Буньковское","46639407","ООО \"Паллада+\"","5031096485","503101001",""]
[314,"Ногинский муниципальный район","сельское поселение Буньковское","46639407","ООО \"Фаворит-Сервис\"","5031083091","503101001","Поставка горячей воды"]
[315,"Ногинский муниципальный район","сельское поселение Мамонтовское","46639416","ЗАО \"Группа \"Энерготехсервис\"","7719161472","771901001","Поставка горячей воды"]
[316,"Ногинский муниципальный район","сельское поселение Мамонтовское","46639416","ОАО \"НКС\"","5031078359","503101001","Поставка горячей воды"]
[317,"Ногинский муниципальный район","сельское поселение Мамонтовское","46639416","ООО \"Фаворит-Сервис\"","5031083091","503101001","Поставка горячей воды"]
[318,"Ногинский муниципальный район","сельское поселение Степановское","46639422","ЗАО \"Группа \"Энерготехсервис\"","7719161472","771901001","Поставка горячей воды"]
[319,"Ногинский муниципальный район","сельское поселение Степановское","46639422","ОАО \"НКС\"","5031078359","503101001","Поставка горячей воды"]
[320,"Ногинский муниципальный район","сельское поселение Степановское","46639422","ООО \"Фаворит-Сервис\"","5031083091","503101001","Поставка горячей воды"]
[321,"Ногинский муниципальный район","сельское поселение Ямкинское","46639428","ЗАО \"Группа \"Энерготехсервис\"","7719161472","771901001","Поставка горячей воды"]
[322,"Ногинский муниципальный район","сельское поселение Ямкинское","46639428","ОАО \"НКС\"","5031078359","503101001","Поставка горячей воды"]
[323,"Ногинский муниципальный район","сельское поселение Ямкинское","46639428","ООО \"Фаворит-Сервис\"","5031083091","503101001","Поставка горячей воды"]
[324,"Одинцовский муниципальный район","Одинцовский муниципальный район","46641000","ГУЗ \"Городская клиническая больница №45 департамента здравоохранения г.Москвы\"","5032029890","503201001","Оказание услуг в сфере горячего водоснабжения"]
[325,"Одинцовский муниципальный район","Одинцовский муниципальный район","46641000","ООО  \"ЖК-Ресурс\"","5032254141","503201001","Оказание услуг в сфере горячего водоснабжения"]
[326,"Одинцовский муниципальный район","Одинцовский муниципальный район","46641000","ФГАУ <ОК <Рублево-Успенский> Управления делами Президента РФ","0710002588","503201001","Оказание услуг в сфере горячего водоснабжения"]
[327,"Одинцовский муниципальный район","Одинцовский муниципальный район","46641000","ФГБУ \"Российский научный центр медицинской реабилитации и курортологии \"Минздрава России\"","7704040281","770401001",""]
[328,"Одинцовский муниципальный район","Одинцовский муниципальный район","46641000","ФГУП АПК \"Воскресенский\"","5003034790","500301001","Поставка горячей воды"]
[329,"Одинцовский муниципальный район","городское поселение Большие Вяземы","46641152","ГУЗ \"Городская клиническая больница №45 департамента здравоохранения г.Москвы\"","5032029890","503201001","Оказание услуг в сфере горячего водоснабжения"]
[330,"Одинцовский муниципальный район","городское поселение Большие Вяземы","46641152","МУП \"Большие Вяземы\"","5032199148","503201001","Поставка горячей воды"]
[331,"Одинцовский муниципальный район","городское поселение Большие Вяземы","46641152","ООО  \"ЖК-Ресурс\"","5032254141","503201001","Оказание услуг в сфере горячего водоснабжения"]
[332,"Одинцовский муниципальный район","городское поселение Большие Вяземы","46641152","ФГАУ <ОК <Рублево-Успенский> Управления делами Президента РФ","0710002588","503201001","Оказание услуг в сфере горячего водоснабжения"]
[333,"Одинцовский муниципальный район","городское поселение Большие Вяземы","46641152","ФГБУ \"Российский научный центр медицинской реабилитации и курортологии \"Минздрава России\"","7704040281","770401001",""]
[334,"Одинцовский муниципальный район","городское поселение Большие Вяземы","46641152","ФГУП АПК \"Воскресенский\"","5003034790","500301001","Поставка горячей воды"]
[335,"Одинцовский муниципальный район","городское поселение Голицыно","46641104","ГУЗ \"Городская клиническая больница №45 департамента здравоохранения г.Москвы\"","5032029890","503201001","Оказание услуг в сфере горячего водоснабжения"]
[336,"Одинцовский муниципальный район","городское поселение Голицыно","46641104","ОАО \"Голицынский керамический завод\"","5032000108","509950001","Поставка горячей воды"]
[337,"Одинцовский муниципальный район","городское поселение Голицыно","46641104","ОАО РЭП \"Голицыно\"","5032199589","503201001","Поставка горячей воды"]
[338,"Одинцовский муниципальный район","городское поселение Голицыно","46641104","ООО  \"ЖК-Ресурс\"","5032254141","503201001","Оказание услуг в сфере горячего водоснабжения"]
[339,"Одинцовский муниципальный район","городское поселение Голицыно","46641104","ФГАУ <ОК <Рублево-Успенский> Управления делами Президента РФ","0710002588","503201001","Оказание услуг в сфере горячего водоснабжения"]
[340,"Одинцовский муниципальный район","городское поселение Голицыно","46641104","ФГБУ \"Российский научный центр медицинской реабилитации и курортологии \"Минздрава России\"","7704040281","770401001",""]
[341,"Одинцовский муниципальный район","городское поселение Голицыно","46641104","ФГУП АПК \"Воскресенский\"","5003034790","500301001","Поставка горячей воды"]
[342,"Одинцовский муниципальный район","городское поселение Заречье","46641157","ГУЗ \"Городская клиническая больница №45 департамента здравоохранения г.Москвы\"","5032029890","503201001","Оказание услуг в сфере горячего водоснабжения"]
[343,"Одинцовский муниципальный район","городское поселение Заречье","46641157","ЗАО \"Заречье\" им.С.А.Кушнарева","5032001366","503201001","Поставка горячей воды"]
[344,"Одинцовский муниципальный район","городское поселение Заречье","46641157","ООО  \"ЖК-Ресурс\"","5032254141","503201001","Оказание услуг в сфере горячего водоснабжения"]
[345,"Одинцовский муниципальный район","городское поселение Заречье","46641157","ФГАУ <ОК <Рублево-Успенский> Управления делами Президента РФ","0710002588","503201001","Оказание услуг в сфере горячего водоснабжения"]
[346,"Одинцовский муниципальный район","городское поселение Заречье","46641157","ФГБУ \"Российский научный центр медицинской реабилитации и курортологии \"Минздрава России\"","7704040281","770401001",""]
[347,"Одинцовский муниципальный район","городское поселение Заречье","46641157","ФГУП АПК \"Воскресенский\"","5003034790","500301001","Поставка горячей воды"]
[348,"Одинцовский муниципальный район","городское поселение Кубинка","46641110","ГУЗ \"Городская клиническая больница №45 департамента здравоохранения г.Москвы\"","5032029890","503201001","Оказание услуг в сфере горячего водоснабжения"]
[349,"Одинцовский муниципальный район","городское поселение Кубинка","46641110","ОАО ЖКХ \"Наро-Осановское\"","5032199596","503201001","Поставка горячей воды"]
[350,"Одинцовский муниципальный район","городское поселение Кубинка","46641110","ООО  \"ЖК-Ресурс\"","5032254141","503201001","Оказание услуг в сфере горячего водоснабжения"]
[351,"Одинцовский муниципальный район","городское поселение Кубинка","46641110","ФГАУ <ОК <Рублево-Успенский> Управления делами Президента РФ","0710002588","503201001","Оказание услуг в сфере горячего водоснабжения"]
[352,"Одинцовский муниципальный район","городское поселение Кубинка","46641110","ФГБУ \"Российский научный центр медицинской реабилитации и курортологии \"Минздрава России\"","7704040281","770401001",""]
[353,"Одинцовский муниципальный район","городское поселение Кубинка","46641110","ФГУП АПК \"Воскресенский\"","5003034790","500301001","Поставка горячей воды"]
[354,"Одинцовский муниципальный район","городское поселение Лесной Городок","46641160","ГУЗ \"Городская клиническая больница №45 департамента здравоохранения г.Москвы\"","5032029890","503201001","Оказание услуг в сфере горячего водоснабжения"]
[355,"Одинцовский муниципальный район","городское поселение Лесной Городок","46641160","ООО  \"ЖК-Ресурс\"","5032254141","503201001","Оказание услуг в сфере горячего водоснабжения"]
[356,"Одинцовский муниципальный район","городское поселение Лесной Городок","46641160","ООО \"КТТ-Дубки\"","5032126728","503201001",""]
[357,"Одинцовский муниципальный район","городское поселение Лесной Городок","46641160","ФГАУ <ОК <Рублево-Успенский> Управления делами Президента РФ","0710002588","503201001","Оказание услуг в сфере горячего водоснабжения"]
[358,"Одинцовский муниципальный район","городское поселение Лесной Городок","46641160","ФГБУ \"Российский научный центр медицинской реабилитации и курортологии \"Минздрава России\"","7704040281","770401001",""]
[359,"Одинцовский муниципальный район","городское поселение Лесной Городок","46641160","ФГУП АПК \"Воскресенский\"","5003034790","500301001","Поставка горячей воды"]
[360,"Одинцовский муниципальный район","городское поселение Новоивановское","46641162","ГУЗ \"Городская клиническая больница №45 департамента здравоохранения г.Москвы\"","5032029890","503201001","Оказание услуг в сфере горячего водоснабжения"]
[361,"Одинцовский муниципальный район","городское поселение Новоивановское","46641162","ОАО \"Предприятие ЖКХ \"Шарапово\"","5032199902","503201001","Поставка горячей воды"]
[362,"Одинцовский муниципальный район","городское поселение Новоивановское","46641162","ОАО РЭП \"Немчиновка\"","5032199998","503201001","Поставка горячей воды"]
[363,"Одинцовский муниципальный район","городское поселение Новоивановское","46641162","ООО  \"ЖК-Ресурс\"","5032254141","503201001","Оказание услуг в сфере горячего водоснабжения"]
[364,"Одинцовский муниципальный район","городское поселение Новоивановское","46641162","ООО Фонд развития Международного университета филиал \"Кунцево\"","5032018296","503202001","Поставка горячей воды"]
[365,"Одинцовский муниципальный район","городское поселение Новоивановское","46641162","ФГАУ <ОК <Рублево-Успенский> Управления делами Президента РФ","0710002588","503201001","Оказание услуг в сфере горячего водоснабжения"]
[366,"Одинцовский муниципальный район","городское поселение Новоивановское","46641162","ФГБУ \"Российский научный центр медицинской реабилитации и курортологии \"Минздрава России\"","7704040281","770401001",""]
[367,"Одинцовский муниципальный район","городское поселение Новоивановское","46641162","ФГУП АПК \"Воскресенский\"","5003034790","500301001","Поставка горячей воды"]
[368,"Одинцовский муниципальный район","городское поселение Одинцово","46641101","ГУЗ \"Городская клиническая больница №45 департамента здравоохранения г.Москвы\"","5032029890","503201001","Оказание услуг в сфере горячего водоснабжения"]
[369,"Одинцовский муниципальный район","городское поселение Одинцово","46641101","ЗАО \"Баковский завод\"","5032119061","503201001","Поставка горячей воды"]
[370,"Одинцовский муниципальный район","городское поселение Одинцово","46641101","ОАО \"Барвиха\"","5032200065","503201001","Поставка горячей воды"]
[371,"Одинцовский муниципальный район","городское поселение Одинцово","46641101","ОАО \"ЖКХ \"Горки-Х\"","5032199652","503201001","Поставка горячей воды"]
[372,"Одинцовский муниципальный район","городское поселение Одинцово","46641101","ОАО \"РЭП \"Старый Городок\"","5032199910","503201001","Поставка горячей воды"]
[373,"Одинцовский муниципальный район","городское поселение Одинцово","46641101","ОАО \"РЭП Ершово\"","5032200019","503201001","Поставка горячей воды"]
[374,"Одинцовский муниципальный район","городское поселение Одинцово","46641101","ООО  \"ЖК-Ресурс\"","5032254141","503201001","Оказание услуг в сфере горячего водоснабжения"]
[375,"Одинцовский муниципальный район","городское поселение Одинцово","46641101","ООО \"ИнтерКапСтрой\"","7729561783","772901001","Поставка горячей воды"]
[376,"Одинцовский муниципальный район","городское поселение Одинцово","46641101","ООО НПО \"Союз-М\"","7701048405","773301001","Поставка горячей воды"]
[377,"Одинцовский муниципальный район","городское поселение Одинцово","46641101","СЭУ ОАО \"Трансинжстрой\"","7701011412","503202001","Поставка горячей воды"]
[378,"Одинцовский муниципальный район","городское поселение Одинцово","46641101","ФГАУ <ОК <Рублево-Успенский> Управления делами Президента РФ","0710002588","503201001","Оказание услуг в сфере горячего водоснабжения"]
[379,"Одинцовский муниципальный район","городское поселение Одинцово","46641101","ФГБУ \"Российский научный центр медицинской реабилитации и курортологии \"Минздрава России\"","7704040281","770401001",""]
[380,"Одинцовский муниципальный район","городское поселение Одинцово","46641101","ФГУ \"Клинический санаторий \"Барвиха\"","5032028368","503201001","Поставка горячей воды"]
[381,"Одинцовский муниципальный район","городское поселение Одинцово","46641101","ФГУП АПК \"Воскресенский\"","5003034790","500301001","Поставка горячей воды"]
[382,"Одинцовский муниципальный район","городское поселение Одинцово","46641101","ФСО России","7704055094","770401001","Оказание услуг в сфере горячего водоснабжения"]
[383,"Одинцовский муниципальный район","сельское поселение Барвихинское","46641404","ГУЗ \"Городская клиническая больница №45 департамента здравоохранения г.Москвы\"","5032029890","503201001","Оказание услуг в сфере горячего водоснабжения"]
[384,"Одинцовский муниципальный район","сельское поселение Барвихинское","46641404","ООО  \"ЖК-Ресурс\"","5032254141","503201001","Оказание услуг в сфере горячего водоснабжения"]
[385,"Одинцовский муниципальный район","сельское поселение Барвихинское","46641404","ФГАУ <ОК <Рублево-Успенский> Управления делами Президента РФ","0710002588","503201001","Оказание услуг в сфере горячего водоснабжения"]
[386,"Одинцовский муниципальный район","сельское поселение Барвихинское","46641404","ФГБУ \"Российский научный центр медицинской реабилитации и курортологии \"Минздрава России\"","7704040281","770401001",""]
[387,"Одинцовский муниципальный район","сельское поселение Барвихинское","46641404","ФГУП АПК \"Воскресенский\"","5003034790","500301001","Поставка горячей воды"]
[388,"Одинцовский муниципальный район","сельское поселение Барвихинское","46641404","ФСО России","7704055094","770401001","Оказание услуг в сфере горячего водоснабжения"]
[389,"Одинцовский муниципальный район","сельское поселение Горское","46641413","ГУЗ \"Городская клиническая больница №45 департамента здравоохранения г.Москвы\"","5032029890","503201001","Оказание услуг в сфере горячего водоснабжения"]
[390,"Одинцовский муниципальный район","сельское поселение Горское","46641413","ЗАО \"Агрокомплекс Горки-2\"","5032000193","503201001","Поставка горячей воды"]
[391,"Одинцовский муниципальный район","сельское поселение Горское","46641413","ООО  \"ЖК-Ресурс\"","5032254141","503201001","Оказание услуг в сфере горячего водоснабжения"]
[392,"Одинцовский муниципальный район","сельское поселение Горское","46641413","ФГАУ <ОК <Рублево-Успенский> Управления делами Президента РФ","0710002588","503201001","Оказание услуг в сфере горячего водоснабжения"]
[393,"Одинцовский муниципальный район","сельское поселение Горское","46641413","ФГБУ \"Российский научный центр медицинской реабилитации и курортологии \"Минздрава России\"","7704040281","770401001",""]
[394,"Одинцовский муниципальный район","сельское поселение Горское","46641413","ФГУП АПК \"Воскресенский\"","5003034790","500301001","Поставка горячей воды"]
[395,"Одинцовский муниципальный район","сельское поселение Ершовское","46641419","ГУЗ \"Городская клиническая больница №45 департамента здравоохранения г.Москвы\"","5032029890","503201001","Оказание услуг в сфере горячего водоснабжения"]
[396,"Одинцовский муниципальный район","сельское поселение Ершовское","46641419","ЗАО \"Дом Отдыха \"Ершово\"","5032053886","503201001","Поставка горячей воды"]
[397,"Одинцовский муниципальный район","сельское поселение Ершовское","46641419","ООО  \"ЖК-Ресурс\"","5032254141","503201001","Оказание услуг в сфере горячего водоснабжения"]
[398,"Одинцовский муниципальный район","сельское поселение Ершовское","46641419","ФГАУ <ОК <Рублево-Успенский> Управления делами Президента РФ","0710002588","503201001","Оказание услуг в сфере горячего водоснабжения"]
[399,"Одинцовский муниципальный район","сельское поселение Ершовское","46641419","ФГБУ \"Российский научный центр медицинской реабилитации и курортологии \"Минздрава России\"","7704040281","770401001",""]
[400,"Одинцовский муниципальный район","сельское поселение Ершовское","46641419","ФГУП АПК \"Воскресенский\"","5003034790","500301001","Поставка горячей воды"]
[401,"Одинцовский муниципальный район","сельское поселение Жаворонковское","46641470","ГУЗ \"Городская клиническая больница №45 департамента здравоохранения г.Москвы\"","5032029890","503201001","Оказание услуг в сфере горячего водоснабжения"]
[402,"Одинцовский муниципальный район","сельское поселение Жаворонковское","46641470","ОАО \"РЭП \"Жаворонки\"","5032200001","503201001","Поставка горячей воды"]
[403,"Одинцовский муниципальный район","сельское поселение Жаворонковское","46641470","ООО  \"ЖК-Ресурс\"","5032254141","503201001","Оказание услуг в сфере горячего водоснабжения"]
[404,"Одинцовский муниципальный район","сельское поселение Жаворонковское","46641470","ФГАУ <ОК <Рублево-Успенский> Управления делами Президента РФ","0710002588","503201001","Оказание услуг в сфере горячего водоснабжения"]
[405,"Одинцовский муниципальный район","сельское поселение Жаворонковское","46641470","ФГБУ \"Российский научный центр медицинской реабилитации и курортологии \"Минздрава России\"","7704040281","770401001",""]
[406,"Одинцовский муниципальный район","сельское поселение Жаворонковское","46641470","ФГУП АПК \"Воскресенский\"","5003034790","500301001","Поставка горячей воды"]
[407,"Одинцовский муниципальный район","сельское поселение Захаровское","46641425","ГУЗ \"Городская клиническая больница №45 департамента здравоохранения г.Москвы\"","5032029890","503201001","Оказание услуг в сфере горячего водоснабжения"]
[408,"Одинцовский муниципальный район","сельское поселение Захаровское","46641425","ОАО \"Стройполимер\"","5032010000","503201001","Поставка горячей воды"]
[409,"Одинцовский муниципальный район","сельское поселение Захаровское","46641425","ООО  \"ЖК-Ресурс\"","5032254141","503201001","Оказание услуг в сфере горячего водоснабжения"]
[410,"Одинцовский муниципальный район","сельское поселение Захаровское","46641425","ФГАУ <ОК <Рублево-Успенский> Управления делами Президента РФ","0710002588","503201001","Оказание услуг в сфере горячего водоснабжения"]
[411,"Одинцовский муниципальный район","сельское поселение Захаровское","46641425","ФГБУ \"Российский научный центр медицинской реабилитации и курортологии \"Минздрава России\"","7704040281","770401001",""]
[412,"Одинцовский муниципальный район","сельское поселение Захаровское","46641425","ФГУП АПК \"Воскресенский\"","5003034790","500301001","Поставка горячей воды"]
[413,"Одинцовский муниципальный район","сельское поселение Назарьевское","46641440","ГУЗ \"Городская клиническая больница №45 департамента здравоохранения г.Москвы\"","5032029890","503201001","Оказание услуг в сфере горячего водоснабжения"]
[414,"Одинцовский муниципальный район","сельское поселение Назарьевское","46641440","ООО  \"ЖК-Ресурс\"","5032254141","503201001","Оказание услуг в сфере горячего водоснабжения"]
[415,"Одинцовский муниципальный район","сельское поселение Назарьевское","46641440","ФГАУ <ОК <Рублево-Успенский> Управления делами Президента РФ","0710002588","503201001","Оказание услуг в сфере горячего водоснабжения"]
[416,"Одинцовский муниципальный район","сельское поселение Назарьевское","46641440","ФГБУ \"Российский научный центр медицинской реабилитации и курортологии \"Минздрава России\"","7704040281","770401001",""]
[417,"Одинцовский муниципальный район","сельское поселение Назарьевское","46641440","ФГУП АПК \"Воскресенский\"","5003034790","500301001","Поставка горячей воды"]
[418,"Одинцовский муниципальный район","сельское поселение Никольское","46641449","ГУЗ \"Городская клиническая больница №45 департамента здравоохранения г.Москвы\"","5032029890","503201001","Оказание услуг в сфере горячего водоснабжения"]
[419,"Одинцовский муниципальный район","сельское поселение Никольское","46641449","ООО  \"ЖК-Ресурс\"","5032254141","503201001","Оказание услуг в сфере горячего водоснабжения"]
[420,"Одинцовский муниципальный район","сельское поселение Никольское","46641449","ФГАУ <ОК <Рублево-Успенский> Управления делами Президента РФ","0710002588","503201001","Оказание услуг в сфере горячего водоснабжения"]
[421,"Одинцовский муниципальный район","сельское поселение Никольское","46641449","ФГБУ \"Российский научный центр медицинской реабилитации и курортологии \"Минздрава России\"","7704040281","770401001",""]
[422,"Одинцовский муниципальный район","сельское поселение Никольское","46641449","ФГУП АПК \"Воскресенский\"","5003034790","500301001","Поставка горячей воды"]
[423,"Одинцовский муниципальный район","сельское поселение Успенское","46641461","ГУЗ \"Городская клиническая больница №45 департамента здравоохранения г.Москвы\"","5032029890","503201001","Оказание услуг в сфере горячего водоснабжения"]
[424,"Одинцовский муниципальный район","сельское поселение Успенское","46641461","ООО  \"ЖК-Ресурс\"","5032254141","503201001","Оказание услуг в сфере горячего водоснабжения"]
[425,"Одинцовский муниципальный район","сельское поселение Успенское","46641461","ФГАУ <ОК <Рублево-Успенский> Управления делами Президента РФ","0710002588","503201001","Оказание услуг в сфере горячего водоснабжения"]
[426,"Одинцовский муниципальный район","сельское поселение Успенское","46641461","ФГБУ \"Российский научный центр медицинской реабилитации и курортологии \"Минздрава России\"","7704040281","770401001",""]
[427,"Одинцовский муниципальный район","сельское поселение Успенское","46641461","ФГУП АПК \"Воскресенский\"","5003034790","500301001","Поставка горячей воды"]
[428,"Одинцовский муниципальный район","сельское поселение Часцовское","46641464","ГУЗ \"Городская клиническая больница №45 департамента здравоохранения г.Москвы\"","5032029890","503201001","Оказание услуг в сфере горячего водоснабжения"]
[429,"Одинцовский муниципальный район","сельское поселение Часцовское","46641464","ЗАО \"Петелинская птицефабрика\"","5032000235","503201001","Поставка горячей воды"]
[430,"Одинцовский муниципальный район","сельское поселение Часцовское","46641464","ООО  \"ЖК-Ресурс\"","5032254141","503201001","Оказание услуг в сфере горячего водоснабжения"]
[431,"Одинцовский муниципальный район","сельское поселение Часцовское","46641464","ФГАУ <ОК <Рублево-Успенский> Управления делами Президента РФ","0710002588","503201001","Оказание услуг в сфере горячего водоснабжения"]
[432,"Одинцовский муниципальный район","сельское поселение Часцовское","46641464","ФГБУ \"Российский научный центр медицинской реабилитации и курортологии \"Минздрава России\"","7704040281","770401001",""]
[433,"Одинцовский муниципальный район","сельское поселение Часцовское","46641464","ФГУП АПК \"Воскресенский\"","5003034790","500301001","Поставка горячей воды"]
[434,"Озерский муниципальный район","Озерский муниципальный район","46642000","Лечебно-профилактическое учреждение санаторий «Озёры»","5033002210","503301001","Поставка горячей воды"]
[435,"Озерский муниципальный район","Озерский муниципальный район","46642000","ОАО \"Водоканал Московской области\"","5056011395","502701001","Поставка горячей воды"]
[436,"Озерский муниципальный район","городское поселение Озеры","46642101","Лечебно-профилактическое учреждение санаторий «Озёры»","5033002210","503301001","Поставка горячей воды"]
[437,"Озерский муниципальный район","городское поселение Озеры","46642101","МП \"Быт-сервис\"","5022556721","503301001","Поставка горячей воды"]
[438,"Озерский муниципальный район","городское поселение Озеры","46642101","ОАО \"Водоканал Московской области\"","5056011395","502701001","Поставка горячей воды"]
[439,"Озерский муниципальный район","городское поселение Озеры","46642101","ООО \"Тепло-Озёры\"","5022088329","503301001","Поставка горячей воды"]
[440,"Озерский муниципальный район","городское поселение Озеры","46642101","ФГБУ санаторий «Ока» Минздравсоцразвития России","5033001760","503301001","Поставка горячей воды"]
[441,"Озерский муниципальный район","сельское поселение Бояркинское","46642402","Лечебно-профилактическое учреждение санаторий «Озёры»","5033002210","503301001","Поставка горячей воды"]
[442,"Озерский муниципальный район","сельское поселение Бояркинское","46642402","ОАО \"Водоканал Московской области\"","5056011395","502701001","Поставка горячей воды"]
[443,"Озерский муниципальный район","сельское поселение Клишинское","46642410","Лечебно-профилактическое учреждение санаторий «Озёры»","5033002210","503301001","Поставка горячей воды"]
[444,"Озерский муниципальный район","сельское поселение Клишинское","46642410","ОАО \"Водоканал Московской области\"","5056011395","502701001","Поставка горячей воды"]
[445,"Орехово-Зуевский муниципальный район","Орехово-Зуевский муниципальный район","46643000","Московская дирекция по тепловодоснабжению - структурное подразделение Центральной дирекции по тепловодоснабжению - филиала ОАО \"РЖД\"","7708503727","770845068","Оказание услуг в сфере горячего водоснабжения"]
[446,"Орехово-Зуевский муниципальный район","Орехово-Зуевский муниципальный район","46643000","Московская дирекция по тепловодоснабжению СП ЦДТВ –филиал ОАО «РЖД»","7708503727","770845069",""]
[447,"Орехово-Зуевский муниципальный район","городское поселение Дрезна","46643104","Московская дирекция по тепловодоснабжению - структурное подразделение Центральной дирекции по тепловодоснабжению - филиала ОАО \"РЖД\"","7708503727","770845068","Оказание услуг в сфере горячего водоснабжения"]
[448,"Орехово-Зуевский муниципальный район","городское поселение Дрезна","46643104","Московская дирекция по тепловодоснабжению СП ЦДТВ –филиал ОАО «РЖД»","7708503727","770845069",""]
[449,"Орехово-Зуевский муниципальный район","городское поселение Куровское","46643108","МУП \"Теплосеть\" Орехово-Зуевского района","5034028109","503401001","Поставка горячей воды"]
[450,"Орехово-Зуевский муниципальный район","городское поселение Куровское","46643108","Московская дирекция по тепловодоснабжению - структурное подразделение Центральной дирекции по тепловодоснабжению - филиала ОАО \"РЖД\"","7708503727","770845068","Оказание услуг в сфере горячего водоснабжения"]
[451,"Орехово-Зуевский муниципальный район","городское поселение Куровское","46643108","Московская дирекция по тепловодоснабжению СП ЦДТВ –филиал ОАО «РЖД»","7708503727","770845069",""]
[452,"Орехово-Зуевский муниципальный район","городское поселение Ликино-Дулево","46643113","Московская дирекция по тепловодоснабжению - структурное подразделение Центральной дирекции по тепловодоснабжению - филиала ОАО \"РЖД\"","7708503727","770845068","Оказание услуг в сфере горячего водоснабжения"]
[453,"Орехово-Зуевский муниципальный район","городское поселение Ликино-Дулево","46643113","Московская дирекция по тепловодоснабжению СП ЦДТВ –филиал ОАО «РЖД»","7708503727","770845069",""]
[454,"Орехово-Зуевский муниципальный район","сельское поселение Белавинское","46643407","Московская дирекция по тепловодоснабжению - структурное подразделение Центральной дирекции по тепловодоснабжению - филиала ОАО \"РЖД\"","7708503727","770845068","Оказание услуг в сфере горячего водоснабжения"]
[455,"Орехово-Зуевский муниципальный район","сельское поселение Белавинское","46643407","Московская дирекция по тепловодоснабжению СП ЦДТВ –филиал ОАО «РЖД»","7708503727","770845069",""]
[456,"Орехово-Зуевский муниципальный район","сельское поселение Верейское","46643408","Московская дирекция по тепловодоснабжению - структурное подразделение Центральной дирекции по тепловодоснабжению - филиала ОАО \"РЖД\"","7708503727","770845068","Оказание услуг в сфере горячего водоснабжения"]
[457,"Орехово-Зуевский муниципальный район","сельское поселение Верейское","46643408","Московская дирекция по тепловодоснабжению СП ЦДТВ –филиал ОАО «РЖД»","7708503727","770845069",""]
[458,"Орехово-Зуевский муниципальный район","сельское поселение Горское","46643413","Московская дирекция по тепловодоснабжению - структурное подразделение Центральной дирекции по тепловодоснабжению - филиала ОАО \"РЖД\"","7708503727","770845068","Оказание услуг в сфере горячего водоснабжения"]
[459,"Орехово-Зуевский муниципальный район","сельское поселение Горское","46643413","Московская дирекция по тепловодоснабжению СП ЦДТВ –филиал ОАО «РЖД»","7708503727","770845069",""]
[460,"Орехово-Зуевский муниципальный район","сельское поселение Давыдовское","46643419","Московская дирекция по тепловодоснабжению - структурное подразделение Центральной дирекции по тепловодоснабжению - филиала ОАО \"РЖД\"","7708503727","770845068","Оказание услуг в сфере горячего водоснабжения"]
[461,"Орехово-Зуевский муниципальный район","сельское поселение Давыдовское","46643419","Московская дирекция по тепловодоснабжению СП ЦДТВ –филиал ОАО «РЖД»","7708503727","770845069",""]
[462,"Орехово-Зуевский муниципальный район","сельское поселение Демиховское","46643422","МУП ПТО ЖХ №8 Орехово-Зуевского района","5073006726","507301001","Поставка горячей воды"]
[463,"Орехово-Зуевский муниципальный район","сельское поселение Демиховское","46643422","Московская дирекция по тепловодоснабжению - структурное подразделение Центральной дирекции по тепловодоснабжению - филиала ОАО \"РЖД\"","7708503727","770845068","Оказание услуг в сфере горячего водоснабжения"]
[464,"Орехово-Зуевский муниципальный район","сельское поселение Демиховское","46643422","Московская дирекция по тепловодоснабжению СП ЦДТВ –филиал ОАО «РЖД»","7708503727","770845069",""]
[465,"Орехово-Зуевский муниципальный район","сельское поселение Демиховское","46643422","ОАО \"Демиховский машиностроительный завод\"","5073050010","509950001","Поставка горячей воды"]
[466,"Орехово-Зуевский муниципальный район","сельское поселение Дороховское","46643425","Московская дирекция по тепловодоснабжению - структурное подразделение Центральной дирекции по тепловодоснабжению - филиала ОАО \"РЖД\"","7708503727","770845068","Оказание услуг в сфере горячего водоснабжения"]
[467,"Орехово-Зуевский муниципальный район","сельское поселение Дороховское","46643425","Московская дирекция по тепловодоснабжению СП ЦДТВ –филиал ОАО «РЖД»","7708503727","770845069",""]
[468,"Орехово-Зуевский муниципальный район","сельское поселение Ильинское","46643431","Московская дирекция по тепловодоснабжению - структурное подразделение Центральной дирекции по тепловодоснабжению - филиала ОАО \"РЖД\"","7708503727","770845068","Оказание услуг в сфере горячего водоснабжения"]
[469,"Орехово-Зуевский муниципальный район","сельское поселение Ильинское","46643431","Московская дирекция по тепловодоснабжению СП ЦДТВ –филиал ОАО «РЖД»","7708503727","770845069",""]
[470,"Орехово-Зуевский муниципальный район","сельское поселение Малодубенское","46643437","Московская дирекция по тепловодоснабжению - структурное подразделение Центральной дирекции по тепловодоснабжению - филиала ОАО \"РЖД\"","7708503727","770845068","Оказание услуг в сфере горячего водоснабжения"]
[471,"Орехово-Зуевский муниципальный район","сельское поселение Малодубенское","46643437","Московская дирекция по тепловодоснабжению СП ЦДТВ –филиал ОАО «РЖД»","7708503727","770845069",""]
[472,"Орехово-Зуевский муниципальный район","сельское поселение Новинское","46643443","Московская дирекция по тепловодоснабжению - структурное подразделение Центральной дирекции по тепловодоснабжению - филиала ОАО \"РЖД\"","7708503727","770845068","Оказание услуг в сфере горячего водоснабжения"]
[473,"Орехово-Зуевский муниципальный район","сельское поселение Новинское","46643443","Московская дирекция по тепловодоснабжению СП ЦДТВ –филиал ОАО «РЖД»","7708503727","770845069",""]
[474,"Орехово-Зуевский муниципальный район","сельское поселение Соболевское","46643446","Московская дирекция по тепловодоснабжению - структурное подразделение Центральной дирекции по тепловодоснабжению - филиала ОАО \"РЖД\"","7708503727","770845068","Оказание услуг в сфере горячего водоснабжения"]
[475,"Орехово-Зуевский муниципальный район","сельское поселение Соболевское","46643446","Московская дирекция по тепловодоснабжению СП ЦДТВ –филиал ОАО «РЖД»","7708503727","770845069",""]
[476,"Павлово-Посадский муниципальный район","городское поселение Павловский Посад","46645101","ГОУ НПО \"Профессиональное училище № 69\"","5035005312","503501001","Поставка горячей воды"]
[477,"Павлово-Посадский муниципальный район","городское поселение Павловский Посад","46645101","ЗАО \"Производственное объединение \"Берег\"","5035001332","503501001","Поставка горячей воды"]
[478,"Павлово-Посадский муниципальный район","городское поселение Павловский Посад","46645101","МУП \"Энергетик\"","5035019481","503501001","Поставка горячей воды"]
[479,"Павлово-Посадский муниципальный район","городское поселение Павловский Посад","46645101","ОАО \"Павлово-Посадский камвольщик\"","5035003185","503501001","Поставка горячей воды"]
[480,"Подольский муниципальный район","городское поселение Львовский","46646154","МУП \"ЛТЭК\"","5074046190","507401001","Оказание услуг в сфере горячего водоснабжения"]
[481,"Подольский муниципальный район","сельское поселение Вороновское","46646404","ГБУ СО МО \"Центр социально-медицинской реабилитации инвалидов и ветеранов боевых действий \"Ясенки\"","5074035310","507401001","Поставка горячей воды"]
[482,"Подольский муниципальный район","сельское поселение Вороновское","46646404","ЗАО \" Санаторий \"Ерино\"","5074017181","507401001","Поставка горячей воды"]
[483,"Подольский муниципальный район","сельское поселение Дубровицкое","46646413","ОАО \"Дубровицы\"","5074030168","507401001","Поставка горячей воды"]
[484,"Подольский муниципальный район","сельское поселение Дубровицкое","46646413","ФБУ «Санаторий «Вороново» Министерства экономического развития Российской Федерации»","5074001505","507401001","Поставка горячей воды"]
[485,"Подольский муниципальный район","сельское поселение Краснопахорское","46646410","ОАО \" Шишкин лес\"","5074030182","507401001","Поставка горячей воды"]
[486,"Подольский муниципальный район","сельское поселение Краснопахорское","46646410","ООО \"Строительная фирма ТЛК\"","5074016614","507401001","Поставка горячей воды"]
[487,"Подольский муниципальный район","сельское поселение Лаговское","46646416","МУП «Бытсервис»","5074046344","507401001","Оказание услуг в сфере горячего водоснабжения"]
[488,"Подольский муниципальный район","сельское поселение Лаговское","46646416","ОАО \"Рязаново\"","5074030175","507401001","Поставка горячей воды"]
[489,"Подольский муниципальный район","сельское поселение Михайлово-Ярцевское","46646419","ООО \"Строитель-плюс\"","5074012017","507401001","Поставка горячей воды"]
[490,"Пушкинский муниципальный район","Пушкинский муниципальный район","46647000","ГБУЗ МО \"Санаторий Пушкино\"","5038005670","503801001","Оказание услуг в сфере горячего водоснабжения"]
[491,"Пушкинский муниципальный район","городское поселение Ашукино","46647152","ГБУЗ МО \"Санаторий Пушкино\"","5038005670","503801001","Оказание услуг в сфере горячего водоснабжения"]
[492,"Пушкинский муниципальный район","городское поселение Ашукино","46647152","Лечебно-профилактическое учреждение \"Санаторий Правда\"","5038036051","503801001","Поставка горячей воды"]
[493,"Пушкинский муниципальный район","городское поселение Зеленоградский","46647154","ГБУЗ МО \"Санаторий Пушкино\"","5038005670","503801001","Оказание услуг в сфере горячего водоснабжения"]
[494,"Пушкинский муниципальный район","городское поселение Лесной","46647156","ГБУЗ МО \"Санаторий Пушкино\"","5038005670","503801001","Оказание услуг в сфере горячего водоснабжения"]
[495,"Пушкинский муниципальный район","городское поселение Лесной","46647156","МУП \"Лесной\"","5038070260","503801001","Поставка горячей воды"]
[496,"Пушкинский муниципальный район","городское поселение Правдинский","46647158","ГБУЗ МО \"Санаторий Пушкино\"","5038005670","503801001","Оказание услуг в сфере горячего водоснабжения"]
[497,"Пушкинский муниципальный район","городское поселение Правдинский","46647158","ЗАО \"Санаторий Зеленый городок\"","5038004010","503801001","Поставка горячей воды"]
[498,"Пушкинский муниципальный район","городское поселение Правдинский","46647158","ОАО \"Позит\"","5038011787","503801001","Поставка горячей воды"]
[499,"Пушкинский муниципальный район","городское поселение Правдинский","46647158","ОАО \"Энергия\"","5038016104","503801001","Поставка горячей воды"]
[500,"Пушкинский муниципальный район","городское поселение Правдинский","46647158","ООО \"Сторосс-тепло\"","5038078534","503801001","Поставка горячей воды"]
[501,"Пушкинский муниципальный район","городское поселение Правдинский","46647158","ФБОУ среднего профессионального образования \"Правдинский лесхоз-техникум\"","5038005825","503801001","Поставка горячей воды"]
[502,"Пушкинский муниципальный район","городское поселение Пушкино","46647101","ГБУЗ МО \"Санаторий Пушкино\"","5038005670","503801001","Оказание услуг в сфере горячего водоснабжения"]
[503,"Пушкинский муниципальный район","городское поселение Пушкино","46647101","ЖЭУ ЗАО \"Мособлстрой №20\"","5038012910","503802003","Поставка горячей воды"]
[504,"Пушкинский муниципальный район","городское поселение Пушкино","46647101","ЗАО \"Центромебель\" детский оздоровительный центр \"Пушкино\"","7705044296","503803001","Поставка горячей воды"]
[505,"Пушкинский муниципальный район","городское поселение Пушкино","46647101","ЗАО ЛВЗ \"Топаз\"","5038002790","997350001","Поставка горячей воды"]
[506,"Пушкинский муниципальный район","городское поселение Пушкино","46647101","МУП \"Теплосеть\" Пушкинского муниципального района","5038010261","503801001",""]
[507,"Пушкинский муниципальный район","городское поселение Пушкино","46647101","ОАО \"НПО Росдормаш\"","5038012452","503801001","Поставка горячей воды"]
[508,"Пушкинский муниципальный район","городское поселение Пушкино","46647101","ОАО \"Пушкинский завод\"","5038021231","503801001","Поставка горячей воды"]
[509,"Пушкинский муниципальный район","городское поселение Пушкино","46647101","ОАО \"Пушкинский электромеханический завод\"","5038010790","503801001","Поставка горячей воды"]
[510,"Пушкинский муниципальный район","городское поселение Пушкино","46647101","ООО \"Искож\"","5036070240","503801001","Поставка горячей воды"]
[511,"Пушкинский муниципальный район","городское поселение Пушкино","46647101","ФГУ Центральный пограничный архив ФСБ РФ","5038021295","503801001","Поставка горячей воды"]
[512,"Пушкинский муниципальный район","городское поселение Софрино","46647163","ГБУЗ МО \"Санаторий Пушкино\"","5038005670","503801001","Оказание услуг в сфере горячего водоснабжения"]
[513,"Пушкинский муниципальный район","городское поселение Софрино","46647163","ОАО \"Софринский экспериментально-механический завод\"","5038012283","503801001","Поставка горячей воды"]
[514,"Пушкинский муниципальный район","городское поселение Черкизово","46647168","ГБУЗ МО \"Санаторий Пушкино\"","5038005670","503801001","Оказание услуг в сфере горячего водоснабжения"]
[515,"Пушкинский муниципальный район","сельское поселение Ельдигинское","46647407","ГБУЗ МО \"Санаторий Пушкино\"","5038005670","503801001","Оказание услуг в сфере горячего водоснабжения"]
[516,"Пушкинский муниципальный район","сельское поселение Ельдигинское","46647407","Лечебно-профилактическое учреждение Санаторно-курортное объединение \"Тишково\"","5038005582","503801001","Поставка горячей воды"]
[517,"Пушкинский муниципальный район","сельское поселение Тарасовское","46647437","ГБУЗ МО \"Санаторий Пушкино\"","5038005670","503801001","Оказание услуг в сфере горячего водоснабжения"]
[518,"Пушкинский муниципальный район","сельское поселение Царевское","46647443","Академия ГПС МЧС России","7717035419","771701001","Поставка горячей воды"]
[519,"Пушкинский муниципальный район","сельское поселение Царевское","46647443","ГБУЗ МО \"Санаторий Пушкино\"","5038005670","503801001","Оказание услуг в сфере горячего водоснабжения"]
[520,"Раменский муниципальный район","городское поселение Раменское","46648101","ОАО \"Гжельский кирпичный завод\"","5040010068","504001001","Поставка горячей воды"]
[521,"Раменский муниципальный район","городское поселение Раменское","46648101","ОАО \"Раменская теплосеть\"","5040109331","504001001","Поставка горячей воды"]
[522,"Раменский муниципальный район","городское поселение Раменское","46648101","ООО \"Строительная группа Инфинити\"","7743603058","774301001","Поставка горячей воды"]
[523,"Раменский муниципальный район","сельское поселение Константиновское","46648434","ГБСУСО МО \"Денежниковский психоневрологический интернат\"","5040036267","504001001","Поставка горячей воды"]
[524,"Рузский муниципальный район","городское поселение Руза","46649101","ООО \"Рузские тепловые сети\"","5075032471","507501001","Поставка горячей воды"]
[525,"Рузский муниципальный район","городское поселение Тучково","46649163","ООО РЭП коммунального хозяйства УК \"Тучково\"","5075372460","507501001","Поставка горячей воды"]
[526,"Рузский муниципальный район","сельское поселение Дороховское","46649428","ГКУЗ Туберкулезный санаторий № 58 ДЗМ","5075008045","507501001","Поставка горячей воды"]
[527,"Рузский муниципальный район","сельское поселение Старорузское","46649431","ЛПУ \"Санаторий Дорохово\"","5075000913","507501001","Поставка горячей воды"]
[528,"Сергиево-Посадский муниципальный район","Город Сергиев Посад","46615101","ЗАО \"СТЭК\"","5042080504","504201001",""]
[529,"Сергиево-Посадский муниципальный район","Город Сергиев Посад","46615101","МУП \"Теплосеть\"","5042001196","504201001","Поставка горячей воды"]
[530,"Сергиево-Посадский муниципальный район","Город Сергиев Посад","46615101","Московская дирекция по тепловодоснабжению - структурное подразделение Центральной дирекции по тепловодоснабжению - филиала ОАО \"РЖД\"","7708503727","770845068","Оказание услуг в сфере горячего водоснабжения"]
[531,"Сергиево-Посадский муниципальный район","Город Сергиев Посад","46615101","Московская дирекция по тепловодоснабжению СП ЦДТВ –филиал ОАО «РЖД»","7708503727","770845069",""]
[532,"Сергиево-Посадский муниципальный район","Город Сергиев Посад","46615101","ОАО \"НИИ Прикладной химии\"","5042120394","504201001","Поставка горячей воды"]
[533,"Сергиево-Посадский муниципальный район","Город Сергиев Посад","46615101","ОАО \"НИИРП\"","5042013804","504201001",""]
[534,"Сергиево-Посадский муниципальный район","Город Сергиев Посад","46615101","ООО \"Контур Строй\"","5042106985","504201001","Поставка горячей воды"]
[535,"Сергиево-Посадский муниципальный район","Город Сергиев Посад","46615101","Ставропигиальный мужской монастырь Свято-Троицкая Сергиева Лавра","5042016770","504201001",""]
[536,"Сергиево-Посадский муниципальный район","Город Сергиев Посад","46615101","УДП ФГУ Санаторий \"Загорские дали\"","5042015760","504201001","Поставка горячей воды"]
[537,"Сергиево-Посадский муниципальный район","Город Сергиев Посад","46615101","ФГУП \"Электромеханический завод \"Звезда\"","5042010458","504201001","Поставка горячей воды"]
[538,"Сергиево-Посадский муниципальный район","Город Сергиев Посад","46615101","филиал Автоколонна №1791","5000000017","504202001","Поставка горячей воды"]
[539,"Сергиево-Посадский муниципальный район","Сергиево-Посадский муниципальный район","46615000","Московская дирекция по тепловодоснабжению - структурное подразделение Центральной дирекции по тепловодоснабжению - филиала ОАО \"РЖД\"","7708503727","770845068","Оказание услуг в сфере горячего водоснабжения"]
[540,"Сергиево-Посадский муниципальный район","Сергиево-Посадский муниципальный район","46615000","Московская дирекция по тепловодоснабжению СП ЦДТВ –филиал ОАО «РЖД»","7708503727","770845069",""]
[541,"Сергиево-Посадский муниципальный район","Сергиево-Посадский муниципальный район","46615000","ООО \"Контур Строй\"","5042106985","504201001","Поставка горячей воды"]
[542,"Сергиево-Посадский муниципальный район","городское Поселение Скоропусковский","46615161","Московская дирекция по тепловодоснабжению - структурное подразделение Центральной дирекции по тепловодоснабжению - филиала ОАО \"РЖД\"","7708503727","770845068","Оказание услуг в сфере горячего водоснабжения"]
[543,"Сергиево-Посадский муниципальный район","городское Поселение Скоропусковский","46615161","Московская дирекция по тепловодоснабжению СП ЦДТВ –филиал ОАО «РЖД»","7708503727","770845069",""]
[544,"Сергиево-Посадский муниципальный район","городское Поселение Скоропусковский","46615161","ООО \"Контур Строй\"","5042106985","504201001","Поставка горячей воды"]
[545,"Сергиево-Посадский муниципальный район","городское Поселение Скоропусковский","46615161","ООО \"Энергоресурс\"","5042088983","504201001","Оказание услуг в сфере горячего водоснабжения"]
[546,"Сергиево-Посадский муниципальный район","городское поселение Богородское","46615153","ЗАО \"Стройгруппа СП\"","5042074571","504201001","Поставка горячей воды"]
[547,"Сергиево-Посадский муниципальный район","городское поселение Богородское","46615153","Московская дирекция по тепловодоснабжению - структурное подразделение Центральной дирекции по тепловодоснабжению - филиала ОАО \"РЖД\"","7708503727","770845068","Оказание услуг в сфере горячего водоснабжения"]
[548,"Сергиево-Посадский муниципальный район","городское поселение Богородское","46615153","Московская дирекция по тепловодоснабжению СП ЦДТВ –филиал ОАО «РЖД»","7708503727","770845069",""]
[549,"Сергиево-Посадский муниципальный район","городское поселение Богородское","46615153","ООО \"Контур Строй\"","5042106985","504201001","Поставка горячей воды"]
[550,"Сергиево-Посадский муниципальный район","городское поселение Краснозаводск","46615103","Московская дирекция по тепловодоснабжению - структурное подразделение Центральной дирекции по тепловодоснабжению - филиала ОАО \"РЖД\"","7708503727","770845068","Оказание услуг в сфере горячего водоснабжения"]
[551,"Сергиево-Посадский муниципальный район","городское поселение Краснозаводск","46615103","Московская дирекция по тепловодоснабжению СП ЦДТВ –филиал ОАО «РЖД»","7708503727","770845069",""]
[552,"Сергиево-Посадский муниципальный район","городское поселение Краснозаводск","46615103","ООО \"Контур Строй\"","5042106985","504201001","Поставка горячей воды"]
[553,"Сергиево-Посадский муниципальный район","городское поселение Краснозаводск","46615103","ООО \"Управляющая компания \"Жилищно-строительная компания\"","5042110452","504201001","Поставка горячей воды"]
[554,"Сергиево-Посадский муниципальный район","городское поселение Пересвет","46615105","Московская дирекция по тепловодоснабжению - структурное подразделение Центральной дирекции по тепловодоснабжению - филиала ОАО \"РЖД\"","7708503727","770845068","Оказание услуг в сфере горячего водоснабжения"]
[555,"Сергиево-Посадский муниципальный район","городское поселение Пересвет","46615105","Московская дирекция по тепловодоснабжению СП ЦДТВ –филиал ОАО «РЖД»","7708503727","770845069",""]
[556,"Сергиево-Посадский муниципальный район","городское поселение Пересвет","46615105","ООО \"Контур Строй\"","5042106985","504201001","Поставка горячей воды"]
[557,"Сергиево-Посадский муниципальный район","городское поселение Пересвет","46615105","ФКП \"НИЦ РКП\"","5042006211","504201001","Поставка горячей воды"]
[558,"Сергиево-Посадский муниципальный район","городское поселение Хотьково","46615106","МУП \"Коммунальные системы Хотьково\"","5042116990","504201001","Поставка горячей воды"]
[559,"Сергиево-Посадский муниципальный район","городское поселение Хотьково","46615106","Московская дирекция по тепловодоснабжению - структурное подразделение Центральной дирекции по тепловодоснабжению - филиала ОАО \"РЖД\"","7708503727","770845068","Оказание услуг в сфере горячего водоснабжения"]
[560,"Сергиево-Посадский муниципальный район","городское поселение Хотьково","46615106","Московская дирекция по тепловодоснабжению СП ЦДТВ –филиал ОАО «РЖД»","7708503727","770845069",""]
[561,"Сергиево-Посадский муниципальный район","городское поселение Хотьково","46615106","ОАО \"Водоканал Московской области\"","5056011395","502701001","Поставка горячей воды"]
[562,"Сергиево-Посадский муниципальный район","городское поселение Хотьково","46615106","ООО \"Контур Строй\"","5042106985","504201001","Поставка горячей воды"]
[563,"Сергиево-Посадский муниципальный район","сельское поселение Березняковское","46615406","МУП «Ресурс»","5042120228","504201001","Поставка горячей воды"]
[564,"Сергиево-Посадский муниципальный район","сельское поселение Березняковское","46615406","Московская дирекция по тепловодоснабжению - структурное подразделение Центральной дирекции по тепловодоснабжению - филиала ОАО \"РЖД\"","7708503727","770845068","Оказание услуг в сфере горячего водоснабжения"]
[565,"Сергиево-Посадский муниципальный район","сельское поселение Березняковское","46615406","Московская дирекция по тепловодоснабжению СП ЦДТВ –филиал ОАО «РЖД»","7708503727","770845069",""]
[566,"Сергиево-Посадский муниципальный район","сельское поселение Березняковское","46615406","ООО \"Контур Строй\"","5042106985","504201001","Поставка горячей воды"]
[567,"Сергиево-Посадский муниципальный район","сельское поселение Васильевское","46615413","Московская дирекция по тепловодоснабжению - структурное подразделение Центральной дирекции по тепловодоснабжению - филиала ОАО \"РЖД\"","7708503727","770845068","Оказание услуг в сфере горячего водоснабжения"]
[568,"Сергиево-Посадский муниципальный район","сельское поселение Васильевское","46615413","Московская дирекция по тепловодоснабжению СП ЦДТВ –филиал ОАО «РЖД»","7708503727","770845069",""]
[569,"Сергиево-Посадский муниципальный район","сельское поселение Васильевское","46615413","ООО \"Контур Строй\"","5042106985","504201001","Поставка горячей воды"]
[570,"Сергиево-Посадский муниципальный район","сельское поселение Лозовское","46615458","ЗАО \"Загорский  опытный завод Пластмасс\"","5042015689","504201001","Поставка горячей воды"]
[571,"Сергиево-Посадский муниципальный район","сельское поселение Лозовское","46615458","Московская дирекция по тепловодоснабжению - структурное подразделение Центральной дирекции по тепловодоснабжению - филиала ОАО \"РЖД\"","7708503727","770845068","Оказание услуг в сфере горячего водоснабжения"]
[572,"Сергиево-Посадский муниципальный район","сельское поселение Лозовское","46615458","Московская дирекция по тепловодоснабжению СП ЦДТВ –филиал ОАО «РЖД»","7708503727","770845069",""]
[573,"Сергиево-Посадский муниципальный район","сельское поселение Лозовское","46615458","ООО \"КСК \"Регион\"","5042097272","504201001","Поставка горячей воды"]
[574,"Сергиево-Посадский муниципальный район","сельское поселение Лозовское","46615458","ООО \"Контур Строй\"","5042106985","504201001","Поставка горячей воды"]
[575,"Сергиево-Посадский муниципальный район","сельское поселение Реммаш","46615446","Московская дирекция по тепловодоснабжению - структурное подразделение Центральной дирекции по тепловодоснабжению - филиала ОАО \"РЖД\"","7708503727","770845068","Оказание услуг в сфере горячего водоснабжения"]
[576,"Сергиево-Посадский муниципальный район","сельское поселение Реммаш","46615446","Московская дирекция по тепловодоснабжению СП ЦДТВ –филиал ОАО «РЖД»","7708503727","770845069",""]
[577,"Сергиево-Посадский муниципальный район","сельское поселение Реммаш","46615446","ООО \"Контур Строй\"","5042106985","504201001","Поставка горячей воды"]
[578,"Сергиево-Посадский муниципальный район","сельское поселение Реммаш","46615446","ООО \"Контур ресурс\"","5042106992","504201001","Поставка горячей воды"]
[579,"Сергиево-Посадский муниципальный район","сельское поселение Селковское","46615452","МУП «РСК Селковское»","5042121278","504201001","Поставка горячей воды"]
[580,"Сергиево-Посадский муниципальный район","сельское поселение Селковское","46615452","Московская дирекция по тепловодоснабжению - структурное подразделение Центральной дирекции по тепловодоснабжению - филиала ОАО \"РЖД\"","7708503727","770845068","Оказание услуг в сфере горячего водоснабжения"]
[581,"Сергиево-Посадский муниципальный район","сельское поселение Селковское","46615452","Московская дирекция по тепловодоснабжению СП ЦДТВ –филиал ОАО «РЖД»","7708503727","770845069",""]
[582,"Сергиево-Посадский муниципальный район","сельское поселение Селковское","46615452","ООО \"Контур Строй\"","5042106985","504201001","Поставка горячей воды"]
[583,"Сергиево-Посадский муниципальный район","сельское поселение Шеметовское","46615461","ГУП МосНПО \"Радон\"","7704009700","770401001","Поставка горячей воды"]
[584,"Сергиево-Посадский муниципальный район","сельское поселение Шеметовское","46615461","Московская дирекция по тепловодоснабжению - структурное подразделение Центральной дирекции по тепловодоснабжению - филиала ОАО \"РЖД\"","7708503727","770845068","Оказание услуг в сфере горячего водоснабжения"]
[585,"Сергиево-Посадский муниципальный район","сельское поселение Шеметовское","46615461","Московская дирекция по тепловодоснабжению СП ЦДТВ –филиал ОАО «РЖД»","7708503727","770845069",""]
[586,"Сергиево-Посадский муниципальный район","сельское поселение Шеметовское","46615461","ООО \"Контур Строй\"","5042106985","504201001","Поставка горячей воды"]
[587,"Сергиево-Посадский муниципальный район","сельское поселение Шеметовское","46615461","ООО \"Управляющая компания Шеметово\"","5042111946","504201001","Поставка горячей воды"]
[588,"Серебряно-Прудский муниципальный район","городское поселение Серебряные Пруды","46650151","МУП \"МПКХ Узуновское\"","5076007380","507601001","Поставка горячей воды"]
[589,"Серебряно-Прудский муниципальный район","городское поселение Серебряные Пруды","46650151","ОАО \"СО ЕЭС\" ЦТО","7705454461","507602001","Поставка горячей воды"]
[590,"Серебряно-Прудский муниципальный район","городское поселение Серебряные Пруды","46650151","ООО \"Серебряно-Прудское МПКХ\"","5076008538","507601001","Поставка горячей воды"]
[591,"Серпуховский муниципальный район","сельское поселение Данковское","46651407","ГУ \"ПНИ №2\"","5077000796","507701001","Оказание услуг в сфере горячего водоснабжения"]
[592,"Серпуховский муниципальный район","сельское поселение Дашковское","46651413","МУП \"Управляющая компания\"","5077024268","507701001","Оказание услуг в сфере горячего водоснабжения"]
[593,"Солнечногорский муниципальный район","Солнечногорский муниципальный район","46652000","ОАО \"Водоканал Московской области\"","5056011395","502701001","Поставка горячей воды"]
[594,"Солнечногорский муниципальный район","городское поселение Андреевка","46652153","МУП ПК «Андреевка»","5044079945","504401001","Поставка горячей воды"]
[595,"Солнечногорский муниципальный район","городское поселение Андреевка","46652153","ОАО \"Водоканал Московской области\"","5056011395","502701001","Поставка горячей воды"]
[596,"Солнечногорский муниципальный район","городское поселение Андреевка","46652153","ОАО НПО \"Стеклопластик\"","5044000039","504401001","Поставка горячей воды"]
[597,"Солнечногорский муниципальный район","городское поселение Менделеево","46652158","ОАО \"Водоканал Московской области\"","5056011395","502701001","Поставка горячей воды"]
[598,"Солнечногорский муниципальный район","городское поселение Менделеево","46652158","ФГУП \"ВНИИФТРИ\"","5044000102","504401001","Поставка горячей воды"]
[599,"Солнечногорский муниципальный район","городское поселение Менделеево","46652158","Филиал ОАО \"Газпром\"- пансионат \"Морозовка\"","7736050003","504401001","Поставка горячей воды"]
[600,"Солнечногорский муниципальный район","городское поселение Поварово","46652162","МУП \"Дирекция территориального развития и коммунального хозяйства г.п. Поварово\"","5044069471","504401001","Поставка горячей воды"]
[601,"Солнечногорский муниципальный район","городское поселение Поварово","46652162","ОАО \"Водоканал Московской области\"","5056011395","502701001","Поставка горячей воды"]
[602,"Солнечногорский муниципальный район","городское поселение Ржавки","46652164","ОАО \"Водоканал Московской области\"","5056011395","502701001","Поставка горячей воды"]
[603,"Солнечногорский муниципальный район","городское поселение Ржавки","46652164","ООО \"Инфракомплекс-Сервис\"","5044047580","504401001","Поставка горячей воды"]
[604,"Солнечногорский муниципальный район","городское поселение Солнечногорск","46652101","Войсковая часть 68542","5044010164","504401001","Поставка горячей воды"]
[605,"Солнечногорский муниципальный район","городское поселение Солнечногорск","46652101","ГКУЗ Туберкулезная больница №11 ДЗМ","5044015638","504401001","Поставка горячей воды"]
[606,"Солнечногорский муниципальный район","городское поселение Солнечногорск","46652101","МУП \"Городское хозяйство\" г.о. Солнечногорск","5044069577","504401001","Поставка горячей воды"]
[607,"Солнечногорский муниципальный район","городское поселение Солнечногорск","46652101","ОАО \"Водоканал Московской области\"","5056011395","502701001","Поставка горячей воды"]
[608,"Солнечногорский муниципальный район","городское поселение Солнечногорск","46652101","ООО \"Эксплуатирующая организация \"Золотые Купола\"","5044066946","504401001","Оказание услуг в сфере горячего водоснабжения"]
[609,"Солнечногорский муниципальный район","городское поселение Солнечногорск","46652101","ФГАУ \"Оздоровительный комплекс \"Шереметьевский\" Управления делами Президента РФ","5044043360","504401001","Поставка горячей воды"]
[610,"Солнечногорский муниципальный район","сельское поселение Кривцовское","46652428","ОАО \"Водоканал Московской области\"","5056011395","502701001","Поставка горячей воды"]
[611,"Солнечногорский муниципальный район","сельское поселение Кутузовское","46652422","ОАО \"Водоканал Московской области\"","5056011395","502701001","Поставка горячей воды"]
[612,"Солнечногорский муниципальный район","сельское поселение Кутузовское","46652422","ООО «КомЭнерго»","5044077264","504401001","Поставка горячей воды"]
[613,"Солнечногорский муниципальный район","сельское поселение Луневское","46652416","МУП \"Луневобытсервис\"","5044069680","504401001","Поставка горячей воды"]
[614,"Солнечногорский муниципальный район","сельское поселение Луневское","46652416","ОАО \"Водоканал Московской области\"","5056011395","502701001","Поставка горячей воды"]
[615,"Солнечногорский муниципальный район","сельское поселение Пешковское","46652431","ОАО \"Водоканал Московской области\"","5056011395","502701001","Поставка горячей воды"]
[616,"Солнечногорский муниципальный район","сельское поселение Пешковское","46652431","ООО \"Березовские коммунальные системы\"","5044076084","504401001","Поставка горячей воды"]
[617,"Солнечногорский муниципальный район","сельское поселение Пешковское","46652431","ООО \"Ложковские коммунальные системы\"","5044076119","504401001","Поставка горячей воды"]
[618,"Солнечногорский муниципальный район","сельское поселение Пешковское","46652431","ООО \"Майдаровские коммунальные системы\"","5044076133","504401001","Поставка горячей воды"]
[619,"Солнечногорский муниципальный район","сельское поселение Пешковское","46652431","ООО \"Радумльские коммунальные системы\"","5044076060","504401001","Поставка горячей воды"]
[620,"Солнечногорский муниципальный район","сельское поселение Пешковское","46652431","ООО \"Чашниковские коммунальные системы\"","5044076091","504401001","Поставка горячей воды"]
[621,"Солнечногорский муниципальный район","сельское поселение Смирновское","46652425","ОАО \"Водоканал Московской области\"","5056011395","502701001","Поставка горячей воды"]
[622,"Солнечногорский муниципальный район","сельское поселение Соколовское","46652446","ОАО \"Водоканал Московской области\"","5056011395","502701001","Поставка горячей воды"]
[623,"Ступинский муниципальный район","Ступинский муниципальный район","46653000","Московская дирекция по тепловодоснабжению - структурное подразделение Центральной дирекции по тепловодоснабжению - филиала ОАО \"РЖД\"","7708503727","770845068","Оказание услуг в сфере горячего водоснабжения"]
[624,"Ступинский муниципальный район","Ступинский муниципальный район","46653000","Московская дирекция по тепловодоснабжению СП ЦДТВ –филиал ОАО «РЖД»","7708503727","770845069",""]
[625,"Ступинский муниципальный район","Ступинский муниципальный район","46653000","ОАО \"Мосэнерго\"","7705035012","997450001","Оказание услуг в сфере горячего водоснабжения"]
[626,"Ступинский муниципальный район","Ступинский муниципальный район","46653000","ООО \"ЖКУ Аксиньино\"","5045050145","504501001","Оказание услуг в сфере горячего водоснабжения"]
[627,"Ступинский муниципальный район","городское поселение Жилёво","46653154","Московская дирекция по тепловодоснабжению - структурное подразделение Центральной дирекции по тепловодоснабжению - филиала ОАО \"РЖД\"","7708503727","770845068","Оказание услуг в сфере горячего водоснабжения"]
[628,"Ступинский муниципальный район","городское поселение Жилёво","46653154","Московская дирекция по тепловодоснабжению СП ЦДТВ –филиал ОАО «РЖД»","7708503727","770845069",""]
[629,"Ступинский муниципальный район","городское поселение Жилёво","46653154","ОАО \"Мосэнерго\"","7705035012","997450001","Оказание услуг в сфере горячего водоснабжения"]
[630,"Ступинский муниципальный район","городское поселение Жилёво","46653154","ООО \"ЖКУ Аксиньино\"","5045050145","504501001","Оказание услуг в сфере горячего водоснабжения"]
[631,"Ступинский муниципальный район","городское поселение Малино","46653156","МУП \"Дубневское ЖКХ\"","5045018751","504501001","Поставка горячей воды"]
[632,"Ступинский муниципальный район","городское поселение Малино","46653156","Московская дирекция по тепловодоснабжению - структурное подразделение Центральной дирекции по тепловодоснабжению - филиала ОАО \"РЖД\"","7708503727","770845068","Оказание услуг в сфере горячего водоснабжения"]
[633,"Ступинский муниципальный район","городское поселение Малино","46653156","Московская дирекция по тепловодоснабжению СП ЦДТВ –филиал ОАО «РЖД»","7708503727","770845069",""]
[634,"Ступинский муниципальный район","городское поселение Малино","46653156","ОАО \"Мосэнерго\"","7705035012","997450001","Оказание услуг в сфере горячего водоснабжения"]
[635,"Ступинский муниципальный район","городское поселение Малино","46653156","ООО \"ЖКУ Аксиньино\"","5045050145","504501001","Оказание услуг в сфере горячего водоснабжения"]
[636,"Ступинский муниципальный район","городское поселение Михнево","46653158","МУП \"Татариновское ЖКХ\"","5045019755","504501001","Поставка горячей воды"]
[637,"Ступинский муниципальный район","городское поселение Михнево","46653158","Московская дирекция по тепловодоснабжению - структурное подразделение Центральной дирекции по тепловодоснабжению - филиала ОАО \"РЖД\"","7708503727","770845068","Оказание услуг в сфере горячего водоснабжения"]
[638,"Ступинский муниципальный район","городское поселение Михнево","46653158","Московская дирекция по тепловодоснабжению СП ЦДТВ –филиал ОАО «РЖД»","7708503727","770845069",""]
[639,"Ступинский муниципальный район","городское поселение Михнево","46653158","ОАО \"Мосэнерго\"","7705035012","997450001","Оказание услуг в сфере горячего водоснабжения"]
[640,"Ступинский муниципальный район","городское поселение Михнево","46653158","ООО \"ЖКУ Аксиньино\"","5045050145","504501001","Оказание услуг в сфере горячего водоснабжения"]
[641,"Ступинский муниципальный район","городское поселение Ступино","46653101","ГБУ  города Москвы \"Психоневрологический интернат № 13\"","5045015550","504501001","Поставка горячей воды"]
[642,"Ступинский муниципальный район","городское поселение Ступино","46653101","ГБУ \"Пансионат для инвалидов по зрению\"","5045032690","504501001","Поставка горячей воды"]
[643,"Ступинский муниципальный район","городское поселение Ступино","46653101","МУП \"ПТО ЖКХ\" городского поселения Ступино","5045003106","504501001","Оказание услуг в сфере горячего водоснабжения"]
[644,"Ступинский муниципальный район","городское поселение Ступино","46653101","МУП ЖКХ г.Ступино","5045032650","504501001","Поставка горячей воды"]
[645,"Ступинский муниципальный район","городское поселение Ступино","46653101","Московская дирекция по тепловодоснабжению - структурное подразделение Центральной дирекции по тепловодоснабжению - филиала ОАО \"РЖД\"","7708503727","770845068","Оказание услуг в сфере горячего водоснабжения"]
[646,"Ступинский муниципальный район","городское поселение Ступино","46653101","Московская дирекция по тепловодоснабжению СП ЦДТВ –филиал ОАО «РЖД»","7708503727","770845069",""]
[647,"Ступинский муниципальный район","городское поселение Ступино","46653101","ОАО \"Мосэнерго\"","7705035012","997450001","Оказание услуг в сфере горячего водоснабжения"]
[648,"Ступинский муниципальный район","городское поселение Ступино","46653101","ООО \"ЖКУ Аксиньино\"","5045050145","504501001","Оказание услуг в сфере горячего водоснабжения"]
[649,"Ступинский муниципальный район","городское поселение Ступино","46653101","ФГКУ \"Санаторий \"Семеновское\" ФСБ России\"","5045003201","504501001","Поставка горячей воды"]
[650,"Ступинский муниципальный район","сельское поселение Аксиньинское","46653402","ЗАО Сельскохозяйственное предприятие \"Аксиньино\"","5045000352","504501001","Поставка горячей воды"]
[651,"Ступинский муниципальный район","сельское поселение Аксиньинское","46653402","Московская дирекция по тепловодоснабжению - структурное подразделение Центральной дирекции по тепловодоснабжению - филиала ОАО \"РЖД\"","7708503727","770845068","Оказание услуг в сфере горячего водоснабжения"]
[652,"Ступинский муниципальный район","сельское поселение Аксиньинское","46653402","Московская дирекция по тепловодоснабжению СП ЦДТВ –филиал ОАО «РЖД»","7708503727","770845069",""]
[653,"Ступинский муниципальный район","сельское поселение Аксиньинское","46653402","ОАО \"Мосэнерго\"","7705035012","997450001","Оказание услуг в сфере горячего водоснабжения"]
[654,"Ступинский муниципальный район","сельское поселение Аксиньинское","46653402","ООО \"ЖКУ Аксиньино\"","5045050145","504501001","Оказание услуг в сфере горячего водоснабжения"]
[655,"Ступинский муниципальный район","сельское поселение Леонтьевское","46653422","Московская дирекция по тепловодоснабжению - структурное подразделение Центральной дирекции по тепловодоснабжению - филиала ОАО \"РЖД\"","7708503727","770845068","Оказание услуг в сфере горячего водоснабжения"]
[656,"Ступинский муниципальный район","сельское поселение Леонтьевское","46653422","Московская дирекция по тепловодоснабжению СП ЦДТВ –филиал ОАО «РЖД»","7708503727","770845069",""]
[657,"Ступинский муниципальный район","сельское поселение Леонтьевское","46653422","ОАО \"Мосэнерго\"","7705035012","997450001","Оказание услуг в сфере горячего водоснабжения"]
[658,"Ступинский муниципальный район","сельское поселение Леонтьевское","46653422","ООО \"ЖКУ Аксиньино\"","5045050145","504501001","Оказание услуг в сфере горячего водоснабжения"]
[659,"Ступинский муниципальный район","сельское поселение Семеновское","46653436","Московская дирекция по тепловодоснабжению - структурное подразделение Центральной дирекции по тепловодоснабжению - филиала ОАО \"РЖД\"","7708503727","770845068","Оказание услуг в сфере горячего водоснабжения"]
[660,"Ступинский муниципальный район","сельское поселение Семеновское","46653436","Московская дирекция по тепловодоснабжению СП ЦДТВ –филиал ОАО «РЖД»","7708503727","770845069",""]
[661,"Ступинский муниципальный район","сельское поселение Семеновское","46653436","ОАО \"Мосэнерго\"","7705035012","997450001","Оказание услуг в сфере горячего водоснабжения"]
[662,"Ступинский муниципальный район","сельское поселение Семеновское","46653436","ООО \"ЖКУ Аксиньино\"","5045050145","504501001","Оказание услуг в сфере горячего водоснабжения"]
[663,"Талдомский муниципальный район","Талдомский муниципальный район","46654000","ОАО \"Водоканал Московской области\"","5056011395","502701001","Поставка горячей воды"]
[664,"Талдомский муниципальный район","городское поселение Вербилки","46654154","МУП \"Коммунальный сервис Вербилки\"","5078019574","507801001","Поставка горячей воды"]
[665,"Талдомский муниципальный район","городское поселение Вербилки","46654154","ОАО \"Водоканал Московской области\"","5056011395","502701001","Поставка горячей воды"]
[666,"Талдомский муниципальный район","городское поселение Запрудня","46654158","ЗАО \"ЖКС поселка Запрудня\"","5078015146","507801001","Поставка горячей воды"]
[667,"Талдомский муниципальный район","городское поселение Запрудня","46654158","ОАО \"Водоканал Московской области\"","5056011395","502701001","Поставка горячей воды"]
[668,"Талдомский муниципальный район","городское поселение Северный","46654163","ОАО \"Водоканал Московской области\"","5056011395","502701001","Поставка горячей воды"]
[669,"Талдомский муниципальный район","городское поселение Северный","46654163","ОАО \"Талдомские коммунальные системы\"","5078019510","507801001","Поставка горячей воды"]
[670,"Талдомский муниципальный район","городское поселение Талдом","46654101","МУП «Талдомсервис»","5078015918","507801001","Поставка горячей воды"]
[671,"Талдомский муниципальный район","городское поселение Талдом","46654101","ОАО \"Водоканал Московской области\"","5056011395","502701001","Поставка горячей воды"]
[672,"Талдомский муниципальный район","сельское поселение Гуслевское","46654407","ОАО \"Водоканал Московской области\"","5056011395","502701001","Поставка горячей воды"]
[673,"Талдомский муниципальный район","сельское поселение Ермолинское","46654410","ОАО \"Водоканал Московской области\"","5056011395","502701001","Поставка горячей воды"]
[674,"Талдомский муниципальный район","сельское поселение Темповое","46654426","ОАО \"Водоканал Московской области\"","5056011395","502701001","Поставка горячей воды"]
[675,"Чеховский муниципальный район","городское поселение Чехов","46656101","Войсковая часть 51952","5048050640","504801001","Поставка горячей воды"]
[676,"Чеховский муниципальный район","городское поселение Чехов","46656101","Войсковая часть 52583","5048051612","504801001","Поставка горячей воды"]
[677,"Чеховский муниципальный район","городское поселение Чехов","46656101","ГБСУСО МО «Антроповский психоневрологический интернат»","5048051186","504801001","Поставка горячей воды"]
[678,"Чеховский муниципальный район","городское поселение Чехов","46656101","МП \"ЖКХ \" Чеховского района","5048052077","504801001","Поставка горячей воды"]
[679,"Чеховский муниципальный район","сельское поселение Любучанское","46656416","ГУЗ \" Психиатрическая больница №5\"","5048050866","504801001","Поставка горячей воды"]
[680,"Чеховский муниципальный район","сельское поселение Стремиловское","46656428","ФГУ Санаторий Русское поле","5048050739","504801001","Поставка горячей воды"]
[681,"Шатурский муниципальный район","Шатурский муниципальный район","46657000","ОАО \"Водоканал Московской области\"","5056011395","502701001","Поставка горячей воды"]
[682,"Шатурский муниципальный район","Шатурский муниципальный район","46657000","Шатурская ГРЭС","8602067092","504902001","Поставка горячей воды"]
[683,"Шатурский муниципальный район","городское поселение Мишеронский","46657163","ОАО \"Водоканал Московской области\"","5056011395","502701001","Поставка горячей воды"]
[684,"Шатурский муниципальный район","городское поселение Мишеронский","46657163","Туголесское МУЖКП","5049003749","504901001","Поставка горячей воды"]
[685,"Шатурский муниципальный район","городское поселение Мишеронский","46657163","Шатурская ГРЭС","8602067092","504902001","Поставка горячей воды"]
[686,"Шатурский муниципальный район","городское поселение Черусти","46657187","ОАО \"Водоканал Московской области\"","5056011395","502701001","Поставка горячей воды"]
[687,"Шатурский муниципальный район","городское поселение Черусти","46657187","Шатурская ГРЭС","8602067092","504902001","Поставка горячей воды"]
[688,"Шатурский муниципальный район","городское поселение Шатура","46657101","ГБОУ НПО Профессиональное училище №66","5049005915","504901001","Поставка горячей воды"]
[689,"Шатурский муниципальный район","городское поселение Шатура","46657101","ОАО \"Водоканал Московской области\"","5056011395","502701001","Поставка горячей воды"]
[690,"Шатурский муниципальный район","городское поселение Шатура","46657101","ОАО \"Дмитровское\"","5049017702","504901001","Поставка горячей воды"]
[691,"Шатурский муниципальный район","городское поселение Шатура","46657101","ОАО \"Мишеронское\"","5049017646","504901001","Поставка горячей воды"]
[692,"Шатурский муниципальный район","городское поселение Шатура","46657101","ООО \"Черустинские коммунальные системы\"","5049020141","504901001","Поставка горячей воды"]
[693,"Шатурский муниципальный район","городское поселение Шатура","46657101","Туголесское МУЖКП","5049003749","504901001","Поставка горячей воды"]
[694,"Шатурский муниципальный район","городское поселение Шатура","46657101","Шатурская ГРЭС","8602067092","504902001","Поставка горячей воды"]
[695,"Шатурский муниципальный район","сельское поселение Дмитровское","46657413","ОАО \"Водоканал Московской области\"","5056011395","502701001","Поставка горячей воды"]
[696,"Шатурский муниципальный район","сельское поселение Дмитровское","46657413","Шатурская ГРЭС","8602067092","504902001","Поставка горячей воды"]
[697,"Шатурский муниципальный район","сельское поселение Кривандинское","46657416","Кривандинское МУ ЖКП","5049008602","504901001","Поставка горячей воды"]
[698,"Шатурский муниципальный район","сельское поселение Кривандинское","46657416","ОАО \"Водоканал Московской области\"","5056011395","502701001","Поставка горячей воды"]
[699,"Шатурский муниципальный район","сельское поселение Кривандинское","46657416","Туголесское МУЖКП","5049003749","504901001","Поставка горячей воды"]
[700,"Шатурский муниципальный район","сельское поселение Кривандинское","46657416","Шатурская ГРЭС","8602067092","504902001","Поставка горячей воды"]
[701,"Шатурский муниципальный район","сельское поселение Пышлицкое","46657440","ОАО \"Водоканал Московской области\"","5056011395","502701001","Поставка горячей воды"]
[702,"Шатурский муниципальный район","сельское поселение Пышлицкое","46657440","Шатурская ГРЭС","8602067092","504902001","Поставка горячей воды"]
[703,"Шатурский муниципальный район","сельское поселение Радовицкое","46657460","ОАО \"Водоканал Московской области\"","5056011395","502701001","Поставка горячей воды"]
[704,"Шатурский муниципальный район","сельское поселение Радовицкое","46657460","Шатурская ГРЭС","8602067092","504902001","Поставка горячей воды"]
[705,"Шаховской муниципальный район","городское поселение Шаховская","46658151","МПКХ \"Шаховская\"","5079000720","507901001","Поставка горячей воды"]
[706,"Щелковский муниципальный район","городское поселение Фряново","46659163","Фряновское МП ЖКХ","5050037781","505001001","Поставка горячей воды"]
[707,"Щелковский муниципальный район","городское поселение Щелково","46659101","ГУ здравоохранения г. Москвы Детская психиатрическая больница №11","5050006060","505001001","Поставка горячей воды"]
[708,"Щелковский муниципальный район","городское поселение Щелково","46659101","МП ЩР \"Щелковский Водоканал\"","5050025306","505001001","Поставка горячей воды"]
[709,"Щелковский муниципальный район","городское поселение Щелково","46659101","МПГПС \"Свердловское\"","5050019239","505001001","Поставка горячей воды"]
[710,"Щелковский муниципальный район","городское поселение Щелково","46659101","МПЩР \"Щелковская Теплосеть\"","5050026684","505001001","Поставка горячей воды"]
[711,"Щелковский муниципальный район","городское поселение Щелково","46659101","ОАО \"ММК-Профиль-Москва\"","5050014030","505001001","Поставка горячей воды"]
[712,"Щелковский муниципальный район","городское поселение Щелково","46659101","ОАО \"Теплосеть-Инвест\"","5050055205","505001001","Поставка горячей воды"]
[713,"Щелковский муниципальный район","городское поселение Щелково","46659101","ООО \"Тепло Сервис\"","5050082061","505001001","Поставка горячей воды"]
[714,"Щелковский муниципальный район","городское поселение Щелково","46659101","ООО\"Теплосервис\"","5041024698","505001001","Поставка горячей воды"]
[715,"Щелковский муниципальный район","сельское поселение Анискинское","46659402","ОАО \"Орловское\"","5050080402","505001001","Поставка горячей воды"]
[716,"Щелковский муниципальный район","сельское поселение Медвежье-Озерское","46659419","ООО \"ГрадИнвест\"","7729609724","500101001","Поставка горячей воды"]
[717,"городкской округ Восход (ЗАТО)","Поселок Восход (ЗАТО)","46763000","МУП «ВОСХОД-КОМПЛЕКС»","5017042382","501701001","Поставка горячей воды"]
[718,"городской округ Балашиха","Город Балашиха","46704000","ЗАО \"Московский авиационно-ремонтный завод РОСТО\" (\"МАРЗ РОСТО\")","5001020016","500101001","Поставка горячей воды"]
[719,"городской округ Балашиха","Город Балашиха","46704000","ООО \"Балашихинская хлопкопрядильная фабрика\"","5001059045","500101001","Поставка горячей воды"]
[720,"городской округ Балашиха","Город Балашиха","46704000","ООО \"Балашихинское коммунальное хозяйство\"","5001042852","500101001","Поставка горячей воды"]
[721,"городской округ Балашиха","Город Балашиха","46704000","ООО \"Балгорводхоз\"","5001085373","500101001","Оказание услуг в сфере горячего водоснабжения"]
[722,"городской округ Балашиха","Город Балашиха","46704000","ООО \"Лисья гора\"","5001058108","500101001","Поставка горячей воды"]
[723,"городской округ Балашиха","Город Балашиха","46704000","ООО \"Селена\"","5001075872","500101001","Поставка горячей воды"]
[724,"городской округ Балашиха","Город Балашиха","46704000","ООО \"СтройСети\"","5032116938","503201001","Поставка горячей воды"]
[725,"городской округ Балашиха","Город Балашиха","46704000","ООО \"Тепловые сети Балашихи\"","5001036552","500101001","Поставка горячей воды"]
[726,"городской округ Балашиха","Город Балашиха","46704000","ФКУ \" Центральная объединенная база хранения ресурсов МВД России\"","5001010593","500101001","Поставка горячей воды"]
[727,"городской округ Балашиха","городской округ Балашиха","46704000","ООО \"СтройСети\"","5032116938","503201001","Поставка горячей воды"]
[728,"городской округ Бронницы","Город Бронницы","46705000","Бронницкое УГХ","5002000100","500201001","Поставка горячей воды"]
[729,"городской округ Власиха","Городской округ Власиха","46773000","МУП \"Благоустройство и развитие\"","5032223658","503201001","Поставка горячей воды"]
[730,"городской округ Дзержинский","Город Дзержинский","46711000","ДМУП \"Энерго-коммунальное производственное объединение\"","5027033059","505601001","Поставка горячей воды"]
[731,"городской округ Дзержинский","Город Дзержинский","46711000","ОАО \"Водоканал Московской области\"","5056011395","502701001","Поставка горячей воды"]
[732,"городской округ Дзержинский","городской округ Дзержинский","46711000","ОАО \"Водоканал Московской области\"","5056011395","502701001","Поставка горячей воды"]
[733,"городской округ Долгопрудный","Город Долгопрудный","46716000","МУП \"Инженерные сети г.Долгопрудного\"","5008032317","500801001","Поставка горячей воды"]
[734,"городской округ Домодедово","Город Домодедово","46709000","ГУ \"Психиатрическая больница №2 им О.В. Кербикова\"","5009014328","500901001","Поставка горячей воды"]
[735,"городской округ Домодедово","Город Домодедово","46709000","ЗАО племзавод \"Барыбино\"","5009041258","500901001","Поставка горячей воды"]
[736,"городской округ Домодедово","Город Домодедово","46709000","МУП \"Теплосеть\" г.о Домодедово","5009022752","500901001","Поставка горячей воды"]
[737,"городской округ Домодедово","Город Домодедово","46709000","Московская дирекция по тепловодоснабжению - структурное подразделение Центральной дирекции по тепловодоснабжению - филиала ОАО \"РЖД\"","7708503727","770845068","Оказание услуг в сфере горячего водоснабжения"]
[738,"городской округ Домодедово","Город Домодедово","46709000","Московская дирекция по тепловодоснабжению СП ЦДТВ –филиал ОАО «РЖД»","7708503727","770845069",""]
[739,"городской округ Домодедово","Город Домодедово","46709000","ОАО \"Белостолбовский кирпичный завод\"","5009008934","500901001","Поставка горячей воды"]
[740,"городской округ Домодедово","Город Домодедово","46709000","ООО \"ЖК-Эксплуатация\"","7705614595","500901001","Поставка горячей воды"]
[741,"городской округ Домодедово","Город Домодедово","46709000","ООО \"Промкомбинат\"","5009057480","500901001","Поставка горячей воды"]
[742,"городской округ Домодедово","Город Домодедово","46709000","ФГБУ ЛОК \"Елочки\"","5009067866","500901001","Поставка горячей воды"]
[743,"городской округ Домодедово","Город Домодедово","46709000","ФГУ \"Объединенный санаторий \"Подмосковье\" Управления делами Президента РФ","5009014293","500901001","Поставка горячей воды"]
[744,"городской округ Домодедово","Город Домодедово","46709000","ФГУК \"Государственный фонд кинофильмов Российской Федерации\"","5009007137","500901001","Поставка горячей воды"]
[745,"городской округ Домодедово","городской округ Домодедово","46709000","Московская дирекция по тепловодоснабжению - структурное подразделение Центральной дирекции по тепловодоснабжению - филиала ОАО \"РЖД\"","7708503727","770845068","Оказание услуг в сфере горячего водоснабжения"]
[746,"городской округ Домодедово","городской округ Домодедово","46709000","Московская дирекция по тепловодоснабжению СП ЦДТВ –филиал ОАО «РЖД»","7708503727","770845069",""]
[747,"городской округ Дубна","Город Дубна","46718000","МУП  г. Дубны \"ПТО ГХ\"","5010010769","501001001","Поставка горячей воды"]
[748,"городской округ Дубна","Город Дубна","46718000","ОАО \"ПТО ГХ\"","5010045296","501001001","Поставка горячей воды"]
[749,"городской округ Дубна","Город Дубна","46718000","ОАО \"ЭНЕРГИЯ-ТЕНЗОР\"","5010003793","501001001","Поставка горячей воды"]
[750,"городской округ Дубна","Город Дубна","46718000","Объединённый институт ядерных исследований (ОИЯИ)","9909125356","501063001","Поставка горячей воды"]
[751,"городской округ Железнодорожный","Город Железнодорожный","46724000","ЗАО «МОЭГ»","5012070724","501201001","Оказание услуг в сфере горячего водоснабжения"]
[752,"городской округ Железнодорожный","Город Железнодорожный","46724000","МУП \"Теплосеть г.Железнодорожный\"","5012001181","501201001","Поставка горячей воды"]
[753,"городской округ Жуковский","Город Жуковский","46725000","ОАО «ЛИИ им. М.М.Громова»","5040114973","504001001",""]
[754,"городской округ Жуковский","Город Жуковский","46725000","ООО «Теплоцентраль – ЖКХ»","5013054796","501301001","Поставка горячей воды"]
[755,"городской округ Звездный городок (ЗАТО)","Городской округ Звездный городок (ЗАТО)","46774001","ФГБУ \"НИИ ЦПК имени Ю.А.Гагарина","5050077618","505001001","Поставка горячей воды"]
[756,"городской округ Звенигород","Город Звенигород","46730000","ЗАО \"Звенигородская Энерго-Сетевая Компания\"","5015011734","501501001","Поставка горячей воды"]
[757,"городской округ Звенигород","Город Звенигород","46730000","ОАО \"Санаторий Поречье\"","5015000299","501501001","Поставка горячей воды"]
[758,"городской округ Звенигород","Город Звенигород","46730000","ООО \"Современные технологии\"","7708229993","770801001","Поставка горячей воды"]
[759,"городской округ Ивантеевка","Город Ивантеевка","46732000","ЗАО \"ИТ Энергосбыт\"","5016011896","501601001","Поставка горячей воды"]
[760,"городской округ Ивантеевка","Город Ивантеевка","46732000","МУП \"Ивантеевская Теплосеть\"","5016013325","501601001","Поставка горячей воды"]
[761,"городской округ Климовск","Город Климовск","46736000","МУП \"Теплосеть\" г. Климовск","5021012581","502101001","Поставка горячей воды"]
[762,"городской округ Коломна","Город Коломна","46738000","МУП \"Тепло Коломны\"","5022030985","502201001","Поставка горячей воды"]
[763,"городской округ Королев","Город Королев","46734000","ОАО \"Теплосеть\"","5018134438","501801001","Поставка горячей воды"]
[764,"городской округ Котельники","Город Котельники","46739000","ЗАО «Белая Дача Инжиниринг»","5027188045","502701001","Оказание услуг в сфере горячего водоснабжения"]
[765,"городской округ Котельники","городской округ Котельники","46739000","ЗАО «Белая Дача Инжиниринг»","5027188045","502701001","Оказание услуг в сфере горячего водоснабжения"]
[766,"городской округ Красноармейск","Город Красноармейск","46743000","МУП \"СКИ городского округа Красноармейск\"","5023010332","502301001","Поставка горячей воды"]
[767,"городской округ Краснознаменск (ЗАТО)","Город Краснознаменск (ЗАТО)","46706000","МУП ТХ \"Теплосервис\"","5006011488","500601001","Поставка горячей воды"]
[768,"городской округ Лобня","Город Лобня","46740000","ЗАО \"Лобненский завод строительного фарфора\"","5025001397","502501001","Поставка горячей воды"]
[769,"городской округ Лобня","Город Лобня","46740000","Московская дирекция по тепловодоснабжению - структурное подразделение Центральной дирекции по тепловодоснабжению - филиала ОАО \"РЖД\"","7708503727","770845068","Оказание услуг в сфере горячего водоснабжения"]
[770,"городской округ Лобня","Город Лобня","46740000","Московская дирекция по тепловодоснабжению СП ЦДТВ –филиал ОАО «РЖД»","7708503727","770845069",""]
[771,"городской округ Лобня","Город Лобня","46740000","УМП \"Лобненская Теплосеть\"","5025000315","502501001","Поставка горячей воды"]
[772,"городской округ Лобня","городской округ Лобня","46740000","Московская дирекция по тепловодоснабжению - структурное подразделение Центральной дирекции по тепловодоснабжению - филиала ОАО \"РЖД\"","7708503727","770845068","Оказание услуг в сфере горячего водоснабжения"]
[773,"городской округ Лобня","городской округ Лобня","46740000","Московская дирекция по тепловодоснабжению СП ЦДТВ –филиал ОАО «РЖД»","7708503727","770845069",""]
[774,"городской округ Лосино-Петровский","Город Лосино-Петровский","46742000","МП \"ЛП КТВС\"","5050097808","505001001","Оказание услуг в сфере горячего водоснабжения"]
[775,"городской округ Лосино-Петровский","Город Лосино-Петровский","46742000","ООО \"Областные коммунальные системы\"","5050088120","505001001","Поставка горячей воды"]
[776,"городской округ Лыткарино","Город Лыткарино","46741000","МП \"Лыткаринская теплосеть\"","5026000406","502601001","Поставка горячей воды"]
[777,"городской округ Молодежный (ЗАТО)","Поселок Молодежный (ЗАТО)","46761000","МУП \"Жилкомбытстрой-Молодежный\"","5030041170","503001001","Поставка горячей воды"]
[778,"городской округ Орехово-Зуево","Город Орехово-Зуево","46757000","ООО \"Орехово-Зуевская \"Теплосеть\"","5034022668","503401001","Поставка горячей воды"]
[779,"городской округ Подольск","Город Подольск","46760000","ЗАО \"Подольский завод электромонтажных изделий\"","5036003332","503601001","Поставка горячей воды"]
[780,"городской округ Подольск","Город Подольск","46760000","МУП \"Подольская  теплосеть\"","5036002770","503601001","Поставка горячей воды"]
[781,"городской округ Подольск","Город Подольск","46760000","ОАО \"Машиностроительный завод  \"ЗиО-Подольск\"","5036040729","509950001","Поставка горячей воды"]
[782,"городской округ Подольск","Город Подольск","46760000","ОАО \"Подольская теплоэнергетическая компания\"","5036056101","503601001","Поставка горячей воды"]
[783,"городской округ Подольск","Город Подольск","46760000","ОАО \"Подольский экспериментальный мукомольный завод\"","5036002339","503601001","Поставка горячей воды"]
[784,"городской округ Подольск","Город Подольск","46760000","ОАО \"Подольский электромеханический завод\"","5036007545","503601001","Поставка горячей воды"]
[785,"городской округ Подольск","Город Подольск","46760000","ООО \"Подольский энергетический завод имени Калинина\"","5036050290","503601001","Поставка горячей воды"]
[786,"городской округ Подольск","Город Подольск","46760000","ООО \"РЭО\"","5036069580","503601001","Поставка горячей воды"]
[787,"городской округ Подольск","Город Подольск","46760000","ООО \"Радуга - Хит\"","5036063074","503601001","Поставка горячей воды"]
[788,"городской округ Подольск","Город Подольск","46760000","ООО \"Эврика-2\"","5074013469","503601001","Поставка горячей воды"]
[789,"городской округ Подольск","Город Подольск","46760000","ООО \"Экономтрансстрой\"","7733113390","773301001","Поставка горячей воды"]
[790,"городской округ Подольск","Город Подольск","46760000","ФГКУ комбинат \"Березка\" Росрезерва","5036025537","503101001","Поставка горячей воды"]
[791,"городской округ Подольск","Город Подольск","46760000","Филиал ОАО \"Центротрансжелезобетон\"  Силикатненский завод ЖБК","7709033898","503602002","Поставка горячей воды"]
[792,"городской округ Протвино","Город Протвино","46767000","ОАО \"Протвинское энергетическое производство \"ПРОТЭП\"","5037002934","503701001","Поставка горячей воды"]
[793,"городской округ Протвино","Город Протвино","46767000","ФГБУ ГНЦ ИФВЭ","5037007869","503701001","Оказание услуг в сфере горячего водоснабжения"]
[794,"городской округ Протвино","городской округ Протвино","46767000","ФГБУ ГНЦ ИФВЭ","5037007869","503701001","Оказание услуг в сфере горячего водоснабжения"]
[795,"городской округ Пущино","Город Пущино","46762000","МУП \"Тепловодоканал\"","5039008071","503901001","Поставка горячей воды"]
[796,"городской округ Реутов","Город Реутов","46764000","ООО \"Реутовская теплосеть\"","5012055109","504101001","Поставка горячей воды"]
[797,"городской округ Рошаль","Город Рошаль","46765000","ООО \"Инвестгазпром\"","7728175697","505501001","Поставка горячей воды"]
[798,"городской округ Серпухов","Город Серпухов","46770000","МУП \"Серпуховская теплосеть\"","5043014617","504301001","Поставка горячей воды"]
[799,"городской округ Серпухов","Город Серпухов","46770000","МУП Серпуховского района \"УК ЖКХ\"","5077019733","507701001","Поставка горячей воды"]
[800,"городской округ Троицк","Город Троицк","46775000","ГУЗ ДКС № 20 «Красная Пахра»","5046021524","504601001","Поставка горячей воды"]
[801,"городской округ Троицк","Город Троицк","46775000","МУП \"Троицктеплоэнерго\"","5046049865","504601001","Поставка горячей воды"]
[802,"городской округ Троицк","Город Троицк","46775000","ОАО \"Троицкая камвольная фабрика\"","5046005770","504601001","Поставка горячей воды"]
[803,"городской округ Троицк","Город Троицк","46775000","ФКУ ФМС России \"ЦМПР \"Ватутинки-1\"","5046005882","504601001","Поставка горячей воды"]
[804,"городской округ Фрязино","Город Фрязино","46780000","ЗАО \"Фрязинская теплосеть\"","5052020960","505201001","Поставка горячей воды"]
[805,"городской округ Химки","Город Химки","46783000","ОАО \"Мосэнерго\"","7705035012","997450001","Оказание услуг в сфере горячего водоснабжения"]
[806,"городской округ Химки","городской округ Химки","46783000","ОАО \"Мосэнерго\"","7705035012","997450001","Оказание услуг в сфере горячего водоснабжения"]
[807,"городской округ Черноголовка","Город Черноголовка","46781000","ФГУП \"Управление эксплуатации научного центра РАН в Черноголовке\"","5031007809","503101001","Поставка горячей воды"]
[808,"городской округ Щербинка","Город Щербинка","46789000","МУП \"ЖКХ г. Щербинки\"","5051006070","505101001","Поставка горячей воды"]
[809,"городской округ Электрогорск","Город Электрогорск","46791000","МУП \"Коммунальщик\"","5035032436","503503001","Поставка горячей воды"]
[810,"городской округ Электрогорск","Город Электрогорск","46791000","ОАО \"Мосэнерго\"","7705035012","997450001","Оказание услуг в сфере горячего водоснабжения"]
[811,"городской округ Электрогорск","городской округ Электрогорск","46791000","ОАО \"Мосэнерго\"","7705035012","997450001","Оказание услуг в сфере горячего водоснабжения"]
[812,"городской округ Электросталь","Город Электросталь","46790000","МУП \"ПТП ГХ\", городской округ Электросталь","5053006284","505301001","Поставка горячей воды"]
[813,"городской округ Электросталь","Город Электросталь","46790000","ООО \"Элемаш-ТЭК\"","5053055010","505301001","Поставка горячей воды"]
[814,"городской округ Юбилейный","Город Юбилейный","46793000","МУП \"Жилищно-коммунальное объединение\" г.Юбилейного","5054086525","505401001","Поставка горячей воды"]
[815,"","","","Лечебно-профилактическое учреждение санаторий «Озёры»","5033002210","503301001","Поставка горячей воды"]
[816,"","","","Московская дирекция по тепловодоснабжению - структурное подразделение Центральной дирекции по тепловодоснабжению - филиала ОАО \"РЖД\"","7708503727","770845068","Оказание услуг в сфере горячего водоснабжения"]
[817,"","","","Московская дирекция по тепловодоснабжению СП ЦДТВ –филиал ОАО «РЖД»","7708503727","770845069",""]
[818,"","","","ООО \"Контур Строй\"","5042106985","504201001","Поставка горячей воды"]
[819,"","","","ФГУП АПК \"Воскресенский\"","5003034790","500301001","Поставка горячей воды"]

{"sheet":"modHyperlink","index":18,"n_rows":0,"n_cols":0,"rows_kept":0,"cut":false,"hidden":true,"merged":[]}

{"sheet":"modChange","index":19,"n_rows":0,"n_cols":0,"rows_kept":0,"cut":false,"hidden":true,"merged":[]}

{"sheet":"modTitleSheetHeaders","index":20,"n_rows":0,"n_cols":0,"rows_kept":0,"cut":false,"hidden":true,"merged":[]}

{"sheet":"modServiceModule","index":21,"n_rows":0,"n_cols":0,"rows_kept":0,"cut":false,"hidden":true,"merged":[]}

{"sheet":"modClassifierValidate","index":22,"n_rows":0,"n_cols":0,"rows_kept":0,"cut":false,"hidden":true,"merged":[]}

{"sheet":"Паспорт","index":23,"n_rows":71,"n_cols":57,"rows_kept":71,"cut":false,"hidden":true,"merged":[[49,8,49,10],[52,8,52,10],[53,8,53,10],[50,8,50,10],[51,8,51,10],[44,8,44,10],[45,8,45,10],[42,8,42,10],[43,8,43,10],[48,8,48,10],[3,3,3,10],[12,5,12,10],[13,5,13,10],[6,5,6,10],[7,5,7,10],[5,3,5,10],[8,5,8,10],[9,5,9,10],[10,5,10,10],[11,5,11,10],[14,6,14,9],[21,5,21,10],[17,3,17,10],[15,5,15,10],[18,5,18,10],[19,5,19,10],[20,5,20,10],[30,5,30,10],[31,7,31,10],[32,7,32,10],[22,5,22,10],[23,5,23,10],[29,3,29,10],[25,3,25,10],[26,5,26,10],[27,3,27,10],[33,3,33,10],[54,3,54,10],[62,5,62,10],[57,5,57,10],[58,5,58,10],[56,3,56,10],[36,8,36,10],[37,8,37,10],[59,5,59,10],[35,3,35,10],[46,8,46,10],[47,8,47,10],[41,8,41,10],[38,8,38,10],[39,8,39,10],[40,8,40,10],[64,3,64,10],[61,3,61,10],[63,5,63,10],[70,5,70,10],[69,5,69,10],[68,5,68,10],[67,5,67,10],[66,3,66,10]]}
[null,null,null,null,null,null,null,null,null,null,null,null,null,null,null,null,null,null,null,null,null,null,null,null,null,null,null,null,null,null,null,null,null,null,null,null,null,null,null,null,null,null,null,null,null,null,null,"Код диапазона:","Название диапазона:","Сфера регулирования:","Подсфера:","Тип информации в шаблоне:","Состояние шаблона:","Периодичность:","\"Геотип\" шаблона:","Тип шаблона:","Заказчик:"]
[null,null,null,null,null,null,null,null,null,null,null,null,null,null,null,null,null,null,null,null,null,null,null,null,null,null,null,null,null,null,null,null,null,null,null,null,null,null,null,null,null,null,null,null,null,null,null,"ps_sr","Сфера регулирования:","Не определено","Не определено","Не определено","Не определено","Не определено","Не определено","Не определено","Не определено"]
[null,null,null,null,null,null,null,null,null,null,null,null,null,null,null,null,null,null,null,null,null,null,null,null,null,null,null,null,null,null,null,null,null,null,null,null,null,null,null,null,null,null,null,null,null,null,null,"ps_ti","Тип информации в шаблоне:","NETS","водоотведение - очистка","Статистический","Проект","Единовременный","Региональный шаблон","Атомарный","РЭК"]
[null,null,null,"Паспорт к шаблону",null,null,null,null,null,null,null,null,null,null,null,null,null,null,null,null,null,null,null,null,null,null,null,null,null,null,null,null,null,null,null,null,null,null,null,null,null,null,null,null,null,null,null,"ps_ssh","Состояние шаблона:","Аэропорты","водоотведение - передача","Расчетный","Утвержден","Ежемесячный","Муниципальный шаблон","Сводный","ФСТ"]
[null,null,null,null,null,null,null,null,null,null,null,null,null,null,null,null,null,null,null,null,null,null,null,null,null,null,null,null,null,null,null,null,null,null,null,null,null,null,null,null,null,null,null,null,null,null,null,"ps_p","Периодичность:","Газ","водоотведение - прием","Обосновывающие материалы",null,"Ежеквартальный","Шаблон от организации",null,"Экспертная организация"]
[null,null,null,"1. Общие сведения",null,null,null,null,null,null,null,null,null,null,null,null,null,null,null,null,null,null,null,null,null,null,null,null,null,null,null,null,null,null,null,null,null,null,null,null,null,null,null,null,null,null,null,"ps_geo","\"Геотип\" шаблона:","Железные дороги","водоснабжение - очистка",null,null,"Ежегодный"]
[null,null,null,"1.1","Код",null,null,null,null,null,null,null,null,null,null,null,null,null,null,null,null,null,null,null,null,null,null,null,null,null,null,null,null,null,null,null,null,null,null,null,null,null,null,null,null,null,null,"ps_tsh","Тип шаблона:","ЖКХ","водоснабжение - передача"]
[null,null,null,"1.2","Краткое наименование",null,null,null,null,null,null,null,null,null,null,null,null,null,null,null,null,null,null,null,null,null,null,null,null,null,null,null,null,null,null,null,null,null,null,null,null,null,null,null,null,null,null,"ps_psr","Подсфера:","Медицина","водоснабжение - подъем"]
[null,null,null,"1.3","Полное наименование",null,null,null,null,null,null,null,null,null,null,null,null,null,null,null,null,null,null,null,null,null,null,null,null,null,null,null,null,null,null,null,null,null,null,null,null,null,null,null,null,null,null,"ps_z","Заказчик:","Порты","выработка ТС  "]
[null,null,null,"1.4","Сфера регулирования ",null,null,null,null,null,null,null,null,null,null,null,null,null,null,null,null,null,null,null,null,null,null,null,null,null,null,null,null,null,null,null,null,null,null,null,null,null,null,null,null,null,null,null,null,"Связь","выработка ТС в режиме комбинированной выработки"]
[null,null,null,"1.5","Подсфера",null,null,null,null,null,null,null,null,null,null,null,null,null,null,null,null,null,null,null,null,null,null,null,null,null,null,null,null,null,null,null,null,null,null,null,null,null,null,null,null,null,null,null,null,"Транспорт","выработка электрической энергии"]
[null,null,null,"1.6","Состояние шаблона (Утвержден/Проект)",null,null,null,null,null,null,null,null,null,null,null,null,null,null,null,null,null,null,null,null,null,null,null,null,null,null,null,null,null,null,null,null,null,null,null,null,null,null,null,null,null,null,null,null,"Электроэнергетика","выработка+передача+сбыт ТС"]
[null,null,null,"1.7","Заказчик",null,null,null,null,null,null,null,null,null,null,null,null,null,null,null,null,null,null,null,null,null,null,null,null,null,null,null,null,null,null,null,null,null,null,null,null,null,null,null,null,null,null,null,null,null,"передача ТС"]
[null,null,null,"1.8","Отчитывается",null,null,null,null,null,null,null,null,null,null,null,null,null,null,null,null,null,null,null,null,null,null,null,null,null,null,null,null,null,null,null,null,null,null,null,null,null,null,null,null,null,null,null,null,null,"передача ЭЭ"]
[null,null,null,"1.9","Тип шаблона",null,"Если шаблон сводный, необходимо указать код атомарного шаблона для него:",null,null,null,null,null,null,null,null,null,null,null,null,null,null,null,null,null,null,null,null,null,null,null,null,null,null,null,null,null,null,null,null,null,null,null,null,null,null,null,null,null,null,null,"сбыт ТС"]
[null,null,null,"1.10","Текущая версия",null,null,null,null,null,null,null,null,null,null,null,null,null,null,null,null,null,null,null,null,null,null,null,null,null,null,null,null,null,null,null,null,null,null,null,null,null,null,null,null,null,null,null,null,null,"сбыт ЭЭ"]
[null,null,null,null,null,null,null,null,null,null,null,null,null,null,null,null,null,null,null,null,null,null,null,null,null,null,null,null,null,null,null,null,null,null,null,null,null,null,null,null,null,null,null,null,null,null,null,null,null,null,"ТБО"]
[null,null,null,"2. Организационные"]
[null,null,null,"2.1","Тип информации в шаблоне "]
[null,null,null,"2.2","Ответственный регулятор (от заказчика)"]
[null,null,null,"2.3","Ответственный специалист (от СМА)"]
[null,null,null,"2.4","Ответственный программист (от СМА)"]
[null,null,null,"2.5","Ответственные за сбор данных (от СМА)"]
[null,null,null,"2.6","Ответственные за сбор данных (от заказчика)"]
[]
[null,null,null,"3. Законодательство (методики, приказы, постановления ...)"]
[null,null,"first","3.1","Документ1"]
[null,null,"end","Добавить документ"]
[]
[null,null,null,"4. Периодичность"]
[null,null,null,"4.1","Периодичность"]
[null,null,null,null,"Мониторинги(прошедшие и плановые)","Дата начала","Дата окончания","Согласно (приказ, постановление, письмо)"]
[null,null,"first","4.2.1","Мониторинг1"]
[null,null,"end","Добавить мониторинг"]
[]
[null,null,null,"5. Состав шаблона"]
[null,null,null,null,"Лист","Последняя дата изменений эскиза","Состояние листа","Наименование витрины для листа","Комментарии"]
[null,null,"first","5.1.1"]
[null,null,"Удалить","5.1.2"]
[null,null,"Удалить","5.1.3"]
[null,null,"Удалить","5.1.4"]
[null,null,"Удалить","5.1.5"]
[null,null,"Удалить","5.1.6"]
[null,null,"Удалить","5.1.7"]
[null,null,"Удалить","5.1.8"]
[null,null,"Удалить","5.1.9"]
[null,null,"Удалить","5.1.10"]
[null,null,"Удалить","5.1.11"]
[null,null,"Удалить","5.1.12"]
[null,null,"Удалить","5.1.13"]
[null,null,"Удалить","5.1.14"]
[null,null,"Удалить","5.1.15"]
[null,null,"Удалить","5.1.16"]
[null,null,"Удалить","5.1.17"]
[null,null,"end","Добавить лист"]
[]
[null,null,null,"6. Сроки и даты"]
[null,null,null,"6.1.1","Даты получения последних эскизов, от экспертов"]
[null,null,null,"6.1.2","Даты отправки шаблона на проверку"]
[null,null,null,"6.1.3","Предполагаемый срок сдачи шаблона в эксплуатацию"]
[]
[null,null,null,"7. Версии"]
[null,null,null,null,"Версия","Отличия от предыдущей"]
[null,null,"first","7.1"]
[null,null,"end","Добавить версию"]
[]
[null,null,null,"8. Дополнительно"]
[null,null,null,"8.1","Аналогичные(\"похожие\") шаблоны"]
[null,null,null,"8.2","Особенности шаблона"]
[null,null,null,"8.3","Модуль на основе данного шаблона"]
[null,null,null,"8.4","Процедуры загрузки данных в витрины"]

{"sheet":"REESTR_FILTERED","index":24,"n_rows":1,"n_cols":8,"rows_kept":1,"cut":false,"hidden":true,"merged":[]}
["№","МР","МО","МО ОКТМО","ОРГАНИЗАЦИЯ","ИНН","КПП","ВИД ДЕЯТЕЛЬНОСТИ"]

{"sheet":"REESTR_MO","index":25,"n_rows":420,"n_cols":5,"rows_kept":420,"cut":false,"hidden":true,"merged":[]}
["МР","МО","МО_ОКТМО","МР","ИМЯ ДИАПАЗОНА"]
["Волоколамский муниципальный район","Волоколамский муниципальный район","46605000","Волоколамский муниципальный район","MO_LIST_2"]
["Волоколамский муниципальный район","городское поселение Волоколамск","46605101","Воскресенский муниципальный район","MO_LIST_3"]
["Волоколамский муниципальный район","городское поселение Сычево","46605158","Дмитровский муниципальный район","MO_LIST_4"]
["Волоколамский муниципальный район","сельское поселение Кашинское","46605422","Егорьевский муниципальный район","MO_LIST_5"]
["Волоколамский муниципальный район","сельское поселение Осташевское","46605431","Зарайский муниципальный район","MO_LIST_6"]
["Волоколамский муниципальный район","сельское поселение Спасское","46605434","Истринский муниципальный район","MO_LIST_7"]
["Волоколамский муниципальный район","сельское поселение Теряевское","46605449","Каширский муниципальный район","MO_LIST_8"]
["Волоколамский муниципальный район","сельское поселение Чисменское","46605461","Клинский муниципальный район","MO_LIST_9"]
["Волоколамский муниципальный район","сельское поселение Ярополецкое","46605467","Коломенский муниципальный район","MO_LIST_10"]
["Воскресенский муниципальный район","Воскресенский муниципальный район","46606000","Красногорский муниципальный район","MO_LIST_11"]
["Воскресенский муниципальный район","городское поселение Белоозерский","46606154","Ленинский муниципальный район","MO_LIST_12"]
["Воскресенский муниципальный район","городское поселение Воскресенск","46606101","Лотошинский муниципальный район","MO_LIST_13"]
["Воскресенский муниципальный район","городское поселение Хорлово","46606167","Луховицкий муниципальный район","MO_LIST_14"]
["Воскресенский муниципальный район","городское поселение им. Цюрупы","46606180","Люберецкий муниципальный район","MO_LIST_15"]
["Воскресенский муниципальный район","сельское поселение Ашитковское","46606402","Можайский муниципальный район","MO_LIST_16"]
["Воскресенский муниципальный район","сельское поселение Фединское","46606413","Москва","MO_LIST_17"]
["Дмитровский муниципальный район","Дмитровский муниципальный район","46608000","Мытищинский муниципальный район","MO_LIST_18"]
["Дмитровский муниципальный район","городское поселение  Дмитров","46608101","Наро-Фоминский муниципальный район","MO_LIST_19"]
["Дмитровский муниципальный район","городское поселение Деденево","46608154","Ногинский муниципальный район","MO_LIST_20"]
["Дмитровский муниципальный район","городское поселение Икша","46608157","Одинцовский муниципальный район","MO_LIST_21"]
["Дмитровский муниципальный район","городское поселение Некрасовский","46608163","Озерский муниципальный район","MO_LIST_22"]
["Дмитровский муниципальный район","городское поселение Яхрома","46608105","Орехово-Зуевский муниципальный район","MO_LIST_23"]
["Дмитровский муниципальный район","сельское поселение Большерогачевское","46608407","Павлово-Посадский муниципальный район","MO_LIST_24"]
["Дмитровский муниципальный район","сельское поселение Габовское","46608413","Подольский муниципальный район","MO_LIST_25"]
["Дмитровский муниципальный район","сельское поселение Костинское","46608431","Пушкинский муниципальный район","MO_LIST_26"]
["Дмитровский муниципальный район","сельское поселение Куликовское","46608437","Раменский муниципальный район","MO_LIST_27"]
["Дмитровский муниципальный район","сельское поселение Синьковское","46608461","Рузский муниципальный район","MO_LIST_28"]
["Дмитровский муниципальный район","сельское поселение Якотское","46608470","Сергиево-Посадский муниципальный район","MO_LIST_29"]
["Егорьевский муниципальный район","Егорьевский муниципальный район","46612000","Серебряно-Прудский муниципальный район","MO_LIST_30"]
["Егорьевский муниципальный район","городское поселение Егорьевск","46612101","Серпуховский муниципальный район","MO_LIST_31"]
["Егорьевский муниципальный район","горосдское поселение Рязановский","46612160","Солнечногорский муниципальный район","MO_LIST_32"]
["Егорьевский муниципальный район","сельское поселение Раменское","46612440","Ступинский муниципальный район","MO_LIST_33"]
["Егорьевский муниципальный район","сельское поселение Саввинское","46612443","Талдомский муниципальный район","MO_LIST_34"]
["Егорьевский муниципальный район","сельское поселение Юрцовское","46612434","Чеховский муниципальный район","MO_LIST_35"]
["Зарайский муниципальный район","Зарайский муниципальный район","46616000","Шатурский муниципальный район","MO_LIST_36"]
["Зарайский муниципальный район","городское поселение Зарайск","46616101","Шаховской муниципальный район","MO_LIST_37"]
["Зарайский муниципальный район","сельское поселение Гололобовское","46616408","Щелковский муниципальный район","MO_LIST_38"]
["Зарайский муниципальный район","сельское поселение Каринское","46616416","городкской округ Восход (ЗАТО)","MO_LIST_39"]
["Зарайский муниципальный район","сельское поселение Машоновское","46616428","городской округ Балашиха","MO_LIST_40"]
["Зарайский муниципальный район","сельское поселение Струпненское","46616437","городской округ Бронницы","MO_LIST_41"]
["Истринский муниципальный район","Истринский муниципальный район","46618000","городской округ Власиха","MO_LIST_42"]
["Истринский муниципальный район","городское поселение Дедовск","46618103","городской округ Дзержинский","MO_LIST_43"]
["Истринский муниципальный район","городское поселение Истра","46618101","городской округ Долгопрудный","MO_LIST_44"]
["Истринский муниципальный район","городское поселение Снегири","46618156","городской округ Домодедово","MO_LIST_45"]
["Истринский муниципальный район","сельское поселение Бужаровское","46618402","городской округ Дубна","MO_LIST_46"]
["Истринский муниципальный район","сельское поселение Букаревское","46618404","городской округ Железнодорожный","MO_LIST_47"]
["Истринский муниципальный район","сельское поселение Ермолинское","46618413","городской округ Жуковский","MO_LIST_48"]
["Истринский муниципальный район","сельское поселение Ивановское","46618416","городской округ Звездный городок (ЗАТО)","MO_LIST_49"]
["Истринский муниципальный район","сельское поселение Костровское","46618419","городской округ Звенигород","MO_LIST_50"]
["Истринский муниципальный район","сельское поселение Лучинское","46618425","городской округ Ивантеевка","MO_LIST_51"]
["Истринский муниципальный район","сельское поселение Новопетровское","46618428","городской округ Климовск","MO_LIST_52"]
["Истринский муниципальный район","сельское поселение Обушковское","46618431","городской округ Коломна","MO_LIST_53"]
["Истринский муниципальный район","сельское поселение Онуфриевское","46618434","городской округ Королев","MO_LIST_54"]
["Истринский муниципальный район","сельское поселение Павло-Слободское","46618437","городской округ Котельники","MO_LIST_55"]
["Истринский муниципальный район","сельское поселение Ядроминское","46618443","городской округ Красноармейск","MO_LIST_56"]
["Каширский муниципальный район","Каширский муниципальный район","46620000","городской округ Краснознаменск (ЗАТО)","MO_LIST_57"]
["Каширский муниципальный район","городское поселение Кашира","46620101","городской округ Лобня","MO_LIST_58"]
["Каширский муниципальный район","городское поселение Ожерелье","46620104","городской округ Лосино-Петровский","MO_LIST_59"]
["Каширский муниципальный район","сельское поселение Базаровское","46620402","городской округ Лыткарино","MO_LIST_60"]
["Каширский муниципальный район","сельское поселение Домнинское","46620407","городской округ Молодежный (ЗАТО)","MO_LIST_61"]
["Каширский муниципальный район","сельское поселение Знаменское","46620410","городской округ Орехово-Зуево","MO_LIST_62"]
["Каширский муниципальный район","сельское поселение Колтовское","46620413","городской округ Подольск","MO_LIST_63"]
["Каширский муниципальный район","сельское поселение Топкановское","46620419","городской округ Протвино","MO_LIST_64"]
["Клинский муниципальный район","Клинский муниципальный район","46621000","городской округ Пущино","MO_LIST_65"]
["Клинский муниципальный район","городское поселение Высоковск","46621103","городской округ Реутов","MO_LIST_66"]
["Клинский муниципальный район","городское поселение Клин","46621101","городской округ Рошаль","MO_LIST_67"]
["Клинский муниципальный район","городское поселение Решетниково","46621154","городской округ Серпухов","MO_LIST_68"]
["Клинский муниципальный район","сельское поселение Воздвиженское","46621407","городской округ Троицк","MO_LIST_69"]
["Клинский муниципальный район","сельское поселение Воронинское","46621410","городской округ Фрязино","MO_LIST_70"]
["Клинский муниципальный район","сельское поселение Зубовское","46621416","городской округ Химки","MO_LIST_71"]
["Клинский муниципальный район","сельское поселение Нудольское","46621434","городской округ Черноголовка","MO_LIST_72"]
["Клинский муниципальный район","сельское поселение Петровское","46621437","городской округ Щербинка","MO_LIST_73"]
["Коломенский муниципальный район","Коломенский муниципальный район","46622000","городской округ Электрогорск","MO_LIST_74"]
["Коломенский муниципальный район","городское поселение Пески","46622154","городской округ Электросталь","MO_LIST_75"]
["Коломенский муниципальный район","сельское поселение Акатьевское","46622402","городской округ Юбилейный","MO_LIST_76"]
["Коломенский муниципальный район","сельское поселение Биорковское","46622404"]
["Коломенский муниципальный район","сельское поселение Заруденское","46622416"]
["Коломенский муниципальный район","сельское поселение Непецинское","46622419"]
["Коломенский муниципальный район","сельское поселение Пестриковское","46622425"]
["Коломенский муниципальный район","сельское поселение Проводниковское","46622431"]
["Коломенский муниципальный район","сельское поселение Радужное","46622422"]
["Коломенский муниципальный район","сельское поселение Хорошовское","46622434"]
["Красногорский муниципальный район","Красногорский муниципальный район","46623000"]
["Красногорский муниципальный район","городское поселение Красногорск","46623101"]
["Красногорский муниципальный район","городское поселение Нахабино","46623154"]
["Красногорский муниципальный район","сельское поселение Ильинское","46623404"]
["Красногорский муниципальный район","сельское поселение Отрадненское","46623407"]
["Ленинский муниципальный район","Ленинский муниципальный район","46628000"]
["Ленинский муниципальный район","городское поселение Видное","46628101"]
["Ленинский муниципальный район","городское поселение Горки Ленинские","46628155"]
["Ленинский муниципальный район","городское поселение Московский","46628105"]
["Ленинский муниципальный район","сельское поселение Булатниковское","46628402"]
["Ленинский муниципальный район","сельское поселение Внуковское","46628404"]
["Ленинский муниципальный район","сельское поселение Володарское","46628407"]
["Ленинский муниципальный район","сельское поселение Воскресенское","46628408"]
["Ленинский муниципальный район","сельское поселение Десеновское","46628413"]
["Ленинский муниципальный район","сельское поселение Молоковское","46628422"]
["Ленинский муниципальный район","сельское поселение Мосрентген","46628409"]
["Ленинский муниципальный район","сельское поселение Развилковское","46628416"]
["Ленинский муниципальный район","сельское поселение Совхоз имени Ленина","46628411"]
["Ленинский муниципальный район","сельское поселение Сосенское","46628426"]
["Ленинский муниципальный район","сельское поселение Филимонковское","46628431"]
["Лотошинский муниципальный район","Лотошинский муниципальный район","46629000"]
["Лотошинский муниципальный район","городское поселение Лотошино","46629151"]
["Лотошинский муниципальный район","сельское поселение Микулинское","46629416"]
["Лотошинский муниципальный район","сельское поселение Ошейкинское","46629428"]
["Луховицкий муниципальный район","Луховицкий муниципальный район","46630000"]
["Луховицкий муниципальный район","городское поселение Белоомут","46630153"]
["Луховицкий муниципальный район","городское поселение Луховицы","46630101"]
["Луховицкий муниципальный район","сельское поселение Астаповское","46630407"]
["Луховицкий муниципальный район","сельское поселение Газопроводское","46630413"]
["Луховицкий муниципальный район","сельское поселение Головачевское","46630416"]
["Луховицкий муниципальный район","сельское поселение Дединовское","46630425"]
["Луховицкий муниципальный район","сельское поселение Краснопоймовское","46630431"]
["Луховицкий муниципальный район","сельское поселение Фруктовское","46630452"]
["Люберецкий муниципальный район","Люберецкий муниципальный район","46631000"]
["Люберецкий муниципальный район","городское поселение Красково","46631165"]
["Люберецкий муниципальный район","городское поселение Люберцы","46631101"]
["Люберецкий муниципальный район","городское поселение Малаховка","46631167"]
["Люберецкий муниципальный район","городское поселение Октябрьский","46631170"]
["Люберецкий муниципальный район","городское поселение Томилино","46631173"]
["Можайский муниципальный район","Можайский муниципальный район","46633000"]
["Можайский муниципальный район","городское поселение Можайск","46633101"]
["Можайский муниципальный район","городское поселение Уваровка","46633154"]
["Можайский муниципальный район","сельское поселение Борисовское","46633402"]
["Можайский муниципальный район","сельское поселение Бородинское","46633404"]
["Можайский муниципальный район","сельское поселение Горетовское","46633410"]
["Можайский муниципальный район","сельское поселение Дровнинский","46633416"]
["Можайский муниципальный район","сельское поселение Замошинское","46633419"]
["Можайский муниципальный район","сельское поселение Клементьевский","46633422"]
["Можайский муниципальный район","сельское поселение Порецкое","46633437"]
["Можайский муниципальный район","сельское поселение Спутник","46633425"]
["Можайский муниципальный район","сельское поселение Юрловское","46633449"]
["Москва","Москва","46000000"]
["Мытищинский муниципальный район","Мытищинский муниципальный район","46634000"]
["Мытищинский муниципальный район","городское поселение Мытищи","46634101"]
["Мытищинский муниципальный район","городское поселение Пироговский","46634162"]
["Мытищинский муниципальный район","сельское поселение Федоскинское","46634422"]
["Наро-Фоминский муниципальный район","Городское поселение Наро-Фоминск","46638101"]
["Наро-Фоминский муниципальный район","Наро-Фоминский муниципальный район","46638000"]
["Наро-Фоминский муниципальный район","городское поселение Апрелевка","46638102"]
["Наро-Фоминский муниципальный район","городское поселение Верея","46638105"]
["Наро-Фоминский муниципальный район","городское поселение Калининец","46638155"]
["Наро-Фоминский муниципальный район","городское поселение Киевский","46638158"]
["Наро-Фоминский муниципальный район","городское поселение Кокошкино","46638160"]
["Наро-Фоминский муниципальный район","городское поселение Селятино","46638168"]
["Наро-Фоминский муниципальный район","сельское поселение Атепцевское","46638404"]
["Наро-Фоминский муниципальный район","сельское поселение Веселевское","46638410"]
["Наро-Фоминский муниципальный район","сельское поселение Волченковское","46638407"]
["Наро-Фоминский муниципальный район","сельское поселение Марушкинское","46638422"]
["Наро-Фоминский муниципальный район","сельское поселение Новофедоровское","46638428"]
["Наро-Фоминский муниципальный район","сельское поселение Первомайское","46638431"]
["Наро-Фоминский муниципальный район","сельское поселение Ташировское","46638440"]
["Ногинский муниципальный район","Ногинский муниципальный район","46639000"]
["Ногинский муниципальный район","городское поселение Ногинск","46639101"]
["Ногинский муниципальный район","городское поселение Обухово","46639158"]
["Ногинский муниципальный район","городское поселение Старая Купавна","46639103"]
["Ногинский муниципальный район","городское поселение Электроугли","46639105"]
["Ногинский муниципальный район","городское поселение им. Воровского","46639154"]
["Ногинский муниципальный район","сельское поселение Аксено-Бутырское","46639402"]
["Ногинский муниципальный район","сельское поселение Буньковское","46639407"]
["Ногинский муниципальный район","сельское поселение Мамонтовское","46639416"]
["Ногинский муниципальный район","сельское поселение Степановское","46639422"]
["Ногинский муниципальный район","сельское поселение Ямкинское","46639428"]
["Одинцовский муниципальный район","Одинцовский муниципальный район","46641000"]
["Одинцовский муниципальный район","городское поселение Большие Вяземы","46641152"]
["Одинцовский муниципальный район","городское поселение Голицыно","46641104"]
["Одинцовский муниципальный район","городское поселение Заречье","46641157"]
["Одинцовский муниципальный район","городское поселение Кубинка","46641110"]
["Одинцовский муниципальный район","городское поселение Лесной Городок","46641160"]
["Одинцовский муниципальный район","городское поселение Новоивановское","46641162"]
["Одинцовский муниципальный район","городское поселение Одинцово","46641101"]
["Одинцовский муниципальный район","сельское поселение Барвихинское","46641404"]
["Одинцовский муниципальный район","сельское поселение Горское","46641413"]
["Одинцовский муниципальный район","сельское поселение Ершовское","46641419"]
["Одинцовский муниципальный район","сельское поселение Жаворонковское","46641470"]
["Одинцовский муниципальный район","сельское поселение Захаровское","46641425"]
["Одинцовский муниципальный район","сельское поселение Назарьевское","46641440"]
["Одинцовский муниципальный район","сельское поселение Никольское","46641449"]
["Одинцовский муниципальный район","сельское поселение Успенское","46641461"]
["Одинцовский муниципальный район","сельское поселение Часцовское","46641464"]
["Озерский муниципальный район","Озерский муниципальный район","46642000"]
["Озерский муниципальный район","городское поселение Озеры","46642101"]
["Озерский муниципальный район","сельское поселение Бояркинское","46642402"]
["Озерский муниципальный район","сельское поселение Клишинское","46642410"]
["Орехово-Зуевский муниципальный район","Орехово-Зуевский муниципальный район","46643000"]
["Орехово-Зуевский муниципальный район","городское поселение Дрезна","46643104"]
["Орехово-Зуевский муниципальный район","городское поселение Куровское","46643108"]
["Орехово-Зуевский муниципальный район","городское поселение Ликино-Дулево","46643113"]
["Орехово-Зуевский муниципальный район","сельское поселение Белавинское","46643407"]
["Орехово-Зуевский муниципальный район","сельское поселение Верейское","46643408"]
["Орехово-Зуевский муниципальный район","сельское поселение Горское","46643413"]
["Орехово-Зуевский муниципальный район","сельское поселение Давыдовское","46643419"]
["Орехово-Зуевский муниципальный район","сельское поселение Демиховское","46643422"]
["Орехово-Зуевский муниципальный район","сельское поселение Дороховское","46643425"]
["Орехово-Зуевский муниципальный район","сельское поселение Ильинское","46643431"]
["Орехово-Зуевский муниципальный район","сельское поселение Малодубенское","46643437"]
["Орехово-Зуевский муниципальный район","сельское поселение Новинское","46643443"]
["Орехово-Зуевский муниципальный район","сельское поселение Соболевское","46643446"]
["Павлово-Посадский муниципальный район","Павлово-Посадский муниципальный район","46645000"]
["Павлово-Посадский муниципальный район","городское поселение Большие Дворы","46645152"]
["Павлово-Посадский муниципальный район","городское поселение Павловский Посад","46645101"]
["Павлово-Посадский муниципальный район","сельское поселение Аверкиевское","46645402"]
["Павлово-Посадский муниципальный район","сельское поселение Кузнецовское","46645404"]
["Павлово-Посадский муниципальный район","сельское поселение Рахмановское","46645410"]
["Павлово-Посадский муниципальный район","сельское поселение Улитинское","46645416"]
["Подольский муниципальный район","Подольский муниципальный район","46646000"]
["Подольский муниципальный район","городское поселение Львовский","46646154"]
["Подольский муниципальный район","сельское поселение Вороновское","46646404"]
["Подольский муниципальный район","сельское поселение Дубровицкое","46646413"]
["Подольский муниципальный район","сельское поселение Кленовское","46646407"]
["Подольский муниципальный район","сельское поселение Краснопахорское","46646410"]
["Подольский муниципальный район","сельское поселение Лаговское","46646416"]
["Подольский муниципальный район","сельское поселение Михайлово-Ярцевское","46646419"]
["Подольский муниципальный район","сельское поселение Роговское","46646422"]
["Подольский муниципальный район","сельское поселение Рязановское","46646425"]
["Подольский муниципальный район","сельское поселение Стрелковское","46646428"]
["Подольский муниципальный район","сельское поселение Щаповское","46646434"]
["Пушкинский муниципальный район","Пушкинский муниципальный район","46647000"]
["Пушкинский муниципальный район","городское поселение Ашукино","46647152"]
["Пушкинский муниципальный район","городское поселение Зеленоградский","46647154"]
["Пушкинский муниципальный район","городское поселение Лесной","46647156"]
["Пушкинский муниципальный район","городское поселение Правдинский","46647158"]
["Пушкинский муниципальный район","городское поселение Пушкино","46647101"]
["Пушкинский муниципальный район","городское поселение Софрино","46647163"]
["Пушкинский муниципальный район","городское поселение Черкизово","46647168"]
["Пушкинский муниципальный район","сельское поселение Ельдигинское","46647407"]
["Пушкинский муниципальный район","сельское поселение Тарасовское","46647437"]
["Пушкинский муниципальный район","сельское поселение Царевское","46647443"]
["Раменский муниципальный район","Раменский муниципальный район","46648000"]
["Раменский муниципальный район","городское поселение Быково","46648152"]
["Раменский муниципальный район","городское поселение Ильинский","46648155"]
["Раменский муниципальный район","городское поселение Кратово","46648157"]
["Раменский муниципальный район","городское поселение Раменское","46648101"]
["Раменский муниципальный район","городское поселение Родники","46648162"]
["Раменский муниципальный район","городское поселение Удельная","46648168"]
["Раменский муниципальный район","сельское поселение Верейское","46648402"]
["Раменский муниципальный район","сельское поселение Вялковское","46648407"]
["Раменский муниципальный район","сельское поселение Ганусовское","46648410"]
["Раменский муниципальный район","сельское поселение Гжельское","46648413"]
["Раменский муниципальный район","сельское поселение Заболотьевское","46648422"]
["Раменский муниципальный район","сельское поселение Константиновское","46648434"]
["Раменский муниципальный район","сельское поселение Кузнецовское","46648443"]
["Раменский муниципальный район","сельское поселение Никоновское","46648455"]
["Раменский муниципальный район","сельское поселение Новохаритоновское","46648458"]
["Раменский муниципальный район","сельское поселение Островецкое","46648461"]
["Раменский муниципальный район","сельское поселение Рыболовское","46648470"]
["Раменский муниципальный район","сельское поселение Сафоновское","46648473"]
["Раменский муниципальный район","сельское поселение Софьинское","46648476"]
["Раменский муниципальный район","сельское поселение Ульянинское","46648488"]
["Раменский муниципальный район","сельское поселение Чулковское","46648491"]
["Рузский муниципальный район","Рузский муниципальный район","46649000"]
["Рузский муниципальный район","городское поселение Руза","46649101"]
["Рузский муниципальный район","городское поселение Тучково","46649163"]
["Рузский муниципальный район","сельское поселение Волковское","46649404"]
["Рузский муниципальный район","сельское поселение Дороховское","46649428"]
["Рузский муниципальный район","сельское поселение Ивановское","46649407"]
["Рузский муниципальный район","сельское поселение Колюбакинское","46649402"]
["Рузский муниципальный район","сельское поселение Старорузское","46649431"]
["Сергиево-Посадский муниципальный район","Город Сергиев Посад","46615101"]
["Сергиево-Посадский муниципальный район","Сергиево-Посадский муниципальный район","46615000"]
["Сергиево-Посадский муниципальный район","городское Поселение Скоропусковский","46615161"]
["Сергиево-Посадский муниципальный район","городское поселение Богородское","46615153"]
["Сергиево-Посадский муниципальный район","городское поселение Краснозаводск","46615103"]
["Сергиево-Посадский муниципальный район","городское поселение Пересвет","46615105"]
["Сергиево-Посадский муниципальный район","городское поселение Хотьково","46615106"]
["Сергиево-Посадский муниципальный район","сельское поселение Березняковское","46615406"]
["Сергиево-Посадский муниципальный район","сельское поселение Васильевское","46615413"]
["Сергиево-Посадский муниципальный район","сельское поселение Лозовское","46615458"]
["Сергиево-Посадский муниципальный район","сельское поселение Реммаш","46615446"]
["Сергиево-Посадский муниципальный район","сельское поселение Селковское","46615452"]
["Сергиево-Посадский муниципальный район","сельское поселение Шеметовское","46615461"]
["Серебряно-Прудский муниципальный район","Серебряно-Прудский муниципальный район","46650000"]
["Серебряно-Прудский муниципальный район","городское поселение Серебряные Пруды","46650151"]
["Серебряно-Прудский муниципальный район","сельское поселение Мочильское","46650409"]
["Серебряно-Прудский муниципальный район","сельское поселение Узуновское","46650419"]
["Серебряно-Прудский муниципальный район","сельское поселение Успенское","46650416"]
["Серпуховский муниципальный район","Серпуховский муниципальный район","46651000"]
["Серпуховский муниципальный район","городское поселение Пролетарский","46651154"]
["Серпуховский муниципальный район","городское поселок Оболенск","46651152"]
["Серпуховский муниципальный район","сельское поселение Васильевское","46651410"]
["Серпуховский муниципальный район","сельское поселение Данковское","46651407"]
["Серпуховский муниципальный район","сельское поселение Дашковское","46651413"]
["Серпуховский муниципальный район","сельское поселение Калиновское","46651416"]
["Серпуховский муниципальный район","сельское поселение Липицкое","46651422"]
["Солнечногорский муниципальный район","Солнечногорский муниципальный район","46652000"]
["Солнечногорский муниципальный район","городское поселение Андреевка","46652153"]
["Солнечногорский муниципальный район","городское поселение Менделеево","46652158"]
["Солнечногорский муниципальный район","городское поселение Поварово","46652162"]
["Солнечногорский муниципальный район","городское поселение Ржавки","46652164"]
["Солнечногорский муниципальный район","городское поселение Солнечногорск","46652101"]
["Солнечногорский муниципальный район","сельское поселение Кривцовское","46652428"]
["Солнечногорский муниципальный район","сельское поселение Кутузовское","46652422"]
["Солнечногорский муниципальный район","сельское поселение Луневское","46652416"]
["Солнечногорский муниципальный район","сельское поселение Пешковское","46652431"]
["Солнечногорский муниципальный район","сельское поселение Смирновское","46652425"]
["Солнечногорский муниципальный район","сельское поселение Соколовское","46652446"]
["Ступинский муниципальный район","Ступинский муниципальный район","46653000"]
["Ступинский муниципальный район","городское поселение Жилёво","46653154"]
["Ступинский муниципальный район","городское поселение Малино","46653156"]
["Ступинский муниципальный район","городское поселение Михнево","46653158"]
["Ступинский муниципальный район","городское поселение Ступино","46653101"]
["Ступинский муниципальный район","сельское поселение Аксиньинское","46653402"]
["Ступинский муниципальный район","сельское поселение Леонтьевское","46653422"]
["Ступинский муниципальный район","сельское поселение Семеновское","46653436"]
["Талдомский муниципальный район","Талдомский муниципальный район","46654000"]
["Талдомский муниципальный район","городское поселение Вербилки","46654154"]
["Талдомский муниципальный район","городское поселение Запрудня","46654158"]
["Талдомский муниципальный район","городское поселение Северный","46654163"]
["Талдомский муниципальный район","городское поселение Талдом","46654101"]
["Талдомский муниципальный район","сельское поселение Гуслевское","46654407"]
["Талдомский муниципальный район","сельское поселение Ермолинское","46654410"]
["Талдомский муниципальный район","сельское поселение Темповое","46654426"]
["Чеховский муниципальный район","Чеховский муниципальный район","46656000"]
["Чеховский муниципальный район","городское поселение Столбовая","46656155"]
["Чеховский муниципальный район","городское поселение Чехов","46656101"]
["Чеховский муниципальный район","сельское поселение Баранцевское","46656404"]
["Чеховский муниципальный район","сельское поселение Любучанское","46656416"]
["Чеховский муниципальный район","сельское поселение Стремиловское","46656428"]
["Шатурский муниципальный район","Шатурский муниципальный район","46657000"]
["Шатурский муниципальный район","городское поселение Мишеронский","46657163"]
["Шатурский муниципальный район","городское поселение Черусти","46657187"]
["Шатурский муниципальный район","городское поселение Шатура","46657101"]
["Шатурский муниципальный район","сельское поселение Дмитровское","46657413"]
["Шатурский муниципальный район","сельское поселение Кривандинское","46657416"]
["Шатурский муниципальный район","сельское поселение Пышлицкое","46657440"]
["Шатурский муниципальный район","сельское поселение Радовицкое","46657460"]
["Шаховской муниципальный район","Шаховской муниципальный район","46658000"]
["Шаховской муниципальный район","городское поселение Шаховская","46658151"]
["Шаховской муниципальный район","сельское поселение Раменское","46658437"]
["Шаховской муниципальный район","сельское поселение Серединское","46658440"]
["Шаховской муниципальный район","сельское поселение Степаньковское","46658404"]
["Щелковский муниципальный район","Щелковский муниципальный район","46659000"]
["Щелковский муниципальный район","городское поселение Загорянский","46659152"]
["Щелковский муниципальный район","городское поселение Монино","46659154"]
["Щелковский муниципальный район","городское поселение Свердловский","46659158"]
["Щелковский муниципальный район","городское поселение Фряново","46659163"]
["Щелковский муниципальный район","городское поселение Щелково","46659101"]
["Щелковский муниципальный район","сельское поселение Анискинское","46659402"]
["Щелковский муниципальный район","сельское поселение Гребневское","46659407"]
["Щелковский муниципальный район","сельское поселение Медвежье-Озерское","46659419"]
["Щелковский муниципальный район","сельское поселение Огудневское","46659422"]
["Щелковский муниципальный район","сельское поселение Трубинское","46659434"]
["городкской округ Восход (ЗАТО)","Поселок Восход (ЗАТО)","46763000"]
["городкской округ Восход (ЗАТО)","городкской округ Восход (ЗАТО)","46763000"]
["городской округ Балашиха","Город Балашиха","46704000"]
["городской округ Балашиха","городской округ Балашиха","46704000"]
["городской округ Бронницы","Город Бронницы","46705000"]
["городской округ Бронницы","городской округ Бронницы","46705000"]
["городской округ Власиха","Городской округ Власиха","46773000"]
["городской округ Власиха","городской округ Власиха","46773000"]
["городской округ Дзержинский","Город Дзержинский","46711000"]
["городской округ Дзержинский","городской округ Дзержинский","46711000"]
["городской округ Долгопрудный","Город Долгопрудный","46716000"]
["городской округ Долгопрудный","городской округ Долгопрудный","46716000"]
["городской округ Домодедово","Город Домодедово","46709000"]
["городской округ Домодедово","городской округ Домодедово","46709000"]
["городской округ Дубна","Город Дубна","46718000"]
["городской округ Дубна","городской округ Дубна","46718000"]
["городской округ Железнодорожный","Город Железнодорожный","46724000"]
["городской округ Железнодорожный","городской округ Железнодорожный","46724000"]
["городской округ Жуковский","Город Жуковский","46725000"]
["городской округ Жуковский","городской округ Жуковский","46725000"]
["городской округ Звездный городок (ЗАТО)","Городской округ Звездный городок (ЗАТО)","46774001"]
["городской округ Звездный городок (ЗАТО)","городской округ Звездный городок (ЗАТО)","46774000"]
["городской округ Звенигород","Город Звенигород","46730000"]
["городской округ Звенигород","городской округ Звенигород","46730000"]
["городской округ Ивантеевка","Город Ивантеевка","46732000"]
["городской округ Ивантеевка","городской округ Ивантеевка","46732000"]
["городской округ Климовск","Город Климовск","46736000"]
["городской округ Климовск","городской округ Климовск","46736000"]
["городской округ Коломна","Город Коломна","46738000"]
["городской округ Коломна","городской округ Коломна","46738000"]
["городской округ Королев","Город Королев","46734000"]
["городской округ Королев","городской округ Королев","46734000"]
["городской округ Котельники","Город Котельники","46739000"]
["городской округ Котельники","городской округ Котельники","46739000"]
["городской округ Красноармейск","Город Красноармейск","46743000"]
["городской округ Красноармейск","городской округ Красноармейск","46743000"]
["городской округ Краснознаменск (ЗАТО)","Город Краснознаменск (ЗАТО)","46706000"]
["городской округ Краснознаменск (ЗАТО)","городской округ Краснознаменск (ЗАТО)","46706000"]
["городской округ Лобня","Город Лобня","46740000"]
["городской округ Лобня","городской округ Лобня","46740000"]
["городской округ Лосино-Петровский","Город Лосино-Петровский","46742000"]
["городской округ Лосино-Петровский","городской округ Лосино-Петровский","46742000"]
["городской округ Лыткарино","Город Лыткарино","46741000"]
["городской округ Лыткарино","городской округ Лыткарино","46741000"]
["городской округ Молодежный (ЗАТО)","Поселок Молодежный (ЗАТО)","46761000"]
["городской округ Молодежный (ЗАТО)","городской округ Молодежный (ЗАТО)","46761000"]
["городской округ Орехово-Зуево","Город Орехово-Зуево","46757000"]
["городской округ Орехово-Зуево","городской округ Орехово-Зуево","46757000"]
["городской округ Подольск","Город Подольск","46760000"]
["городской округ Подольск","городской округ Подольск","46760000"]
["городской округ Протвино","Город Протвино","46767000"]
["городской округ Протвино","городской округ Протвино","46767000"]
["городской округ Пущино","Город Пущино","46762000"]
["городской округ Пущино","городской округ Пущино","46762000"]
["городской округ Реутов","Город Реутов","46764000"]
["городской округ Реутов","городской округ Реутов","46764000"]
["городской округ Рошаль","Город Рошаль","46765000"]
["городской округ Рошаль","городской округ Рошаль","46765000"]
["городской округ Серпухов","Город Серпухов","46770000"]
["городской округ Серпухов","городской округ Серпухов","46770000"]
["городской округ Троицк","Город Троицк","46775000"]
["городской округ Троицк","городской округ Троицк","46775000"]
["городской округ Фрязино","Город Фрязино","46780000"]
["городской округ Фрязино","городской округ Фрязино","46780000"]
["городской округ Химки","Город Химки","46783000"]
["городской округ Химки","городской округ Химки","46783000"]
["городской округ Черноголовка","Город Черноголовка","46781000"]
["городской округ Черноголовка","городской округ Черноголовка","46781000"]
["городской округ Щербинка","Город Щербинка","46789000"]
["городской округ Щербинка","городской округ Щербинка","46789000"]
["городской округ Электрогорск","Город Электрогорск","46791000"]
["городской округ Электрогорск","городской округ Электрогорск","46791000"]
["городской округ Электросталь","Город Электросталь","46790000"]
["городской округ Электросталь","городской округ Электросталь","46790000"]
["городской округ Юбилейный","Город Юбилейный","46793000"]
["городской округ Юбилейный","городской округ Юбилейный","46793000"]

{"sheet":"modfrmReestr","index":26,"n_rows":0,"n_cols":0,"rows_kept":0,"cut":false,"hidden":true,"merged":[]}

{"sheet":"modDblClick","index":27,"n_rows":0,"n_cols":0,"rows_kept":0,"cut":false,"hidden":true,"merged":[]}

{"sheet":"modfrmDateChoose","index":28,"n_rows":0,"n_cols":0,"rows_kept":0,"cut":false,"hidden":true,"merged":[]}

{"sheet":"modfrmSphereChoose","index":29,"n_rows":0,"n_cols":0,"rows_kept":0,"cut":false,"hidden":true,"merged":[]}

{"sheet":"modSheetMain01","index":30,"n_rows":0,"n_cols":0,"rows_kept":0,"cut":false,"hidden":true,"merged":[]}

{"sheet":"modSheetMain03","index":31,"n_rows":0,"n_cols":0,"rows_kept":0,"cut":false,"hidden":true,"merged":[]}

{"sheet":"modSheetMain04","index":32,"n_rows":0,"n_cols":0,"rows_kept":0,"cut":false,"hidden":true,"merged":[]}

{"sheet":"modSheetMain06","index":33,"n_rows":0,"n_cols":0,"rows_kept":0,"cut":false,"hidden":true,"merged":[]}

{"sheet":"modSheetMain07","index":34,"n_rows":0,"n_cols":0,"rows_kept":0,"cut":false,"hidden":true,"merged":[]}

{"sheet":"modSheetMain08","index":35,"n_rows":0,"n_cols":0,"rows_kept":0,"cut":false,"hidden":true,"merged":[]}

{"sheet":"modUpdTemplMain","index":36,"n_rows":0,"n_cols":0,"rows_kept":0,"cut":false,"hidden":true,"merged":[]}

{"sheet":"modRegionSelectSub","index":37,"n_rows":0,"n_cols":0,"rows_kept":0,"cut":false,"hidden":true,"merged":[]}

{"sheet":"modfrmCheckUpdates","index":38,"n_rows":0,"n_cols":0,"rows_kept":0,"cut":false,"hidden":true,"merged":[]}

{"sheet":"modCommonProv","index":39,"n_rows":0,"n_cols":0,"rows_kept":0,"cut":false,"hidden":true,"merged":[]}

{"sheet":"modProvGeneralProc","index":40,"n_rows":0,"n_cols":0,"rows_kept":0,"cut":false,"hidden":true,"merged":[]}

{"sheet":"modThisWorkbook","index":41,"n_rows":1,"n_cols":3,"rows_kept":1,"cut":false,"hidden":true,"merged":[]}
[null,null,{"$f":"\"modServiceModule.IsNameExists(wbBook, \"\"\"&A1&\"\"\") = False Or \" &  \"modServiceModule.IsNameExists(wbBook, \"\"\"&A2&\"\"\") = False or _\"","v":"modServiceModule.IsNameExists(wbBook, \"\") = False Or modServiceModule.IsNameExists(wbBook, \"\") = False or _"}]